Workbook

Sheet Январь
A1: 1 | B1: 2 | C1: 3 | D1: 4 | E1: 5 | F1: 6 | G1: 7 | H1: 8 | I1: 9 | J1: 10 | K1: 11 | L1: 12 | M1: 13 | N1: 14 | O1: 15 | P1: 16 | Q1: 17
F2: 0 | J2: Приложение №1 | K2: 811.6 | L2: Торг-12 № | M2: приход | O2: копия
F3: 0 | K3: 8121.2 | L3: М-15 № | M3: расход | O3: оригинал
B4: Наименование подразделения | D4: вот такое подразделение | K4: 8121.1 | L4: М-11 №
B5: ОСО (Фамилия Имя Отчество) | D5: Фамилия Имя Отчество | K5: 811.5 | L5: МХ-1
F6: 0 | K6: 811.4 | L6: МХ-3
B7: Журнал приема-передачи Первичных документов | K7: 7131.1 | L7: ОС-2
E8: от | F8: 2016-12-31 | G8: № | H8: 198 | I8: Торг-12 № | K8: 8111.2 | L8: Акт приема передачи
F9: 0 | K9: 8111.3 | L9: М-4 приходный ордер
B10: № п/п | C10: Числовой идентификатор (штрих-код) | D10: Кол-во листов ПД | E10: п.ГДО | F10: Подлинность (оригинал/копия) | G10: ШК размещенного в ЭХД документа (заполняется в случае замены) | I10: Примечание | K10: 7111.1 | L10: М-15 оборудование
B11: 1 | C11: 2 | D11: 3 | E11: 4 | F11: 5 | G11: 6 | I11: 7
A12: =IF(F12="","",IF(F12="копия","К"&COUNTIF($F$12:F12,F12),"О"&COUNTIF($F$12:F12,F12))) -> О1 | B12: 1 | C12: dgdfhgvbcbncvn | D12: 1 | E12: 811.6 | F12: оригинал | I12: =IF(ISERROR(VLOOKUP(E12,$K$2:$L$10,2,FALSE))," ",VLOOKUP(E12,$K$2:$L$10,2,FALSE)) -> Торг-12 № | J12: 490055 | K12: =G12 -> 0 | L12: =F12 -> оригинал | M12: =$H$8 -> 198 | N12: =$F$8 -> 2016-12-31
A13: =IF(F13="","",IF(F13="копия","К"&COUNTIF($F$12:F13,F13),"О"&COUNTIF($F$12:F13,F13))) -> К1 | B13: 2 | C13: hhhhhhhhgggggggg | D13: 1 | E13: 811.6 | F13: копия | I13: Торг-12 № | J13: 490058 | K13: =G13 -> 0 | L13: =F13 -> копия | M13: 198 | N13: =$F$8 -> 2016-12-31 | O13: =C13 -> hhhhhhhhgggggggg
A14: =IF(F14="","",IF(F14="копия","К"&COUNTIF($F$12:F14,F14),"О"&COUNTIF($F$12:F14,F14))) -> К2 | B14: 3 | C14: kkkkkkkkkkrrgg | D14: 2 | E14: 811.6 | F14: копия | I14: Торг-12 № | J14: 490065 от 01.01.17 | K14: 0 | L14: копия | M14: 198 | N14: 2016-12-31 | O14: =C14 -> kkkkkkkkkkrrgg
A15: =IF(F15="","",IF(F15="копия","К"&COUNTIF($F$12:F15,F15),"О"&COUNTIF($F$12:F15,F15))) -> К3 | B15: 4 | C15: мтстим мисми | D15: 1 | E15: 811.5 | F15: копия | I15: МХ-1 | J15: 490035 | K15: 0 | L15: копия | M15: 198 | N15: 2016-12-31 | O15: мтстим мисми
A16: =IF(F16="","",IF(F16="копия","К"&COUNTIF($F$12:F16,F16),"О"&COUNTIF($F$12:F16,F16))) -> О2 | B16: 5 | C16: мтстим м | D16: 1 | E16: 811.6 | F16: оригинал | I16: Торг-12 № | K16: 0 | L16: оригинал | M16: 198 | N16: 2016-12-31 | O16: мтстим м
A17: =IF(F17="","",IF(F17="копия","К"&COUNTIF($F$12:F17,F17),"О"&COUNTIF($F$12:F17,F17))) -> К4 | B17: 6 | C17: мтс мисми | D17: 1 | E17: 811.6 | F17: копия | I17: Торг-12 № | K17: 0 | L17: копия | M17: 198 | N17: 2016-12-31 | O17: мтс мисми
A18: =IF(F18="","",IF(F18="копия","К"&COUNTIF($F$12:F18,F18),"О"&COUNTIF($F$12:F18,F18))) -> О3 | B18: 7 | C18: мтстим мисми hhhhhhhhh | D18: 1 | E18: 811.6 | F18: оригинал | I18: Торг-12 № | K18: 0 | L18: оригинал | M18: 198 | N18: 2016-12-31 | O18: мтстим мисми hhhhhhhhh
A19: =IF(F19="","",IF(F19="копия","К"&COUNTIF($F$12:F19,F19),"О"&COUNTIF($F$12:F19,F19))) -> К5 | B19: 8 | C19: мтстим мhhhhми | D19: 1 | E19: 811.6 | F19: копия | I19: Торг-12 № | K19: 0 | L19: копия | M19: 198 | N19: 2016-12-31 | O19: мтстим мhhhhми
A20: =IF(F20="","",IF(F20="копия","К"&COUNTIF($F$12:F20,F20),"О"&COUNTIF($F$12:F20,F20))) -> О4 | B20: 9 | C20: мyyyyyyyyyстим мисми | D20: 1 | E20: 811.6 | F20: оригинал | I20: Торг-12 № | K20: 0 | L20: оригинал | M20: 198 | N20: 2016-12-31 | O20: мyyyyyyyyyстим мисми
A21: =IF(F21="","",IF(F21="копия","К"&COUNTIF($F$12:F21,F21),"О"&COUNTIF($F$12:F21,F21))) ->  | B21: 10 | D21: =IF(C21=0," ","кол-во?") ->  | E21: =IF(C21=0," ","укажи ") ->  | K21: 0 | L21: 0 | M21: 198 | N21: 2016-12-31 | O21: 0
A22: =IF(F22="","",IF(F22="копия","К"&COUNTIF($F$12:F22,F22),"О"&COUNTIF($F$12:F22,F22))) ->  | B22: 11 | K22: 0 | L22: 0 | M22: 198 | N22: 2016-12-31 | O22: 0
F23: 0
B24: Документы сдал | D24: должность Фамилия Имя Отчество, тел. 2-00-00 | I24: =F8 -> 2016-12-31 | J24: =NOW() -> 42764.63985
D25: (ФИО работника Общества, тлф) | H25: (подпись) | I25: (дата и время)
B26: Документы принял | F26: 0
D27: (ФИО ГС) | H27: (подпись) | I27: (дата и время)
B28: Документы возвращены | F28: 0
D29: (ФИО ГС) | H29: (подпись) | I29: (дата и время)
B30: Документы получены | F30: 0
D31: (ФИО работника Общества, тлф) | H31: (подпись) | I31: (дата и время)
F32: 0
F33: 0 | J33: Приложение №1
F34: 0
B35: Наименование подразделения | D35: =$D$4 -> вот такое подразделение
B36: ОСО (Фамилия Имя Отчество) | D36: =$D$5 -> Фамилия Имя Отчество
F37: 0
B38: Журнал приема-передачи Первичных документов
E39: от | F39: 2017-01-03 | G39: № | H39: =H8+1 -> 199
F40: 0
B41: № п/п | C41: Числовой идентификатор (штрих-код) | D41: Кол-во листов ПД | E41: п.ГДО | F41: Подлинность (оригинал/копия) | G41: ШК размещенного в ЭХД документа (заполняется в случае замены) | I41: Примечание
B42: 1 | C42: 2 | D42: 3 | E42: 4 | F42: 5 | G42: 6 | I42: 7
A43: =IF(F43="","",IF(F43="копия","К"&COUNTIF($F$12:F43,F43),"О"&COUNTIF($F$12:F43,F43))) -> К6 | B43: 1 | C43: рерпопр | D43: 1 | E43: 811.6 | F43: копия | I43: =IF(ISERROR(VLOOKUP(E43,$K$2:$L$10,2,FALSE))," ",VLOOKUP(E43,$K$2:$L$10,2,FALSE)) -> Торг-12 № | J43: 490087 | K43: 0 | L43: копия | M43: =$H$39 -> 199 | N43: =$F$39 -> 2017-01-03 | O43: =C43 -> рерпопр
A44: =IF(F44="","",IF(F44="копия","К"&COUNTIF($F$12:F44,F44),"О"&COUNTIF($F$12:F44,F44))) -> К7 | B44: 2 | C44: wwwwwwwwwwww | D44: 2 | E44: 811.6 | F44: копия | I44: Торг-12 № | J44: 540088 05.01.2017 | K44: 0 | L44: копия | M44: =$H$39 -> 199 | N44: =$F$39 -> 2017-01-03 | O44: =C44 -> wwwwwwwwwwww
A45: =IF(F45="","",IF(F45="копия","К"&COUNTIF($F$12:F45,F45),"О"&COUNTIF($F$12:F45,F45))) -> О5 | B45: 3 | C45: sddddddd | D45: 5 | E45: 811.6 | F45: оригинал | I45: Торг-12 № | J45: 5000054 | K45: 0 | L45: оригинал | M45: 199 | N45: 2017-01-03 | O45: sddddddd
A46: =IF(F46="","",IF(F46="копия","К"&COUNTIF($F$12:F46,F46),"О"&COUNTIF($F$12:F46,F46))) -> К8 | B46: 4 | C46: llllllllllllll | D46: 4 | E46: 811.6 | F46: копия | I46: Торг-12 № | J46: 12 ЗАО "Пупкин" | K46: 0 | L46: копия | M46: 199 | N46: 2017-01-03 | O46: llllllllllllll
A47: =IF(F47="","",IF(F47="копия","К"&COUNTIF($F$12:F47,F47),"О"&COUNTIF($F$12:F47,F47))) -> О6 | B47: 5 | C47: iiiiiiiiiiii | D47: 1 | E47: 811.6 | F47: оригинал | I47: Торг-12 № | J47: 99 | K47: 0 | L47: оригинал | M47: 199 | N47: 2017-01-03 | O47: iiiiiiiiiiii
A48: =IF(F48="","",IF(F48="копия","К"&COUNTIF($F$12:F48,F48),"О"&COUNTIF($F$12:F48,F48))) -> К9 | B48: 6 | C48: ыыыыыыы | D48: 2 | E48: 811.6 | F48: копия | I48: Торг-12 № | J48: 11 от 02.01.17 ООО"Рога и копыта | K48: 0 | L48: копия | M48: 199 | N48: 2017-01-03 | O48: ыыыыыыы
A49: =IF(F49="","",IF(F49="копия","К"&COUNTIF($F$12:F49,F49),"О"&COUNTIF($F$12:F49,F49))) ->  | B49: 7 | D49: =IF(C49=0," ","кол-во?") ->  | E49: =IF(C49=0," ","укажи ") ->  | K49: 0 | L49: 0 | M49: 199 | N49: 2017-01-03 | O49: 0
A50: =IF(F50="","",IF(F50="копия","К"&COUNTIF($F$12:F50,F50),"О"&COUNTIF($F$12:F50,F50))) ->  | B50: 8 | K50: 0 | L50: 0 | M50: 199 | N50: 2017-01-03 | O50: 0
A51: =IF(F51="","",IF(F51="копия","К"&COUNTIF($F$12:F51,F51),"О"&COUNTIF($F$12:F51,F51))) ->  | B51: 9 | K51: 0 | L51: 0 | M51: 199 | N51: 2017-01-03 | O51: 0
A52: =IF(F52="","",IF(F52="копия","К"&COUNTIF($F$12:F52,F52),"О"&COUNTIF($F$12:F52,F52))) ->  | B52: 10 | K52: 0 | L52: 0 | M52: 199 | N52: 2017-01-03 | O52: 0
A53: =IF(F53="","",IF(F53="копия","К"&COUNTIF($F$12:F53,F53),"О"&COUNTIF($F$12:F53,F53))) ->  | B53: 11 | K53: 0 | L53: 0 | M53: 199 | N53: 2017-01-03 | O53: 0
F54: 0
B55: Документы сдал | D55: =$D$24 -> должность Фамилия Имя Отчество, тел. 2-00-00 | I55: =F39 -> 2017-01-03 | J55: =NOW() -> 42764.63985
D56: (ФИО работника Общества, тлф) | H56: (подпись) | I56: (дата и время)
B57: Документы принял | F57: 0
D58: (ФИО ГС) | H58: (подпись) | I58: (дата и время)
B59: Документы возвращены | F59: 0
D60: (ФИО ГС) | H60: (подпись) | I60: (дата и время)
B61: Документы получены | F61: 0
D62: (ФИО работника Общества, тлф) | H62: (подпись) | I62: (дата и время)
F63: 0
F64: 0 | J64: Приложение №1
F65: 0
B66: Наименование подразделения | D66: =$D$4 -> вот такое подразделение
B67: ОСО (Фамилия Имя Отчество) | D67: =$D$5 -> Фамилия Имя Отчество
F68: 0
B69: Журнал приема-передачи Первичных документов
E70: от | F70: 2017-01-03 | G70: № | H70: =H39+1 -> 200
F71: 0
B72: № п/п | C72: Числовой идентификатор (штрих-код) | D72: Кол-во листов ПД | E72: п.ГДО | F72: Подлинность (оригинал/копия) | G72: ШК размещенного в ЭХД документа (заполняется в случае замены) | I72: Примечание
B73: 1 | C73: 2 | D73: 3 | E73: 4 | F73: 5 | G73: 6 | I73: 7
A74: =IF(F74="","",IF(F74="копия","К"&COUNTIF($F$12:F74,F74),"О"&COUNTIF($F$12:F74,F74))) -> К10 | B74: 1 | C74: gggggggpppp | D74: 1 | E74: 811.6 | F74: копия | I74: =IF(ISERROR(VLOOKUP(E74,$K$2:$L$10,2,FALSE))," ",VLOOKUP(E74,$K$2:$L$10,2,FALSE)) -> Торг-12 № | J74: 569 | K74: 0 | L74: копия | M74: =$H$39 -> 199 | N74: =$F$39 -> 2017-01-03 | O74: =C74 -> gggggggpppp
A75: =IF(F75="","",IF(F75="копия","К"&COUNTIF($F$12:F75,F75),"О"&COUNTIF($F$12:F75,F75))) -> О7 | B75: 2 | C75: wwwкккккккккwww | D75: 2 | E75: 811.6 | F75: оригинал | I75: Торг-12 № | J75: 34/12 | K75: 0 | L75: оригинал | M75: 199 | N75: 2017-01-03 | O75: =C75 -> wwwкккккккккwww
A76: =IF(F76="","",IF(F76="копия","К"&COUNTIF($F$12:F76,F76),"О"&COUNTIF($F$12:F76,F76))) -> К11 | B76: 3 | C76: sdееееееdd | D76: 5 | E76: 811.6 | F76: копия | I76: Торг-12 № | J76: 455-02 | K76: 0 | L76: копия | M76: 199 | N76: 2017-01-03 | O76: sdееееееdd
A77: =IF(F77="","",IF(F77="копия","К"&COUNTIF($F$12:F77,F77),"О"&COUNTIF($F$12:F77,F77))) -> О8 | B77: 4 | C77: llyyyyyyyyl | D77: 4 | E77: 811.6 | F77: оригинал | I77: Торг-12 № | J77: 89 | K77: =G77 -> 0 | L77: =F77 -> оригинал | M77: 199 | N77: 2017-01-03 | O77: llyyyyyyyyl
A78: =IF(F78="","",IF(F78="копия","К"&COUNTIF($F$12:F78,F78),"О"&COUNTIF($F$12:F78,F78))) -> К12 | B78: 5 | C78: iiwwwwwwwwwiii | D78: 1 | E78: 811.6 | F78: копия | I78: Торг-12 № | J78: 123456 | K78: 0 | L78: копия | M78: 199 | N78: 2017-01-03 | O78: iiwwwwwwwwwiii
A79: =IF(F79="","",IF(F79="копия","К"&COUNTIF($F$12:F79,F79),"О"&COUNTIF($F$12:F79,F79))) -> О9 | B79: 6 | C79: qqqqqqkkkkk | D79: 2 | E79: 811.6 | F79: оригинал | I79: Торг-12 № | J79: 49 | K79: 0 | L79: оригинал | M79: 199 | N79: 2017-01-03 | O79: qqqqqqkkkkk
A80: =IF(F80="","",IF(F80="копия","К"&COUNTIF($F$12:F80,F80),"О"&COUNTIF($F$12:F80,F80))) ->  | B80: 7 | D80: =IF(C80=0," ","кол-во?") ->  | E80: =IF(C80=0," ","укажи ") ->  | F80: =IF(C80=0,"","подлинность?") ->  | K80: 0 | M80: 199 | N80: 2017-01-03 | O80: 0
A81: =IF(F81="","",IF(F81="копия","К"&COUNTIF($F$12:F81,F81),"О"&COUNTIF($F$12:F81,F81))) ->  | B81: 8 | F81: =IF(C81=0,"","подлинность?") ->  | K81: 0 | M81: 199 | N81: 2017-01-03 | O81: 0
A82: =IF(F82="","",IF(F82="копия","К"&COUNTIF($F$12:F82,F82),"О"&COUNTIF($F$12:F82,F82))) ->  | B82: 9 | K82: 0 | M82: 199 | N82: 2017-01-03 | O82: 0
A83: =IF(F83="","",IF(F83="копия","К"&COUNTIF($F$12:F83,F83),"О"&COUNTIF($F$12:F83,F83))) ->  | B83: 10 | K83: 0 | M83: 199 | N83: 2017-01-03 | O83: 0
A84: =IF(F84="","",IF(F84="копия","К"&COUNTIF($F$12:F84,F84),"О"&COUNTIF($F$12:F84,F84))) ->  | B84: 11 | K84: 0 | M84: 199 | N84: 2017-01-03 | O84: 0
B86: Документы сдал | D86: =$D$24 -> должность Фамилия Имя Отчество, тел. 2-00-00 | I86: =F70 -> 2017-01-03 | J86: =NOW() -> 42764.63985
D87: (ФИО работника Общества, тлф) | H87: (подпись) | I87: (дата и время)
B88: Документы принял | F88: 0
D89: (ФИО ГС) | H89: (подпись) | I89: (дата и время)
B90: Документы возвращены | F90: 0
D91: (ФИО ГС) | H91: (подпись) | I91: (дата и время)
B92: Документы получены | F92: 0
D93: (ФИО работника Общества, тлф) | H93: (подпись) | I93: (дата и время)
F94: 0
F95: 0 | J95: Приложение №1
F96: 0
B97: Наименование подразделения | D97: =$D$4 -> вот такое подразделение
B98: ОСО (Фамилия Имя Отчество) | D98: =$D$5 -> Фамилия Имя Отчество
F99: 0
B100: Журнал приема-передачи Первичных документов
E101: от | F101: 2017-01-18 | G101: № | H101: =H70+1 -> 201
F102: 0
B103: № п/п | C103: Числовой идентификатор (штрих-код) | D103: Кол-во листов ПД | E103: п.ГДО | F103: Подлинность (оригинал/копия) | G103: ШК размещенного в ЭХД документа (заполняется в случае замены) | I103: Примечание
B104: 1 | C104: 2 | D104: 3 | E104: 4 | F104: 5 | G104: 6 | I104: 7
A105: =IF(F105="","",IF(F105="копия","К"&COUNTIF($F$12:F105,F105),"О"&COUNTIF($F$12:F105,F105))) ->  | B105: 1 | D105: =IF(C105=0," ","кол-во?") ->  | E105: =IF(C105=0," ","укажи ") ->  | F105: =IF(C105=0,"","подлинность?") ->  | I105: =IF(ISERROR(VLOOKUP(E105,$K$2:$L$10,2,FALSE))," ",VLOOKUP(E105,$K$2:$L$10,2,FALSE)) ->  | K105: 0 | M105: =$H$101 -> 201 | N105: =$F$101 -> 2017-01-18 | O105: =C105 -> 0
A106: =IF(F106="","",IF(F106="копия","К"&COUNTIF($F$12:F106,F106),"О"&COUNTIF($F$12:F106,F106))) ->  | B106: 2 | D106: =IF(C106=0," ","кол-во?") ->  | E106: =IF(C106=0," ","укажи ") ->  | F106: =IF(C106=0,"","подлинность?") ->  | K106: 0 | M106: =$H$101 -> 201 | N106: =$F$101 -> 2017-01-18 | O106: =C106 -> 0
A107: =IF(F107="","",IF(F107="копия","К"&COUNTIF($F$12:F107,F107),"О"&COUNTIF($F$12:F107,F107))) ->  | B107: 3 | K107: 0 | M107: 201 | N107: 2017-01-18 | O107: 0
A108: =IF(F108="","",IF(F108="копия","К"&COUNTIF($F$12:F108,F108),"О"&COUNTIF($F$12:F108,F108))) ->  | B108: 4 | K108: 0 | M108: 201 | N108: 2017-01-18 | O108: 0
A109: =IF(F109="","",IF(F109="копия","К"&COUNTIF($F$12:F109,F109),"О"&COUNTIF($F$12:F109,F109))) ->  | B109: 5 | K109: 0 | M109: 201 | N109: 2017-01-18 | O109: 0
A110: =IF(F110="","",IF(F110="копия","К"&COUNTIF($F$12:F110,F110),"О"&COUNTIF($F$12:F110,F110))) ->  | B110: 6 | K110: 0 | M110: 201 | N110: 2017-01-18 | O110: 0
A111: =IF(F111="","",IF(F111="копия","К"&COUNTIF($F$12:F111,F111),"О"&COUNTIF($F$12:F111,F111))) ->  | B111: 7 | K111: 0 | M111: 201 | N111: 2017-01-18 | O111: 0
A112: =IF(F112="","",IF(F112="копия","К"&COUNTIF($F$12:F112,F112),"О"&COUNTIF($F$12:F112,F112))) ->  | B112: 8 | K112: 0 | M112: 201 | N112: 2017-01-18 | O112: 0
A113: =IF(F113="","",IF(F113="копия","К"&COUNTIF($F$12:F113,F113),"О"&COUNTIF($F$12:F113,F113))) ->  | B113: 9 | K113: 0 | M113: 201 | N113: 2017-01-18 | O113: 0
A114: =IF(F114="","",IF(F114="копия","К"&COUNTIF($F$12:F114,F114),"О"&COUNTIF($F$12:F114,F114))) ->  | B114: 10 | K114: 0 | M114: 201 | N114: 2017-01-18 | O114: 0
A115: =IF(F115="","",IF(F115="копия","К"&COUNTIF($F$12:F115,F115),"О"&COUNTIF($F$12:F115,F115))) ->  | B115: 11 | K115: 0 | M115: 201 | N115: 2017-01-18 | O115: 0
B117: Документы сдал | D117: =$D$24 -> должность Фамилия Имя Отчество, тел. 2-00-00 | I117: =F101 -> 2017-01-18 | J117: =NOW() -> 42764.63985
D118: (ФИО работника Общества, тлф) | H118: (подпись) | I118: (дата и время)
B119: Документы принял | F119: 0
D120: (ФИО ГС) | H120: (подпись) | I120: (дата и время)
B121: Документы возвращены | F121: 0
D122: (ФИО ГС) | H122: (подпись) | I122: (дата и время)
B123: Документы получены | F123: 0
D124: (ФИО работника Общества, тлф) | H124: (подпись) | I124: (дата и время)
F125: 0
F126: 0 | J126: Приложение №1
F127: 0
B128: Наименование подразделения | D128: =$D$4 -> вот такое подразделение
B129: ОСО (Фамилия Имя Отчество) | D129: =$D$5 -> Фамилия Имя Отчество
F130: 0
B131: Журнал приема-передачи Первичных документов
E132: от | F132: 2017-02-23 | G132: № | H132: =H101+1 -> 202
F133: 0
B134: № п/п | C134: Числовой идентификатор (штрих-код) | D134: Кол-во листов ПД | E134: п.ГДО | F134: Подлинность (оригинал/копия) | G134: ШК размещенного в ЭХД документа (заполняется в случае замены) | I134: Примечание
B135: 1 | C135: 2 | D135: 3 | E135: 4 | F135: 5 | G135: 6 | I135: 7
A136: =IF(ISBLANK(F136),"",IF(F136="копия","К"&COUNTIF($F$12:F136,F136),"О"&COUNTIF($F$12:F136,F136))) -> О10 | B136: 1 | C136: nnnnnnnnfujh | D136: 1 | E136: 811.6 | F136: оригинал | G136: hhhhhhhhgggggggg | I136: =IF(ISERROR(VLOOKUP(E136,$K$2:$L$10,2,FALSE))," ",VLOOKUP(E136,$K$2:$L$10,2,FALSE)) -> Торг-12 № | J136: №490058 | K136: hhhhhhhhgggggggg | L136: оригинал | M136: =$H$132 -> 202 | N136: =$F$132 -> 2017-02-23 | O136: =C136 -> nnnnnnnnfujh
A137: =IF(ISBLANK(F137),"",IF(F137="копия","К"&COUNTIF($F$12:F137,F137),"О"&COUNTIF($F$12:F137,F137))) -> О11 | B137: 2 | C137: ..sdgj,,dfzsa | D137: 2 | E137: 811.5 | F137: оригинал | G137: kkkkkkkkkkrrgg | I137: МХ-1 | J137: № 490065 от 01.01.17 замена копии | K137: kkkkkkkkkkrrgg | L137: оригинал | M137: 202 | N137: 2017-02-23 | O137: =C137 -> ..sdgj,,dfzsa
A138: =IF(ISBLANK(F138),"",IF(F138="копия","К"&COUNTIF($F$12:F138,F138),"О"&COUNTIF($F$12:F138,F138))) -> К13 | B138: 3 | C138: ..sdgj,,dfzsaгаааааааа | D138: 2 | E138: 811.6 | F138: копия | I138: Торг-12 № | K138: 0 | L138: копия | M138: 202 | N138: 2017-02-23 | O138: ..sdgj,,dfzsaгаааааааа
A139: =IF(ISBLANK(F139),"",IF(F139="копия","К"&COUNTIF($F$12:F139,F139),"О"&COUNTIF($F$12:F139,F139))) -> К14 | B139: 4 | C139: ..sdgj,,dfzsaуууууууууу | D139: 6 | E139: 811.7 | F139: копия | K139: 0 | L139: копия | M139: 202 | N139: 2017-02-23 | O139: ..sdgj,,dfzsaуууууууууу
A140: =IF(ISBLANK(F140),"",IF(F140="копия","К"&COUNTIF($F$12:F140,F140),"О"&COUNTIF($F$12:F140,F140))) -> О1 | B140: 5 | D140: =IF(C140=0," ","кол-во?") ->  | E140: =IF(C140=0," ","укажи ") ->  | F140: =IF(C140=0," ","подлинность?") ->  | K140: 0 | M140: 202 | N140: 2017-02-23 | O140: 0
A141: =IF(ISBLANK(F141),"",IF(F141="копия","К"&COUNTIF($F$12:F141,F141),"О"&COUNTIF($F$12:F141,F141))) -> О2 | B141: 6 | J141: 555555 | K141: =G141 -> 0 | L141: =F141 ->  | M141: 202 | N141: 2017-02-23 | O141: 0
A142: =IF(ISBLANK(F142),"",IF(F142="копия","К"&COUNTIF($F$12:F142,F142),"О"&COUNTIF($F$12:F142,F142))) -> О3 | B142: 7 | K142: 0 | M142: 202 | N142: 2017-02-23 | O142: 0
A143: =IF(ISBLANK(F143),"",IF(F143="копия","К"&COUNTIF($F$12:F143,F143),"О"&COUNTIF($F$12:F143,F143))) -> О4 | B143: 8 | K143: 0 | M143: 202 | N143: 2017-02-23 | O143: 0
A144: =IF(ISBLANK(F144),"",IF(F144="копия","К"&COUNTIF($F$12:F144,F144),"О"&COUNTIF($F$12:F144,F144))) -> О5 | B144: 9 | K144: 0 | M144: 202 | N144: 2017-02-23 | O144: 0
A145: =IF(ISBLANK(F145),"",IF(F145="копия","К"&COUNTIF($F$12:F145,F145),"О"&COUNTIF($F$12:F145,F145))) -> О6 | B145: 10 | K145: 0 | M145: 202 | N145: 2017-02-23 | O145: 0
A146: =IF(ISBLANK(F146),"",IF(F146="копия","К"&COUNTIF($F$12:F146,F146),"О"&COUNTIF($F$12:F146,F146))) -> О7 | B146: 11 | K146: 0 | M146: 202 | N146: 2017-02-23 | O146: 0
F147: 0
B148: Документы сдал | D148: =$D$24 -> должность Фамилия Имя Отчество, тел. 2-00-00 | I148: =F132 -> 2017-02-23 | J148: =NOW() -> 42764.63985
D149: (ФИО работника Общества, тлф) | H149: (подпись) | I149: (дата и время)
B150: Документы принял | F150: 0
D151: (ФИО ГС) | H151: (подпись) | I151: (дата и время)
B152: Документы возвращены | F152: 0
D153: (ФИО ГС) | H153: (подпись) | I153: (дата и время)
B154: Документы получены | F154: 0
D155: (ФИО работника Общества, тлф) | H155: (подпись) | I155: (дата и время)
F156: 0

Sheet поиск копий
C1: К | H1: те столбцы в которые нужно ввести данные если повторно отправлен оригинал, вместо ранее отправленной копии
B2: № реестра | C2: дата реестра | D2: Числовой идентификатор (штрих-код) | E2: Кол-во | F2: п.ГДО | G2: Подлинность | H2: Подлинность | I2: (штрих-код) в случае замены | J2: № рестра в случае замены | K2: дата в случае замены | L2: Примечание при отправке копии
A3: =$C$1&ROW()-2 -> К1 | B3: =IF(ISERROR(VLOOKUP(A3,Январь!$A$10:$Q$154,13,FALSE))," ",VLOOKUP(A3,Январь!$A$10:$Q$154,13,FALSE)) -> 198 | C3: =IF(ISERROR(VLOOKUP(A3,Январь!$A$10:$Q$154,14,FALSE))," ",VLOOKUP(A3,Январь!$A$10:$Q$154,14,FALSE)) -> 2016-12-31 | D3: =IF(ISERROR(VLOOKUP(A3,Январь!$A$10:$J$154,3,FALSE))," ",VLOOKUP(A3,Январь!$A$10:$J$154,3,FALSE)) -> hhhhhhhhgggggggg | E3: =IF(ISERROR(VLOOKUP(A3,Январь!$A$10:$J$154,4,FALSE))," ",VLOOKUP(A3,Январь!$A$10:$J$154,4,FALSE)) -> 1 | F3: =IF(ISERROR(VLOOKUP(A3,Январь!$A$10:$J$154,5,FALSE))," ",VLOOKUP(A3,Январь!$A$10:$J$154,5,FALSE)) -> 811.6 | G3: =IF(ISERROR(VLOOKUP(A3,Январь!$A$10:$J$154,6,FALSE))," ",VLOOKUP(A3,Январь!$A$10:$J$154,6,FALSE)) -> копия | H3: =IF(ISERROR(VLOOKUP(D3,Январь!$K$12:$Q$154,2,FALSE))," ",VLOOKUP(D3,Январь!$K$12:$Q$154,2,FALSE)) -> оригинал | I3: =IF(ISERROR(VLOOKUP(D3,Январь!$K$12:$Q$154,5,FALSE))," ",VLOOKUP(D3,Январь!$K$12:$Q$154,5,FALSE)) -> nnnnnnnnfujh | J3: =IF(ISERROR(VLOOKUP(D3,Январь!$K$12:$Q$154,3,FALSE))," ",VLOOKUP(D3,Январь!$K$12:$Q$154,3,FALSE)) -> 202 | K3: =IF(ISERROR(VLOOKUP(D3,Январь!$K$12:$Q$154,4,FALSE))," ",VLOOKUP(D3,Январь!$K$12:$Q$154,4,FALSE)) -> 2017-02-23 | L3: =IF(ISERROR(VLOOKUP(A3,Январь!$A$10:$J$154,9,FALSE))," ",VLOOKUP(A3,Январь!$A$10:$J$154,9,FALSE)) -> Торг-12 № | M3: =IF(ISERROR(VLOOKUP(A3,Январь!$A$10:$J$154,10,FALSE))," ",VLOOKUP(A3,Январь!$A$10:$J$154,10,FALSE)) -> 490058
A4: =$C$1&ROW()-2 -> К2 | B4: =IF(ISERROR(VLOOKUP(A4,Январь!$A$10:$Q$154,13,FALSE))," ",VLOOKUP(A4,Январь!$A$10:$Q$154,13,FALSE)) -> 198 | C4: =IF(ISERROR(VLOOKUP(A4,Январь!$A$10:$Q$154,14,FALSE))," ",VLOOKUP(A4,Январь!$A$10:$Q$154,14,FALSE)) -> 2016-12-31 | D4: =IF(ISERROR(VLOOKUP(A4,Январь!$A$10:$J$154,3,FALSE))," ",VLOOKUP(A4,Январь!$A$10:$J$154,3,FALSE)) -> kkkkkkkkkkrrgg | E4: =IF(ISERROR(VLOOKUP(A4,Январь!$A$10:$J$154,4,FALSE))," ",VLOOKUP(A4,Январь!$A$10:$J$154,4,FALSE)) -> 2 | F4: =IF(ISERROR(VLOOKUP(A4,Январь!$A$10:$J$154,5,FALSE))," ",VLOOKUP(A4,Январь!$A$10:$J$154,5,FALSE)) -> 811.6 | G4: =IF(ISERROR(VLOOKUP(A4,Январь!$A$10:$J$154,6,FALSE))," ",VLOOKUP(A4,Январь!$A$10:$J$154,6,FALSE)) -> копия | H4: =IF(ISERROR(VLOOKUP(D4,Январь!$K$12:$Q$154,2,FALSE))," ",VLOOKUP(D4,Январь!$K$12:$Q$154,2,FALSE)) -> оригинал | I4: =IF(ISERROR(VLOOKUP(D4,Январь!$K$12:$Q$154,5,FALSE))," ",VLOOKUP(D4,Январь!$K$12:$Q$154,5,FALSE)) -> ..sdgj,,dfzsa | J4: =IF(ISERROR(VLOOKUP(D4,Январь!$K$12:$Q$154,3,FALSE))," ",VLOOKUP(D4,Январь!$K$12:$Q$154,3,FALSE)) -> 202 | K4: =IF(ISERROR(VLOOKUP(D4,Январь!$K$12:$Q$154,4,FALSE))," ",VLOOKUP(D4,Январь!$K$12:$Q$154,4,FALSE)) -> 2017-02-23 | L4: =IF(ISERROR(VLOOKUP(A4,Январь!$A$10:$J$154,9,FALSE))," ",VLOOKUP(A4,Январь!$A$10:$J$154,9,FALSE)) -> Торг-12 № | M4: =IF(ISERROR(VLOOKUP(A4,Январь!$A$10:$J$154,10,FALSE))," ",VLOOKUP(A4,Январь!$A$10:$J$154,10,FALSE)) -> 490065 от 01.01.17
A5: К3 | B5: =IF(ISERROR(VLOOKUP(A5,Январь!$A$10:$Q$154,13,FALSE))," ",VLOOKUP(A5,Январь!$A$10:$Q$154,13,FALSE)) -> 198 | C5: =IF(ISERROR(VLOOKUP(A5,Январь!$A$10:$Q$154,14,FALSE))," ",VLOOKUP(A5,Январь!$A$10:$Q$154,14,FALSE)) -> 2016-12-31 | D5: =IF(ISERROR(VLOOKUP(A5,Январь!$A$10:$J$154,3,FALSE))," ",VLOOKUP(A5,Январь!$A$10:$J$154,3,FALSE)) -> мтстим мисми | E5: =IF(ISERROR(VLOOKUP(A5,Январь!$A$10:$J$154,4,FALSE))," ",VLOOKUP(A5,Январь!$A$10:$J$154,4,FALSE)) -> 1 | F5: =IF(ISERROR(VLOOKUP(A5,Январь!$A$10:$J$154,5,FALSE))," ",VLOOKUP(A5,Январь!$A$10:$J$154,5,FALSE)) -> 811.5 | G5: =IF(ISERROR(VLOOKUP(A5,Январь!$A$10:$J$154,6,FALSE))," ",VLOOKUP(A5,Январь!$A$10:$J$154,6,FALSE)) -> копия | H5: =IF(ISERROR(VLOOKUP(D5,Январь!$K$12:$Q$154,2,FALSE))," ",VLOOKUP(D5,Январь!$K$12:$Q$154,2,FALSE)) ->  | I5: =IF(ISERROR(VLOOKUP(D5,Январь!$K$12:$Q$154,5,FALSE))," ",VLOOKUP(D5,Январь!$K$12:$Q$154,5,FALSE)) ->  | J5: =IF(ISERROR(VLOOKUP(D5,Январь!$K$12:$Q$154,3,FALSE))," ",VLOOKUP(D5,Январь!$K$12:$Q$154,3,FALSE)) ->  | K5: =IF(ISERROR(VLOOKUP(D5,Январь!$K$12:$Q$154,4,FALSE))," ",VLOOKUP(D5,Январь!$K$12:$Q$154,4,FALSE)) ->  | L5: =IF(ISERROR(VLOOKUP(A5,Январь!$A$10:$J$154,9,FALSE))," ",VLOOKUP(A5,Январь!$A$10:$J$154,9,FALSE)) -> МХ-1 | M5: =IF(ISERROR(VLOOKUP(A5,Январь!$A$10:$J$154,10,FALSE))," ",VLOOKUP(A5,Январь!$A$10:$J$154,10,FALSE)) -> 490035
A6: К4 | B6: =IF(ISERROR(VLOOKUP(A6,Январь!$A$10:$Q$154,13,FALSE))," ",VLOOKUP(A6,Январь!$A$10:$Q$154,13,FALSE)) -> 198 | C6: =IF(ISERROR(VLOOKUP(A6,Январь!$A$10:$Q$154,14,FALSE))," ",VLOOKUP(A6,Январь!$A$10:$Q$154,14,FALSE)) -> 2016-12-31 | D6: =IF(ISERROR(VLOOKUP(A6,Январь!$A$10:$J$154,3,FALSE))," ",VLOOKUP(A6,Январь!$A$10:$J$154,3,FALSE)) -> мтс мисми | E6: =IF(ISERROR(VLOOKUP(A6,Январь!$A$10:$J$154,4,FALSE))," ",VLOOKUP(A6,Январь!$A$10:$J$154,4,FALSE)) -> 1 | F6: =IF(ISERROR(VLOOKUP(A6,Январь!$A$10:$J$154,5,FALSE))," ",VLOOKUP(A6,Январь!$A$10:$J$154,5,FALSE)) -> 811.6 | G6: =IF(ISERROR(VLOOKUP(A6,Январь!$A$10:$J$154,6,FALSE))," ",VLOOKUP(A6,Январь!$A$10:$J$154,6,FALSE)) -> копия | H6: =IF(ISERROR(VLOOKUP(D6,Январь!$K$12:$Q$154,2,FALSE))," ",VLOOKUP(D6,Январь!$K$12:$Q$154,2,FALSE)) ->  | I6: =IF(ISERROR(VLOOKUP(D6,Январь!$K$12:$Q$154,5,FALSE))," ",VLOOKUP(D6,Январь!$K$12:$Q$154,5,FALSE)) ->  | J6: =IF(ISERROR(VLOOKUP(D6,Январь!$K$12:$Q$154,3,FALSE))," ",VLOOKUP(D6,Январь!$K$12:$Q$154,3,FALSE)) ->  | K6: =IF(ISERROR(VLOOKUP(D6,Январь!$K$12:$Q$154,4,FALSE))," ",VLOOKUP(D6,Январь!$K$12:$Q$154,4,FALSE)) ->  | L6: =IF(ISERROR(VLOOKUP(A6,Январь!$A$10:$J$154,9,FALSE))," ",VLOOKUP(A6,Январь!$A$10:$J$154,9,FALSE)) -> Торг-12 № | M6: =IF(ISERROR(VLOOKUP(A6,Январь!$A$10:$J$154,10,FALSE))," ",VLOOKUP(A6,Январь!$A$10:$J$154,10,FALSE)) -> 0
A7: К5 | B7: =IF(ISERROR(VLOOKUP(A7,Январь!$A$10:$Q$154,13,FALSE))," ",VLOOKUP(A7,Январь!$A$10:$Q$154,13,FALSE)) -> 198 | C7: =IF(ISERROR(VLOOKUP(A7,Январь!$A$10:$Q$154,14,FALSE))," ",VLOOKUP(A7,Январь!$A$10:$Q$154,14,FALSE)) -> 2016-12-31 | D7: =IF(ISERROR(VLOOKUP(A7,Январь!$A$10:$J$154,3,FALSE))," ",VLOOKUP(A7,Январь!$A$10:$J$154,3,FALSE)) -> мтстим мhhhhми | E7: =IF(ISERROR(VLOOKUP(A7,Январь!$A$10:$J$154,4,FALSE))," ",VLOOKUP(A7,Январь!$A$10:$J$154,4,FALSE)) -> 1 | F7: =IF(ISERROR(VLOOKUP(A7,Январь!$A$10:$J$154,5,FALSE))," ",VLOOKUP(A7,Январь!$A$10:$J$154,5,FALSE)) -> 811.6 | G7: =IF(ISERROR(VLOOKUP(A7,Январь!$A$10:$J$154,6,FALSE))," ",VLOOKUP(A7,Январь!$A$10:$J$154,6,FALSE)) -> копия | H7: =IF(ISERROR(VLOOKUP(D7,Январь!$K$12:$Q$154,2,FALSE))," ",VLOOKUP(D7,Январь!$K$12:$Q$154,2,FALSE)) ->  | I7: =IF(ISERROR(VLOOKUP(D7,Январь!$K$12:$Q$154,5,FALSE))," ",VLOOKUP(D7,Январь!$K$12:$Q$154,5,FALSE)) ->  | J7: =IF(ISERROR(VLOOKUP(D7,Январь!$K$12:$Q$154,3,FALSE))," ",VLOOKUP(D7,Январь!$K$12:$Q$154,3,FALSE)) ->  | K7: =IF(ISERROR(VLOOKUP(D7,Январь!$K$12:$Q$154,4,FALSE))," ",VLOOKUP(D7,Январь!$K$12:$Q$154,4,FALSE)) ->  | L7: =IF(ISERROR(VLOOKUP(A7,Январь!$A$10:$J$154,9,FALSE))," ",VLOOKUP(A7,Январь!$A$10:$J$154,9,FALSE)) -> Торг-12 № | M7: =IF(ISERROR(VLOOKUP(A7,Январь!$A$10:$J$154,10,FALSE))," ",VLOOKUP(A7,Январь!$A$10:$J$154,10,FALSE)) -> 0
A8: К6 | B8: =IF(ISERROR(VLOOKUP(A8,Январь!$A$10:$Q$154,13,FALSE))," ",VLOOKUP(A8,Январь!$A$10:$Q$154,13,FALSE)) -> 199 | C8: =IF(ISERROR(VLOOKUP(A8,Январь!$A$10:$Q$154,14,FALSE))," ",VLOOKUP(A8,Январь!$A$10:$Q$154,14,FALSE)) -> 2017-01-03 | D8: =IF(ISERROR(VLOOKUP(A8,Январь!$A$10:$J$154,3,FALSE))," ",VLOOKUP(A8,Январь!$A$10:$J$154,3,FALSE)) -> рерпопр | E8: =IF(ISERROR(VLOOKUP(A8,Январь!$A$10:$J$154,4,FALSE))," ",VLOOKUP(A8,Январь!$A$10:$J$154,4,FALSE)) -> 1 | F8: =IF(ISERROR(VLOOKUP(A8,Январь!$A$10:$J$154,5,FALSE))," ",VLOOKUP(A8,Январь!$A$10:$J$154,5,FALSE)) -> 811.6 | G8: =IF(ISERROR(VLOOKUP(A8,Январь!$A$10:$J$154,6,FALSE))," ",VLOOKUP(A8,Январь!$A$10:$J$154,6,FALSE)) -> копия | H8: =IF(ISERROR(VLOOKUP(D8,Январь!$K$12:$Q$154,2,FALSE))," ",VLOOKUP(D8,Январь!$K$12:$Q$154,2,FALSE)) ->  | I8: =IF(ISERROR(VLOOKUP(D8,Январь!$K$12:$Q$154,5,FALSE))," ",VLOOKUP(D8,Январь!$K$12:$Q$154,5,FALSE)) ->  | J8: =IF(ISERROR(VLOOKUP(D8,Январь!$K$12:$Q$154,3,FALSE))," ",VLOOKUP(D8,Январь!$K$12:$Q$154,3,FALSE)) ->  | K8: =IF(ISERROR(VLOOKUP(D8,Январь!$K$12:$Q$154,4,FALSE))," ",VLOOKUP(D8,Январь!$K$12:$Q$154,4,FALSE)) ->  | L8: =IF(ISERROR(VLOOKUP(A8,Январь!$A$10:$J$154,9,FALSE))," ",VLOOKUP(A8,Январь!$A$10:$J$154,9,FALSE)) -> Торг-12 № | M8: =IF(ISERROR(VLOOKUP(A8,Январь!$A$10:$J$154,10,FALSE))," ",VLOOKUP(A8,Январь!$A$10:$J$154,10,FALSE)) -> 490087
A9: К7 | B9: =IF(ISERROR(VLOOKUP(A9,Январь!$A$10:$Q$154,13,FALSE))," ",VLOOKUP(A9,Январь!$A$10:$Q$154,13,FALSE)) -> 199 | C9: =IF(ISERROR(VLOOKUP(A9,Январь!$A$10:$Q$154,14,FALSE))," ",VLOOKUP(A9,Январь!$A$10:$Q$154,14,FALSE)) -> 2017-01-03 | D9: =IF(ISERROR(VLOOKUP(A9,Январь!$A$10:$J$154,3,FALSE))," ",VLOOKUP(A9,Январь!$A$10:$J$154,3,FALSE)) -> wwwwwwwwwwww | E9: =IF(ISERROR(VLOOKUP(A9,Январь!$A$10:$J$154,4,FALSE))," ",VLOOKUP(A9,Январь!$A$10:$J$154,4,FALSE)) -> 2 | F9: =IF(ISERROR(VLOOKUP(A9,Январь!$A$10:$J$154,5,FALSE))," ",VLOOKUP(A9,Январь!$A$10:$J$154,5,FALSE)) -> 811.6 | G9: =IF(ISERROR(VLOOKUP(A9,Январь!$A$10:$J$154,6,FALSE))," ",VLOOKUP(A9,Январь!$A$10:$J$154,6,FALSE)) -> копия | H9: =IF(ISERROR(VLOOKUP(D9,Январь!$K$12:$Q$154,2,FALSE))," ",VLOOKUP(D9,Январь!$K$12:$Q$154,2,FALSE)) ->  | I9: =IF(ISERROR(VLOOKUP(D9,Январь!$K$12:$Q$154,5,FALSE))," ",VLOOKUP(D9,Январь!$K$12:$Q$154,5,FALSE)) ->  | J9: =IF(ISERROR(VLOOKUP(D9,Январь!$K$12:$Q$154,3,FALSE))," ",VLOOKUP(D9,Январь!$K$12:$Q$154,3,FALSE)) ->  | K9: =IF(ISERROR(VLOOKUP(D9,Январь!$K$12:$Q$154,4,FALSE))," ",VLOOKUP(D9,Январь!$K$12:$Q$154,4,FALSE)) ->  | L9: =IF(ISERROR(VLOOKUP(A9,Январь!$A$10:$J$154,9,FALSE))," ",VLOOKUP(A9,Январь!$A$10:$J$154,9,FALSE)) -> Торг-12 № | M9: =IF(ISERROR(VLOOKUP(A9,Январь!$A$10:$J$154,10,FALSE))," ",VLOOKUP(A9,Январь!$A$10:$J$154,10,FALSE)) -> 540088 05.01.2017
A10: К8 | B10: =IF(ISERROR(VLOOKUP(A10,Январь!$A$10:$Q$154,13,FALSE))," ",VLOOKUP(A10,Январь!$A$10:$Q$154,13,FALSE)) -> 199 | C10: =IF(ISERROR(VLOOKUP(A10,Январь!$A$10:$Q$154,14,FALSE))," ",VLOOKUP(A10,Январь!$A$10:$Q$154,14,FALSE)) -> 2017-01-03 | D10: =IF(ISERROR(VLOOKUP(A10,Январь!$A$10:$J$154,3,FALSE))," ",VLOOKUP(A10,Январь!$A$10:$J$154,3,FALSE)) -> llllllllllllll | E10: =IF(ISERROR(VLOOKUP(A10,Январь!$A$10:$J$154,4,FALSE))," ",VLOOKUP(A10,Январь!$A$10:$J$154,4,FALSE)) -> 4 | F10: =IF(ISERROR(VLOOKUP(A10,Январь!$A$10:$J$154,5,FALSE))," ",VLOOKUP(A10,Январь!$A$10:$J$154,5,FALSE)) -> 811.6 | G10: =IF(ISERROR(VLOOKUP(A10,Январь!$A$10:$J$154,6,FALSE))," ",VLOOKUP(A10,Январь!$A$10:$J$154,6,FALSE)) -> копия | H10: =IF(ISERROR(VLOOKUP(D10,Январь!$K$12:$Q$154,2,FALSE))," ",VLOOKUP(D10,Январь!$K$12:$Q$154,2,FALSE)) ->  | I10: =IF(ISERROR(VLOOKUP(D10,Январь!$K$12:$Q$154,5,FALSE))," ",VLOOKUP(D10,Январь!$K$12:$Q$154,5,FALSE)) ->  | J10: =IF(ISERROR(VLOOKUP(D10,Январь!$K$12:$Q$154,3,FALSE))," ",VLOOKUP(D10,Январь!$K$12:$Q$154,3,FALSE)) ->  | K10: =IF(ISERROR(VLOOKUP(D10,Январь!$K$12:$Q$154,4,FALSE))," ",VLOOKUP(D10,Январь!$K$12:$Q$154,4,FALSE)) ->  | L10: =IF(ISERROR(VLOOKUP(A10,Январь!$A$10:$J$154,9,FALSE))," ",VLOOKUP(A10,Январь!$A$10:$J$154,9,FALSE)) -> Торг-12 № | M10: =IF(ISERROR(VLOOKUP(A10,Январь!$A$10:$J$154,10,FALSE))," ",VLOOKUP(A10,Январь!$A$10:$J$154,10,FALSE)) -> 12 ЗАО "Пупкин"
A11: К9 | B11: =IF(ISERROR(VLOOKUP(A11,Январь!$A$10:$Q$154,13,FALSE))," ",VLOOKUP(A11,Январь!$A$10:$Q$154,13,FALSE)) -> 199 | C11: =IF(ISERROR(VLOOKUP(A11,Январь!$A$10:$Q$154,14,FALSE))," ",VLOOKUP(A11,Январь!$A$10:$Q$154,14,FALSE)) -> 2017-01-03 | D11: =IF(ISERROR(VLOOKUP(A11,Январь!$A$10:$J$154,3,FALSE))," ",VLOOKUP(A11,Январь!$A$10:$J$154,3,FALSE)) -> ыыыыыыы | E11: =IF(ISERROR(VLOOKUP(A11,Январь!$A$10:$J$154,4,FALSE))," ",VLOOKUP(A11,Январь!$A$10:$J$154,4,FALSE)) -> 2 | F11: =IF(ISERROR(VLOOKUP(A11,Январь!$A$10:$J$154,5,FALSE))," ",VLOOKUP(A11,Январь!$A$10:$J$154,5,FALSE)) -> 811.6 | G11: =IF(ISERROR(VLOOKUP(A11,Январь!$A$10:$J$154,6,FALSE))," ",VLOOKUP(A11,Январь!$A$10:$J$154,6,FALSE)) -> копия | H11: =IF(ISERROR(VLOOKUP(D11,Январь!$K$12:$Q$154,2,FALSE))," ",VLOOKUP(D11,Январь!$K$12:$Q$154,2,FALSE)) ->  | I11: =IF(ISERROR(VLOOKUP(D11,Январь!$K$12:$Q$154,5,FALSE))," ",VLOOKUP(D11,Январь!$K$12:$Q$154,5,FALSE)) ->  | J11: =IF(ISERROR(VLOOKUP(D11,Январь!$K$12:$Q$154,3,FALSE))," ",VLOOKUP(D11,Январь!$K$12:$Q$154,3,FALSE)) ->  | K11: =IF(ISERROR(VLOOKUP(D11,Январь!$K$12:$Q$154,4,FALSE))," ",VLOOKUP(D11,Январь!$K$12:$Q$154,4,FALSE)) ->  | L11: =IF(ISERROR(VLOOKUP(A11,Январь!$A$10:$J$154,9,FALSE))," ",VLOOKUP(A11,Январь!$A$10:$J$154,9,FALSE)) -> Торг-12 № | M11: =IF(ISERROR(VLOOKUP(A11,Январь!$A$10:$J$154,10,FALSE))," ",VLOOKUP(A11,Январь!$A$10:$J$154,10,FALSE)) -> 11 от 02.01.17 ООО"Рога и копыта
A12: К10 | B12: =IF(ISERROR(VLOOKUP(A12,Январь!$A$10:$Q$154,13,FALSE))," ",VLOOKUP(A12,Январь!$A$10:$Q$154,13,FALSE)) -> 199 | C12: =IF(ISERROR(VLOOKUP(A12,Январь!$A$10:$Q$154,14,FALSE))," ",VLOOKUP(A12,Январь!$A$10:$Q$154,14,FALSE)) -> 2017-01-03 | D12: =IF(ISERROR(VLOOKUP(A12,Январь!$A$10:$J$154,3,FALSE))," ",VLOOKUP(A12,Январь!$A$10:$J$154,3,FALSE)) -> gggggggpppp | E12: =IF(ISERROR(VLOOKUP(A12,Январь!$A$10:$J$154,4,FALSE))," ",VLOOKUP(A12,Январь!$A$10:$J$154,4,FALSE)) -> 1 | F12: =IF(ISERROR(VLOOKUP(A12,Январь!$A$10:$J$154,5,FALSE))," ",VLOOKUP(A12,Январь!$A$10:$J$154,5,FALSE)) -> 811.6 | G12: =IF(ISERROR(VLOOKUP(A12,Январь!$A$10:$J$154,6,FALSE))," ",VLOOKUP(A12,Январь!$A$10:$J$154,6,FALSE)) -> копия | H12: =IF(ISERROR(VLOOKUP(D12,Январь!$K$12:$Q$154,2,FALSE))," ",VLOOKUP(D12,Январь!$K$12:$Q$154,2,FALSE)) ->  | I12: =IF(ISERROR(VLOOKUP(D12,Январь!$K$12:$Q$154,5,FALSE))," ",VLOOKUP(D12,Январь!$K$12:$Q$154,5,FALSE)) ->  | J12: =IF(ISERROR(VLOOKUP(D12,Январь!$K$12:$Q$154,3,FALSE))," ",VLOOKUP(D12,Январь!$K$12:$Q$154,3,FALSE)) ->  | K12: =IF(ISERROR(VLOOKUP(D12,Январь!$K$12:$Q$154,4,FALSE))," ",VLOOKUP(D12,Январь!$K$12:$Q$154,4,FALSE)) ->  | L12: =IF(ISERROR(VLOOKUP(A12,Январь!$A$10:$J$154,9,FALSE))," ",VLOOKUP(A12,Январь!$A$10:$J$154,9,FALSE)) -> Торг-12 № | M12: =IF(ISERROR(VLOOKUP(A12,Январь!$A$10:$J$154,10,FALSE))," ",VLOOKUP(A12,Январь!$A$10:$J$154,10,FALSE)) -> 569
A13: К11 | B13: =IF(ISERROR(VLOOKUP(A13,Январь!$A$10:$Q$154,13,FALSE))," ",VLOOKUP(A13,Январь!$A$10:$Q$154,13,FALSE)) -> 199 | C13: =IF(ISERROR(VLOOKUP(A13,Январь!$A$10:$Q$154,14,FALSE))," ",VLOOKUP(A13,Январь!$A$10:$Q$154,14,FALSE)) -> 2017-01-03 | D13: =IF(ISERROR(VLOOKUP(A13,Январь!$A$10:$J$154,3,FALSE))," ",VLOOKUP(A13,Январь!$A$10:$J$154,3,FALSE)) -> sdееееееdd | E13: =IF(ISERROR(VLOOKUP(A13,Январь!$A$10:$J$154,4,FALSE))," ",VLOOKUP(A13,Январь!$A$10:$J$154,4,FALSE)) -> 5 | F13: =IF(ISERROR(VLOOKUP(A13,Январь!$A$10:$J$154,5,FALSE))," ",VLOOKUP(A13,Январь!$A$10:$J$154,5,FALSE)) -> 811.6 | G13: =IF(ISERROR(VLOOKUP(A13,Январь!$A$10:$J$154,6,FALSE))," ",VLOOKUP(A13,Январь!$A$10:$J$154,6,FALSE)) -> копия | H13: =IF(ISERROR(VLOOKUP(D13,Январь!$K$12:$Q$154,2,FALSE))," ",VLOOKUP(D13,Январь!$K$12:$Q$154,2,FALSE)) ->  | I13: =IF(ISERROR(VLOOKUP(D13,Январь!$K$12:$Q$154,5,FALSE))," ",VLOOKUP(D13,Январь!$K$12:$Q$154,5,FALSE)) ->  | J13: =IF(ISERROR(VLOOKUP(D13,Январь!$K$12:$Q$154,3,FALSE))," ",VLOOKUP(D13,Январь!$K$12:$Q$154,3,FALSE)) ->  | K13: =IF(ISERROR(VLOOKUP(D13,Январь!$K$12:$Q$154,4,FALSE))," ",VLOOKUP(D13,Январь!$K$12:$Q$154,4,FALSE)) ->  | L13: =IF(ISERROR(VLOOKUP(A13,Январь!$A$10:$J$154,9,FALSE))," ",VLOOKUP(A13,Январь!$A$10:$J$154,9,FALSE)) -> Торг-12 № | M13: =IF(ISERROR(VLOOKUP(A13,Январь!$A$10:$J$154,10,FALSE))," ",VLOOKUP(A13,Январь!$A$10:$J$154,10,FALSE)) -> 455-02
A14: К12 | B14: =IF(ISERROR(VLOOKUP(A14,Январь!$A$10:$Q$154,13,FALSE))," ",VLOOKUP(A14,Январь!$A$10:$Q$154,13,FALSE)) -> 199 | C14: =IF(ISERROR(VLOOKUP(A14,Январь!$A$10:$Q$154,14,FALSE))," ",VLOOKUP(A14,Январь!$A$10:$Q$154,14,FALSE)) -> 2017-01-03 | D14: =IF(ISERROR(VLOOKUP(A14,Январь!$A$10:$J$154,3,FALSE))," ",VLOOKUP(A14,Январь!$A$10:$J$154,3,FALSE)) -> iiwwwwwwwwwiii | E14: =IF(ISERROR(VLOOKUP(A14,Январь!$A$10:$J$154,4,FALSE))," ",VLOOKUP(A14,Январь!$A$10:$J$154,4,FALSE)) -> 1 | F14: =IF(ISERROR(VLOOKUP(A14,Январь!$A$10:$J$154,5,FALSE))," ",VLOOKUP(A14,Январь!$A$10:$J$154,5,FALSE)) -> 811.6 | G14: =IF(ISERROR(VLOOKUP(A14,Январь!$A$10:$J$154,6,FALSE))," ",VLOOKUP(A14,Январь!$A$10:$J$154,6,FALSE)) -> копия | H14: =IF(ISERROR(VLOOKUP(D14,Январь!$K$12:$Q$154,2,FALSE))," ",VLOOKUP(D14,Январь!$K$12:$Q$154,2,FALSE)) ->  | I14: =IF(ISERROR(VLOOKUP(D14,Январь!$K$12:$Q$154,5,FALSE))," ",VLOOKUP(D14,Январь!$K$12:$Q$154,5,FALSE)) ->  | J14: =IF(ISERROR(VLOOKUP(D14,Январь!$K$12:$Q$154,3,FALSE))," ",VLOOKUP(D14,Январь!$K$12:$Q$154,3,FALSE)) ->  | K14: =IF(ISERROR(VLOOKUP(D14,Январь!$K$12:$Q$154,4,FALSE))," ",VLOOKUP(D14,Январь!$K$12:$Q$154,4,FALSE)) ->  | L14: =IF(ISERROR(VLOOKUP(A14,Январь!$A$10:$J$154,9,FALSE))," ",VLOOKUP(A14,Январь!$A$10:$J$154,9,FALSE)) -> Торг-12 № | M14: =IF(ISERROR(VLOOKUP(A14,Январь!$A$10:$J$154,10,FALSE))," ",VLOOKUP(A14,Январь!$A$10:$J$154,10,FALSE)) -> 123456
A15: К13 | B15: =IF(ISERROR(VLOOKUP(A15,Январь!$A$10:$Q$154,13,FALSE))," ",VLOOKUP(A15,Январь!$A$10:$Q$154,13,FALSE)) -> 202 | C15: =IF(ISERROR(VLOOKUP(A15,Январь!$A$10:$Q$154,14,FALSE))," ",VLOOKUP(A15,Январь!$A$10:$Q$154,14,FALSE)) -> 2017-02-23 | D15: =IF(ISERROR(VLOOKUP(A15,Январь!$A$10:$J$154,3,FALSE))," ",VLOOKUP(A15,Январь!$A$10:$J$154,3,FALSE)) -> ..sdgj,,dfzsaгаааааааа | E15: =IF(ISERROR(VLOOKUP(A15,Январь!$A$10:$J$154,4,FALSE))," ",VLOOKUP(A15,Январь!$A$10:$J$154,4,FALSE)) -> 2 | F15: =IF(ISERROR(VLOOKUP(A15,Январь!$A$10:$J$154,5,FALSE))," ",VLOOKUP(A15,Январь!$A$10:$J$154,5,FALSE)) -> 811.6 | G15: =IF(ISERROR(VLOOKUP(A15,Январь!$A$10:$J$154,6,FALSE))," ",VLOOKUP(A15,Январь!$A$10:$J$154,6,FALSE)) -> копия | H15: =IF(ISERROR(VLOOKUP(D15,Январь!$K$12:$Q$154,2,FALSE))," ",VLOOKUP(D15,Январь!$K$12:$Q$154,2,FALSE)) ->  | I15: =IF(ISERROR(VLOOKUP(D15,Январь!$K$12:$Q$154,5,FALSE))," ",VLOOKUP(D15,Январь!$K$12:$Q$154,5,FALSE)) ->  | J15: =IF(ISERROR(VLOOKUP(D15,Январь!$K$12:$Q$154,3,FALSE))," ",VLOOKUP(D15,Январь!$K$12:$Q$154,3,FALSE)) ->  | K15: =IF(ISERROR(VLOOKUP(D15,Январь!$K$12:$Q$154,4,FALSE))," ",VLOOKUP(D15,Январь!$K$12:$Q$154,4,FALSE)) ->  | L15: =IF(ISERROR(VLOOKUP(A15,Январь!$A$10:$J$154,9,FALSE))," ",VLOOKUP(A15,Январь!$A$10:$J$154,9,FALSE)) -> Торг-12 № | M15: =IF(ISERROR(VLOOKUP(A15,Январь!$A$10:$J$154,10,FALSE))," ",VLOOKUP(A15,Январь!$A$10:$J$154,10,FALSE)) -> 0
A16: К14 | B16: =IF(ISERROR(VLOOKUP(A16,Январь!$A$10:$Q$154,13,FALSE))," ",VLOOKUP(A16,Январь!$A$10:$Q$154,13,FALSE)) -> 202 | C16: =IF(ISERROR(VLOOKUP(A16,Январь!$A$10:$Q$154,14,FALSE))," ",VLOOKUP(A16,Январь!$A$10:$Q$154,14,FALSE)) -> 2017-02-23 | D16: =IF(ISERROR(VLOOKUP(A16,Январь!$A$10:$J$154,3,FALSE))," ",VLOOKUP(A16,Январь!$A$10:$J$154,3,FALSE)) -> ..sdgj,,dfzsaуууууууууу | E16: =IF(ISERROR(VLOOKUP(A16,Январь!$A$10:$J$154,4,FALSE))," ",VLOOKUP(A16,Январь!$A$10:$J$154,4,FALSE)) -> 6 | F16: =IF(ISERROR(VLOOKUP(A16,Январь!$A$10:$J$154,5,FALSE))," ",VLOOKUP(A16,Январь!$A$10:$J$154,5,FALSE)) -> 811.7 | G16: =IF(ISERROR(VLOOKUP(A16,Январь!$A$10:$J$154,6,FALSE))," ",VLOOKUP(A16,Январь!$A$10:$J$154,6,FALSE)) -> копия | H16: =IF(ISERROR(VLOOKUP(D16,Январь!$K$12:$Q$154,2,FALSE))," ",VLOOKUP(D16,Январь!$K$12:$Q$154,2,FALSE)) ->  | I16: =IF(ISERROR(VLOOKUP(D16,Январь!$K$12:$Q$154,5,FALSE))," ",VLOOKUP(D16,Январь!$K$12:$Q$154,5,FALSE)) ->  | J16: =IF(ISERROR(VLOOKUP(D16,Январь!$K$12:$Q$154,3,FALSE))," ",VLOOKUP(D16,Январь!$K$12:$Q$154,3,FALSE)) ->  | K16: =IF(ISERROR(VLOOKUP(D16,Январь!$K$12:$Q$154,4,FALSE))," ",VLOOKUP(D16,Январь!$K$12:$Q$154,4,FALSE)) ->  | L16: =IF(ISERROR(VLOOKUP(A16,Январь!$A$10:$J$154,9,FALSE))," ",VLOOKUP(A16,Январь!$A$10:$J$154,9,FALSE)) ->  | M16: =IF(ISERROR(VLOOKUP(A16,Январь!$A$10:$J$154,10,FALSE))," ",VLOOKUP(A16,Январь!$A$10:$J$154,10,FALSE)) -> 0
A17: К15 | B17: =IF(ISERROR(VLOOKUP(A17,Январь!$A$10:$Q$154,13,FALSE))," ",VLOOKUP(A17,Январь!$A$10:$Q$154,13,FALSE)) ->  | C17: =IF(ISERROR(VLOOKUP(A17,Январь!$A$10:$Q$154,14,FALSE))," ",VLOOKUP(A17,Январь!$A$10:$Q$154,14,FALSE)) ->  | D17: =IF(ISERROR(VLOOKUP(A17,Январь!$A$10:$J$154,3,FALSE))," ",VLOOKUP(A17,Январь!$A$10:$J$154,3,FALSE)) ->  | E17: =IF(ISERROR(VLOOKUP(A17,Январь!$A$10:$J$154,4,FALSE))," ",VLOOKUP(A17,Январь!$A$10:$J$154,4,FALSE)) ->  | F17: =IF(ISERROR(VLOOKUP(A17,Январь!$A$10:$J$154,5,FALSE))," ",VLOOKUP(A17,Январь!$A$10:$J$154,5,FALSE)) ->  | G17: =IF(ISERROR(VLOOKUP(A17,Январь!$A$10:$J$154,6,FALSE))," ",VLOOKUP(A17,Январь!$A$10:$J$154,6,FALSE)) ->  | H17: =IF(ISERROR(VLOOKUP(D17,Январь!$K$12:$Q$154,2,FALSE))," ",VLOOKUP(D17,Январь!$K$12:$Q$154,2,FALSE)) ->  | I17: =IF(ISERROR(VLOOKUP(D17,Январь!$K$12:$Q$154,5,FALSE))," ",VLOOKUP(D17,Январь!$K$12:$Q$154,5,FALSE)) ->  | J17: =IF(ISERROR(VLOOKUP(D17,Январь!$K$12:$Q$154,3,FALSE))," ",VLOOKUP(D17,Январь!$K$12:$Q$154,3,FALSE)) ->  | K17: =IF(ISERROR(VLOOKUP(D17,Январь!$K$12:$Q$154,4,FALSE))," ",VLOOKUP(D17,Январь!$K$12:$Q$154,4,FALSE)) ->  | L17: =IF(ISERROR(VLOOKUP(A17,Январь!$A$10:$J$154,9,FALSE))," ",VLOOKUP(A17,Январь!$A$10:$J$154,9,FALSE)) ->  | M17: =IF(ISERROR(VLOOKUP(A17,Январь!$A$10:$J$154,10,FALSE))," ",VLOOKUP(A17,Январь!$A$10:$J$154,10,FALSE)) -> 
A18: К16 | B18: =IF(ISERROR(VLOOKUP(A18,Январь!$A$10:$Q$154,13,FALSE))," ",VLOOKUP(A18,Январь!$A$10:$Q$154,13,FALSE)) ->  | C18: =IF(ISERROR(VLOOKUP(A18,Январь!$A$10:$Q$154,14,FALSE))," ",VLOOKUP(A18,Январь!$A$10:$Q$154,14,FALSE)) ->  | D18: =IF(ISERROR(VLOOKUP(A18,Январь!$A$10:$J$154,3,FALSE))," ",VLOOKUP(A18,Январь!$A$10:$J$154,3,FALSE)) ->  | E18: =IF(ISERROR(VLOOKUP(A18,Январь!$A$10:$J$154,4,FALSE))," ",VLOOKUP(A18,Январь!$A$10:$J$154,4,FALSE)) ->  | F18: =IF(ISERROR(VLOOKUP(A18,Январь!$A$10:$J$154,5,FALSE))," ",VLOOKUP(A18,Январь!$A$10:$J$154,5,FALSE)) ->  | G18: =IF(ISERROR(VLOOKUP(A18,Январь!$A$10:$J$154,6,FALSE))," ",VLOOKUP(A18,Январь!$A$10:$J$154,6,FALSE)) ->  | H18: =IF(ISERROR(VLOOKUP(D18,Январь!$K$12:$Q$154,2,FALSE))," ",VLOOKUP(D18,Январь!$K$12:$Q$154,2,FALSE)) ->  | I18: =IF(ISERROR(VLOOKUP(D18,Январь!$K$12:$Q$154,5,FALSE))," ",VLOOKUP(D18,Январь!$K$12:$Q$154,5,FALSE)) ->  | J18: =IF(ISERROR(VLOOKUP(D18,Январь!$K$12:$Q$154,3,FALSE))," ",VLOOKUP(D18,Январь!$K$12:$Q$154,3,FALSE)) ->  | K18: =IF(ISERROR(VLOOKUP(D18,Январь!$K$12:$Q$154,4,FALSE))," ",VLOOKUP(D18,Январь!$K$12:$Q$154,4,FALSE)) ->  | L18: =IF(ISERROR(VLOOKUP(A18,Январь!$A$10:$J$154,9,FALSE))," ",VLOOKUP(A18,Январь!$A$10:$J$154,9,FALSE)) ->  | M18: =IF(ISERROR(VLOOKUP(A18,Январь!$A$10:$J$154,10,FALSE))," ",VLOOKUP(A18,Январь!$A$10:$J$154,10,FALSE)) -> 
A19: К17 | B19: =IF(ISERROR(VLOOKUP(A19,Январь!$A$10:$Q$154,13,FALSE))," ",VLOOKUP(A19,Январь!$A$10:$Q$154,13,FALSE)) ->  | C19: =IF(ISERROR(VLOOKUP(A19,Январь!$A$10:$Q$154,14,FALSE))," ",VLOOKUP(A19,Январь!$A$10:$Q$154,14,FALSE)) ->  | D19: =IF(ISERROR(VLOOKUP(A19,Январь!$A$10:$J$154,3,FALSE))," ",VLOOKUP(A19,Январь!$A$10:$J$154,3,FALSE)) ->  | E19: =IF(ISERROR(VLOOKUP(A19,Январь!$A$10:$J$154,4,FALSE))," ",VLOOKUP(A19,Январь!$A$10:$J$154,4,FALSE)) ->  | F19: =IF(ISERROR(VLOOKUP(A19,Январь!$A$10:$J$154,5,FALSE))," ",VLOOKUP(A19,Январь!$A$10:$J$154,5,FALSE)) ->  | G19: =IF(ISERROR(VLOOKUP(A19,Январь!$A$10:$J$154,6,FALSE))," ",VLOOKUP(A19,Январь!$A$10:$J$154,6,FALSE)) ->  | H19: =IF(ISERROR(VLOOKUP(D19,Январь!$K$12:$Q$154,2,FALSE))," ",VLOOKUP(D19,Январь!$K$12:$Q$154,2,FALSE)) ->  | I19: =IF(ISERROR(VLOOKUP(D19,Январь!$K$12:$Q$154,5,FALSE))," ",VLOOKUP(D19,Январь!$K$12:$Q$154,5,FALSE)) ->  | J19: =IF(ISERROR(VLOOKUP(D19,Январь!$K$12:$Q$154,3,FALSE))," ",VLOOKUP(D19,Январь!$K$12:$Q$154,3,FALSE)) ->  | K19: =IF(ISERROR(VLOOKUP(D19,Январь!$K$12:$Q$154,4,FALSE))," ",VLOOKUP(D19,Январь!$K$12:$Q$154,4,FALSE)) ->  | L19: =IF(ISERROR(VLOOKUP(A19,Январь!$A$10:$J$154,9,FALSE))," ",VLOOKUP(A19,Январь!$A$10:$J$154,9,FALSE)) ->  | M19: =IF(ISERROR(VLOOKUP(A19,Январь!$A$10:$J$154,10,FALSE))," ",VLOOKUP(A19,Январь!$A$10:$J$154,10,FALSE)) -> 
A20: К18 | B20: =IF(ISERROR(VLOOKUP(A20,Январь!$A$10:$Q$154,13,FALSE))," ",VLOOKUP(A20,Январь!$A$10:$Q$154,13,FALSE)) ->  | C20: =IF(ISERROR(VLOOKUP(A20,Январь!$A$10:$Q$154,14,FALSE))," ",VLOOKUP(A20,Январь!$A$10:$Q$154,14,FALSE)) ->  | D20: =IF(ISERROR(VLOOKUP(A20,Январь!$A$10:$J$154,3,FALSE))," ",VLOOKUP(A20,Январь!$A$10:$J$154,3,FALSE)) ->  | E20: =IF(ISERROR(VLOOKUP(A20,Январь!$A$10:$J$154,4,FALSE))," ",VLOOKUP(A20,Январь!$A$10:$J$154,4,FALSE)) ->  | F20: =IF(ISERROR(VLOOKUP(A20,Январь!$A$10:$J$154,5,FALSE))," ",VLOOKUP(A20,Январь!$A$10:$J$154,5,FALSE)) ->  | G20: =IF(ISERROR(VLOOKUP(A20,Январь!$A$10:$J$154,6,FALSE))," ",VLOOKUP(A20,Январь!$A$10:$J$154,6,FALSE)) ->  | H20: =IF(ISERROR(VLOOKUP(D20,Январь!$K$12:$Q$154,2,FALSE))," ",VLOOKUP(D20,Январь!$K$12:$Q$154,2,FALSE)) ->  | I20: =IF(ISERROR(VLOOKUP(D20,Январь!$K$12:$Q$154,5,FALSE))," ",VLOOKUP(D20,Январь!$K$12:$Q$154,5,FALSE)) ->  | J20: =IF(ISERROR(VLOOKUP(D20,Январь!$K$12:$Q$154,3,FALSE))," ",VLOOKUP(D20,Январь!$K$12:$Q$154,3,FALSE)) ->  | K20: =IF(ISERROR(VLOOKUP(D20,Январь!$K$12:$Q$154,4,FALSE))," ",VLOOKUP(D20,Январь!$K$12:$Q$154,4,FALSE)) ->  | L20: =IF(ISERROR(VLOOKUP(A20,Январь!$A$10:$J$154,9,FALSE))," ",VLOOKUP(A20,Январь!$A$10:$J$154,9,FALSE)) ->  | M20: =IF(ISERROR(VLOOKUP(A20,Январь!$A$10:$J$154,10,FALSE))," ",VLOOKUP(A20,Январь!$A$10:$J$154,10,FALSE)) -> 
A21: К19 | B21: =IF(ISERROR(VLOOKUP(A21,Январь!$A$10:$Q$154,13,FALSE))," ",VLOOKUP(A21,Январь!$A$10:$Q$154,13,FALSE)) ->  | C21: =IF(ISERROR(VLOOKUP(A21,Январь!$A$10:$Q$154,14,FALSE))," ",VLOOKUP(A21,Январь!$A$10:$Q$154,14,FALSE)) ->  | D21: =IF(ISERROR(VLOOKUP(A21,Январь!$A$10:$J$154,3,FALSE))," ",VLOOKUP(A21,Январь!$A$10:$J$154,3,FALSE)) ->  | E21: =IF(ISERROR(VLOOKUP(A21,Январь!$A$10:$J$154,4,FALSE))," ",VLOOKUP(A21,Январь!$A$10:$J$154,4,FALSE)) ->  | F21: =IF(ISERROR(VLOOKUP(A21,Январь!$A$10:$J$154,5,FALSE))," ",VLOOKUP(A21,Январь!$A$10:$J$154,5,FALSE)) ->  | G21: =IF(ISERROR(VLOOKUP(A21,Январь!$A$10:$J$154,6,FALSE))," ",VLOOKUP(A21,Январь!$A$10:$J$154,6,FALSE)) ->  | H21: =IF(ISERROR(VLOOKUP(D21,Январь!$K$12:$Q$154,2,FALSE))," ",VLOOKUP(D21,Январь!$K$12:$Q$154,2,FALSE)) ->  | I21: =IF(ISERROR(VLOOKUP(D21,Январь!$K$12:$Q$154,5,FALSE))," ",VLOOKUP(D21,Январь!$K$12:$Q$154,5,FALSE)) ->  | J21: =IF(ISERROR(VLOOKUP(D21,Январь!$K$12:$Q$154,3,FALSE))," ",VLOOKUP(D21,Январь!$K$12:$Q$154,3,FALSE)) ->  | K21: =IF(ISERROR(VLOOKUP(D21,Январь!$K$12:$Q$154,4,FALSE))," ",VLOOKUP(D21,Январь!$K$12:$Q$154,4,FALSE)) ->  | L21: =IF(ISERROR(VLOOKUP(A21,Январь!$A$10:$J$154,9,FALSE))," ",VLOOKUP(A21,Январь!$A$10:$J$154,9,FALSE)) ->  | M21: =IF(ISERROR(VLOOKUP(A21,Январь!$A$10:$J$154,10,FALSE))," ",VLOOKUP(A21,Январь!$A$10:$J$154,10,FALSE)) -> 
A22: К20 | B22: =IF(ISERROR(VLOOKUP(A22,Январь!$A$10:$Q$154,13,FALSE))," ",VLOOKUP(A22,Январь!$A$10:$Q$154,13,FALSE)) ->  | C22: =IF(ISERROR(VLOOKUP(A22,Январь!$A$10:$Q$154,14,FALSE))," ",VLOOKUP(A22,Январь!$A$10:$Q$154,14,FALSE)) ->  | D22: =IF(ISERROR(VLOOKUP(A22,Январь!$A$10:$J$154,3,FALSE))," ",VLOOKUP(A22,Январь!$A$10:$J$154,3,FALSE)) ->  | E22: =IF(ISERROR(VLOOKUP(A22,Январь!$A$10:$J$154,4,FALSE))," ",VLOOKUP(A22,Январь!$A$10:$J$154,4,FALSE)) ->  | F22: =IF(ISERROR(VLOOKUP(A22,Январь!$A$10:$J$154,5,FALSE))," ",VLOOKUP(A22,Январь!$A$10:$J$154,5,FALSE)) ->  | G22: =IF(ISERROR(VLOOKUP(A22,Январь!$A$10:$J$154,6,FALSE))," ",VLOOKUP(A22,Январь!$A$10:$J$154,6,FALSE)) ->  | H22: =IF(ISERROR(VLOOKUP(D22,Январь!$K$12:$Q$154,2,FALSE))," ",VLOOKUP(D22,Январь!$K$12:$Q$154,2,FALSE)) ->  | I22: =IF(ISERROR(VLOOKUP(D22,Январь!$K$12:$Q$154,5,FALSE))," ",VLOOKUP(D22,Январь!$K$12:$Q$154,5,FALSE)) ->  | J22: =IF(ISERROR(VLOOKUP(D22,Январь!$K$12:$Q$154,3,FALSE))," ",VLOOKUP(D22,Январь!$K$12:$Q$154,3,FALSE)) ->  | K22: =IF(ISERROR(VLOOKUP(D22,Январь!$K$12:$Q$154,4,FALSE))," ",VLOOKUP(D22,Январь!$K$12:$Q$154,4,FALSE)) ->  | L22: =IF(ISERROR(VLOOKUP(A22,Январь!$A$10:$J$154,9,FALSE))," ",VLOOKUP(A22,Январь!$A$10:$J$154,9,FALSE)) ->  | M22: =IF(ISERROR(VLOOKUP(A22,Январь!$A$10:$J$154,10,FALSE))," ",VLOOKUP(A22,Январь!$A$10:$J$154,10,FALSE)) -> 
A23: К21 | B23: =IF(ISERROR(VLOOKUP(A23,Январь!$A$10:$Q$154,13,FALSE))," ",VLOOKUP(A23,Январь!$A$10:$Q$154,13,FALSE)) ->  | C23: =IF(ISERROR(VLOOKUP(A23,Январь!$A$10:$Q$154,14,FALSE))," ",VLOOKUP(A23,Январь!$A$10:$Q$154,14,FALSE)) ->  | D23: =IF(ISERROR(VLOOKUP(A23,Январь!$A$10:$J$154,3,FALSE))," ",VLOOKUP(A23,Январь!$A$10:$J$154,3,FALSE)) ->  | E23: =IF(ISERROR(VLOOKUP(A23,Январь!$A$10:$J$154,4,FALSE))," ",VLOOKUP(A23,Январь!$A$10:$J$154,4,FALSE)) ->  | F23: =IF(ISERROR(VLOOKUP(A23,Январь!$A$10:$J$154,5,FALSE))," ",VLOOKUP(A23,Январь!$A$10:$J$154,5,FALSE)) ->  | G23: =IF(ISERROR(VLOOKUP(A23,Январь!$A$10:$J$154,6,FALSE))," ",VLOOKUP(A23,Январь!$A$10:$J$154,6,FALSE)) ->  | H23: =IF(ISERROR(VLOOKUP(D23,Январь!$K$12:$Q$154,2,FALSE))," ",VLOOKUP(D23,Январь!$K$12:$Q$154,2,FALSE)) ->  | I23: =IF(ISERROR(VLOOKUP(D23,Январь!$K$12:$Q$154,5,FALSE))," ",VLOOKUP(D23,Январь!$K$12:$Q$154,5,FALSE)) ->  | J23: =IF(ISERROR(VLOOKUP(D23,Январь!$K$12:$Q$154,3,FALSE))," ",VLOOKUP(D23,Январь!$K$12:$Q$154,3,FALSE)) ->  | K23: =IF(ISERROR(VLOOKUP(D23,Январь!$K$12:$Q$154,4,FALSE))," ",VLOOKUP(D23,Январь!$K$12:$Q$154,4,FALSE)) ->  | L23: =IF(ISERROR(VLOOKUP(A23,Январь!$A$10:$J$154,9,FALSE))," ",VLOOKUP(A23,Январь!$A$10:$J$154,9,FALSE)) ->  | M23: =IF(ISERROR(VLOOKUP(A23,Январь!$A$10:$J$154,10,FALSE))," ",VLOOKUP(A23,Январь!$A$10:$J$154,10,FALSE)) -> 
A24: К22 | B24: =IF(ISERROR(VLOOKUP(A24,Январь!$A$10:$Q$154,13,FALSE))," ",VLOOKUP(A24,Январь!$A$10:$Q$154,13,FALSE)) ->  | C24: =IF(ISERROR(VLOOKUP(A24,Январь!$A$10:$Q$154,14,FALSE))," ",VLOOKUP(A24,Январь!$A$10:$Q$154,14,FALSE)) ->  | D24: =IF(ISERROR(VLOOKUP(A24,Январь!$A$10:$J$154,3,FALSE))," ",VLOOKUP(A24,Январь!$A$10:$J$154,3,FALSE)) ->  | E24: =IF(ISERROR(VLOOKUP(A24,Январь!$A$10:$J$154,4,FALSE))," ",VLOOKUP(A24,Январь!$A$10:$J$154,4,FALSE)) ->  | F24: =IF(ISERROR(VLOOKUP(A24,Январь!$A$10:$J$154,5,FALSE))," ",VLOOKUP(A24,Январь!$A$10:$J$154,5,FALSE)) ->  | G24: =IF(ISERROR(VLOOKUP(A24,Январь!$A$10:$J$154,6,FALSE))," ",VLOOKUP(A24,Январь!$A$10:$J$154,6,FALSE)) ->  | H24: =IF(ISERROR(VLOOKUP(D24,Январь!$K$12:$Q$154,2,FALSE))," ",VLOOKUP(D24,Январь!$K$12:$Q$154,2,FALSE)) ->  | I24: =IF(ISERROR(VLOOKUP(D24,Январь!$K$12:$Q$154,5,FALSE))," ",VLOOKUP(D24,Январь!$K$12:$Q$154,5,FALSE)) ->  | J24: =IF(ISERROR(VLOOKUP(D24,Январь!$K$12:$Q$154,3,FALSE))," ",VLOOKUP(D24,Январь!$K$12:$Q$154,3,FALSE)) ->  | K24: =IF(ISERROR(VLOOKUP(D24,Январь!$K$12:$Q$154,4,FALSE))," ",VLOOKUP(D24,Январь!$K$12:$Q$154,4,FALSE)) ->  | L24: =IF(ISERROR(VLOOKUP(A24,Январь!$A$10:$J$154,9,FALSE))," ",VLOOKUP(A24,Январь!$A$10:$J$154,9,FALSE)) ->  | M24: =IF(ISERROR(VLOOKUP(A24,Январь!$A$10:$J$154,10,FALSE))," ",VLOOKUP(A24,Январь!$A$10:$J$154,10,FALSE)) -> 
A25: К23 | B25: =IF(ISERROR(VLOOKUP(A25,Январь!$A$10:$Q$154,13,FALSE))," ",VLOOKUP(A25,Январь!$A$10:$Q$154,13,FALSE)) ->  | C25: =IF(ISERROR(VLOOKUP(A25,Январь!$A$10:$Q$154,14,FALSE))," ",VLOOKUP(A25,Январь!$A$10:$Q$154,14,FALSE)) ->  | D25: =IF(ISERROR(VLOOKUP(A25,Январь!$A$10:$J$154,3,FALSE))," ",VLOOKUP(A25,Январь!$A$10:$J$154,3,FALSE)) ->  | E25: =IF(ISERROR(VLOOKUP(A25,Январь!$A$10:$J$154,4,FALSE))," ",VLOOKUP(A25,Январь!$A$10:$J$154,4,FALSE)) ->  | F25: =IF(ISERROR(VLOOKUP(A25,Январь!$A$10:$J$154,5,FALSE))," ",VLOOKUP(A25,Январь!$A$10:$J$154,5,FALSE)) ->  | G25: =IF(ISERROR(VLOOKUP(A25,Январь!$A$10:$J$154,6,FALSE))," ",VLOOKUP(A25,Январь!$A$10:$J$154,6,FALSE)) ->  | H25: =IF(ISERROR(VLOOKUP(D25,Январь!$K$12:$Q$154,2,FALSE))," ",VLOOKUP(D25,Январь!$K$12:$Q$154,2,FALSE)) ->  | I25: =IF(ISERROR(VLOOKUP(D25,Январь!$K$12:$Q$154,5,FALSE))," ",VLOOKUP(D25,Январь!$K$12:$Q$154,5,FALSE)) ->  | J25: =IF(ISERROR(VLOOKUP(D25,Январь!$K$12:$Q$154,3,FALSE))," ",VLOOKUP(D25,Январь!$K$12:$Q$154,3,FALSE)) ->  | K25: =IF(ISERROR(VLOOKUP(D25,Январь!$K$12:$Q$154,4,FALSE))," ",VLOOKUP(D25,Январь!$K$12:$Q$154,4,FALSE)) ->  | L25: =IF(ISERROR(VLOOKUP(A25,Январь!$A$10:$J$154,9,FALSE))," ",VLOOKUP(A25,Январь!$A$10:$J$154,9,FALSE)) ->  | M25: =IF(ISERROR(VLOOKUP(A25,Январь!$A$10:$J$154,10,FALSE))," ",VLOOKUP(A25,Январь!$A$10:$J$154,10,FALSE)) -> 
A26: К24 | B26: =IF(ISERROR(VLOOKUP(A26,Январь!$A$10:$Q$154,13,FALSE))," ",VLOOKUP(A26,Январь!$A$10:$Q$154,13,FALSE)) ->  | C26: =IF(ISERROR(VLOOKUP(A26,Январь!$A$10:$Q$154,14,FALSE))," ",VLOOKUP(A26,Январь!$A$10:$Q$154,14,FALSE)) ->  | D26: =IF(ISERROR(VLOOKUP(A26,Январь!$A$10:$J$154,3,FALSE))," ",VLOOKUP(A26,Январь!$A$10:$J$154,3,FALSE)) ->  | E26: =IF(ISERROR(VLOOKUP(A26,Январь!$A$10:$J$154,4,FALSE))," ",VLOOKUP(A26,Январь!$A$10:$J$154,4,FALSE)) ->  | F26: =IF(ISERROR(VLOOKUP(A26,Январь!$A$10:$J$154,5,FALSE))," ",VLOOKUP(A26,Январь!$A$10:$J$154,5,FALSE)) ->  | G26: =IF(ISERROR(VLOOKUP(A26,Январь!$A$10:$J$154,6,FALSE))," ",VLOOKUP(A26,Январь!$A$10:$J$154,6,FALSE)) ->  | H26: =IF(ISERROR(VLOOKUP(D26,Январь!$K$12:$Q$154,2,FALSE))," ",VLOOKUP(D26,Январь!$K$12:$Q$154,2,FALSE)) ->  | I26: =IF(ISERROR(VLOOKUP(D26,Январь!$K$12:$Q$154,5,FALSE))," ",VLOOKUP(D26,Январь!$K$12:$Q$154,5,FALSE)) ->  | J26: =IF(ISERROR(VLOOKUP(D26,Январь!$K$12:$Q$154,3,FALSE))," ",VLOOKUP(D26,Январь!$K$12:$Q$154,3,FALSE)) ->  | K26: =IF(ISERROR(VLOOKUP(D26,Январь!$K$12:$Q$154,4,FALSE))," ",VLOOKUP(D26,Январь!$K$12:$Q$154,4,FALSE)) ->  | L26: =IF(ISERROR(VLOOKUP(A26,Январь!$A$10:$J$154,9,FALSE))," ",VLOOKUP(A26,Январь!$A$10:$J$154,9,FALSE)) ->  | M26: =IF(ISERROR(VLOOKUP(A26,Январь!$A$10:$J$154,10,FALSE))," ",VLOOKUP(A26,Январь!$A$10:$J$154,10,FALSE)) -> 
A27: К25 | B27: =IF(ISERROR(VLOOKUP(A27,Январь!$A$10:$Q$154,13,FALSE))," ",VLOOKUP(A27,Январь!$A$10:$Q$154,13,FALSE)) ->  | C27: =IF(ISERROR(VLOOKUP(A27,Январь!$A$10:$Q$154,14,FALSE))," ",VLOOKUP(A27,Январь!$A$10:$Q$154,14,FALSE)) ->  | D27: =IF(ISERROR(VLOOKUP(A27,Январь!$A$10:$J$154,3,FALSE))," ",VLOOKUP(A27,Январь!$A$10:$J$154,3,FALSE)) ->  | E27: =IF(ISERROR(VLOOKUP(A27,Январь!$A$10:$J$154,4,FALSE))," ",VLOOKUP(A27,Январь!$A$10:$J$154,4,FALSE)) ->  | F27: =IF(ISERROR(VLOOKUP(A27,Январь!$A$10:$J$154,5,FALSE))," ",VLOOKUP(A27,Январь!$A$10:$J$154,5,FALSE)) ->  | G27: =IF(ISERROR(VLOOKUP(A27,Январь!$A$10:$J$154,6,FALSE))," ",VLOOKUP(A27,Январь!$A$10:$J$154,6,FALSE)) ->  | H27: =IF(ISERROR(VLOOKUP(D27,Январь!$K$12:$Q$154,2,FALSE))," ",VLOOKUP(D27,Январь!$K$12:$Q$154,2,FALSE)) ->  | I27: =IF(ISERROR(VLOOKUP(D27,Январь!$K$12:$Q$154,5,FALSE))," ",VLOOKUP(D27,Январь!$K$12:$Q$154,5,FALSE)) ->  | J27: =IF(ISERROR(VLOOKUP(D27,Январь!$K$12:$Q$154,3,FALSE))," ",VLOOKUP(D27,Январь!$K$12:$Q$154,3,FALSE)) ->  | K27: =IF(ISERROR(VLOOKUP(D27,Январь!$K$12:$Q$154,4,FALSE))," ",VLOOKUP(D27,Январь!$K$12:$Q$154,4,FALSE)) ->  | L27: =IF(ISERROR(VLOOKUP(A27,Январь!$A$10:$J$154,9,FALSE))," ",VLOOKUP(A27,Январь!$A$10:$J$154,9,FALSE)) ->  | M27: =IF(ISERROR(VLOOKUP(A27,Январь!$A$10:$J$154,10,FALSE))," ",VLOOKUP(A27,Январь!$A$10:$J$154,10,FALSE)) -> 
A28: К26 | B28: =IF(ISERROR(VLOOKUP(A28,Январь!$A$10:$Q$154,13,FALSE))," ",VLOOKUP(A28,Январь!$A$10:$Q$154,13,FALSE)) ->  | C28: =IF(ISERROR(VLOOKUP(A28,Январь!$A$10:$Q$154,14,FALSE))," ",VLOOKUP(A28,Январь!$A$10:$Q$154,14,FALSE)) ->  | D28: =IF(ISERROR(VLOOKUP(A28,Январь!$A$10:$J$154,3,FALSE))," ",VLOOKUP(A28,Январь!$A$10:$J$154,3,FALSE)) ->  | E28: =IF(ISERROR(VLOOKUP(A28,Январь!$A$10:$J$154,4,FALSE))," ",VLOOKUP(A28,Январь!$A$10:$J$154,4,FALSE)) ->  | F28: =IF(ISERROR(VLOOKUP(A28,Январь!$A$10:$J$154,5,FALSE))," ",VLOOKUP(A28,Январь!$A$10:$J$154,5,FALSE)) ->  | G28: =IF(ISERROR(VLOOKUP(A28,Январь!$A$10:$J$154,6,FALSE))," ",VLOOKUP(A28,Январь!$A$10:$J$154,6,FALSE)) ->  | H28: =IF(ISERROR(VLOOKUP(D28,Январь!$K$12:$Q$154,2,FALSE))," ",VLOOKUP(D28,Январь!$K$12:$Q$154,2,FALSE)) ->  | I28: =IF(ISERROR(VLOOKUP(D28,Январь!$K$12:$Q$154,5,FALSE))," ",VLOOKUP(D28,Январь!$K$12:$Q$154,5,FALSE)) ->  | J28: =IF(ISERROR(VLOOKUP(D28,Январь!$K$12:$Q$154,3,FALSE))," ",VLOOKUP(D28,Январь!$K$12:$Q$154,3,FALSE)) ->  | K28: =IF(ISERROR(VLOOKUP(D28,Январь!$K$12:$Q$154,4,FALSE))," ",VLOOKUP(D28,Январь!$K$12:$Q$154,4,FALSE)) ->  | L28: =IF(ISERROR(VLOOKUP(A28,Январь!$A$10:$J$154,9,FALSE))," ",VLOOKUP(A28,Январь!$A$10:$J$154,9,FALSE)) ->  | M28: =IF(ISERROR(VLOOKUP(A28,Январь!$A$10:$J$154,10,FALSE))," ",VLOOKUP(A28,Январь!$A$10:$J$154,10,FALSE)) -> 
A29: К27 | B29: =IF(ISERROR(VLOOKUP(A29,Январь!$A$10:$Q$154,13,FALSE))," ",VLOOKUP(A29,Январь!$A$10:$Q$154,13,FALSE)) ->  | C29: =IF(ISERROR(VLOOKUP(A29,Январь!$A$10:$Q$154,14,FALSE))," ",VLOOKUP(A29,Январь!$A$10:$Q$154,14,FALSE)) ->  | D29: =IF(ISERROR(VLOOKUP(A29,Январь!$A$10:$J$154,3,FALSE))," ",VLOOKUP(A29,Январь!$A$10:$J$154,3,FALSE)) ->  | E29: =IF(ISERROR(VLOOKUP(A29,Январь!$A$10:$J$154,4,FALSE))," ",VLOOKUP(A29,Январь!$A$10:$J$154,4,FALSE)) ->  | F29: =IF(ISERROR(VLOOKUP(A29,Январь!$A$10:$J$154,5,FALSE))," ",VLOOKUP(A29,Январь!$A$10:$J$154,5,FALSE)) ->  | G29: =IF(ISERROR(VLOOKUP(A29,Январь!$A$10:$J$154,6,FALSE))," ",VLOOKUP(A29,Январь!$A$10:$J$154,6,FALSE)) ->  | H29: =IF(ISERROR(VLOOKUP(D29,Январь!$K$12:$Q$154,2,FALSE))," ",VLOOKUP(D29,Январь!$K$12:$Q$154,2,FALSE)) ->  | I29: =IF(ISERROR(VLOOKUP(D29,Январь!$K$12:$Q$154,5,FALSE))," ",VLOOKUP(D29,Январь!$K$12:$Q$154,5,FALSE)) ->  | J29: =IF(ISERROR(VLOOKUP(D29,Январь!$K$12:$Q$154,3,FALSE))," ",VLOOKUP(D29,Январь!$K$12:$Q$154,3,FALSE)) ->  | K29: =IF(ISERROR(VLOOKUP(D29,Январь!$K$12:$Q$154,4,FALSE))," ",VLOOKUP(D29,Январь!$K$12:$Q$154,4,FALSE)) ->  | L29: =IF(ISERROR(VLOOKUP(A29,Январь!$A$10:$J$154,9,FALSE))," ",VLOOKUP(A29,Январь!$A$10:$J$154,9,FALSE)) ->  | M29: =IF(ISERROR(VLOOKUP(A29,Январь!$A$10:$J$154,10,FALSE))," ",VLOOKUP(A29,Январь!$A$10:$J$154,10,FALSE)) -> 
A30: К28 | B30: =IF(ISERROR(VLOOKUP(A30,Январь!$A$10:$Q$154,13,FALSE))," ",VLOOKUP(A30,Январь!$A$10:$Q$154,13,FALSE)) ->  | C30: =IF(ISERROR(VLOOKUP(A30,Январь!$A$10:$Q$154,14,FALSE))," ",VLOOKUP(A30,Январь!$A$10:$Q$154,14,FALSE)) ->  | D30: =IF(ISERROR(VLOOKUP(A30,Январь!$A$10:$J$154,3,FALSE))," ",VLOOKUP(A30,Январь!$A$10:$J$154,3,FALSE)) ->  | E30: =IF(ISERROR(VLOOKUP(A30,Январь!$A$10:$J$154,4,FALSE))," ",VLOOKUP(A30,Январь!$A$10:$J$154,4,FALSE)) ->  | F30: =IF(ISERROR(VLOOKUP(A30,Январь!$A$10:$J$154,5,FALSE))," ",VLOOKUP(A30,Январь!$A$10:$J$154,5,FALSE)) ->  | G30: =IF(ISERROR(VLOOKUP(A30,Январь!$A$10:$J$154,6,FALSE))," ",VLOOKUP(A30,Январь!$A$10:$J$154,6,FALSE)) ->  | H30: =IF(ISERROR(VLOOKUP(D30,Январь!$K$12:$Q$154,2,FALSE))," ",VLOOKUP(D30,Январь!$K$12:$Q$154,2,FALSE)) ->  | I30: =IF(ISERROR(VLOOKUP(D30,Январь!$K$12:$Q$154,5,FALSE))," ",VLOOKUP(D30,Январь!$K$12:$Q$154,5,FALSE)) ->  | J30: =IF(ISERROR(VLOOKUP(D30,Январь!$K$12:$Q$154,3,FALSE))," ",VLOOKUP(D30,Январь!$K$12:$Q$154,3,FALSE)) ->  | K30: =IF(ISERROR(VLOOKUP(D30,Январь!$K$12:$Q$154,4,FALSE))," ",VLOOKUP(D30,Январь!$K$12:$Q$154,4,FALSE)) ->  | L30: =IF(ISERROR(VLOOKUP(A30,Январь!$A$10:$J$154,9,FALSE))," ",VLOOKUP(A30,Январь!$A$10:$J$154,9,FALSE)) ->  | M30: =IF(ISERROR(VLOOKUP(A30,Январь!$A$10:$J$154,10,FALSE))," ",VLOOKUP(A30,Январь!$A$10:$J$154,10,FALSE)) -> 
A31: К29 | B31: =IF(ISERROR(VLOOKUP(A31,Январь!$A$10:$Q$154,13,FALSE))," ",VLOOKUP(A31,Январь!$A$10:$Q$154,13,FALSE)) ->  | C31: =IF(ISERROR(VLOOKUP(A31,Январь!$A$10:$Q$154,14,FALSE))," ",VLOOKUP(A31,Январь!$A$10:$Q$154,14,FALSE)) ->  | D31: =IF(ISERROR(VLOOKUP(A31,Январь!$A$10:$J$154,3,FALSE))," ",VLOOKUP(A31,Январь!$A$10:$J$154,3,FALSE)) ->  | E31: =IF(ISERROR(VLOOKUP(A31,Январь!$A$10:$J$154,4,FALSE))," ",VLOOKUP(A31,Январь!$A$10:$J$154,4,FALSE)) ->  | F31: =IF(ISERROR(VLOOKUP(A31,Январь!$A$10:$J$154,5,FALSE))," ",VLOOKUP(A31,Январь!$A$10:$J$154,5,FALSE)) ->  | G31: =IF(ISERROR(VLOOKUP(A31,Январь!$A$10:$J$154,6,FALSE))," ",VLOOKUP(A31,Январь!$A$10:$J$154,6,FALSE)) ->  | H31: =IF(ISERROR(VLOOKUP(D31,Январь!$K$12:$Q$154,2,FALSE))," ",VLOOKUP(D31,Январь!$K$12:$Q$154,2,FALSE)) ->  | I31: =IF(ISERROR(VLOOKUP(D31,Январь!$K$12:$Q$154,5,FALSE))," ",VLOOKUP(D31,Январь!$K$12:$Q$154,5,FALSE)) ->  | J31: =IF(ISERROR(VLOOKUP(D31,Январь!$K$12:$Q$154,3,FALSE))," ",VLOOKUP(D31,Январь!$K$12:$Q$154,3,FALSE)) ->  | K31: =IF(ISERROR(VLOOKUP(D31,Январь!$K$12:$Q$154,4,FALSE))," ",VLOOKUP(D31,Январь!$K$12:$Q$154,4,FALSE)) ->  | L31: =IF(ISERROR(VLOOKUP(A31,Январь!$A$10:$J$154,9,FALSE))," ",VLOOKUP(A31,Январь!$A$10:$J$154,9,FALSE)) ->  | M31: =IF(ISERROR(VLOOKUP(A31,Январь!$A$10:$J$154,10,FALSE))," ",VLOOKUP(A31,Январь!$A$10:$J$154,10,FALSE)) -> 
A32: К30 | B32: =IF(ISERROR(VLOOKUP(A32,Январь!$A$10:$Q$154,13,FALSE))," ",VLOOKUP(A32,Январь!$A$10:$Q$154,13,FALSE)) ->  | C32: =IF(ISERROR(VLOOKUP(A32,Январь!$A$10:$Q$154,14,FALSE))," ",VLOOKUP(A32,Январь!$A$10:$Q$154,14,FALSE)) ->  | D32: =IF(ISERROR(VLOOKUP(A32,Январь!$A$10:$J$154,3,FALSE))," ",VLOOKUP(A32,Январь!$A$10:$J$154,3,FALSE)) ->  | E32: =IF(ISERROR(VLOOKUP(A32,Январь!$A$10:$J$154,4,FALSE))," ",VLOOKUP(A32,Январь!$A$10:$J$154,4,FALSE)) ->  | F32: =IF(ISERROR(VLOOKUP(A32,Январь!$A$10:$J$154,5,FALSE))," ",VLOOKUP(A32,Январь!$A$10:$J$154,5,FALSE)) ->  | G32: =IF(ISERROR(VLOOKUP(A32,Январь!$A$10:$J$154,6,FALSE))," ",VLOOKUP(A32,Январь!$A$10:$J$154,6,FALSE)) ->  | H32: =IF(ISERROR(VLOOKUP(D32,Январь!$K$12:$Q$154,2,FALSE))," ",VLOOKUP(D32,Январь!$K$12:$Q$154,2,FALSE)) ->  | I32: =IF(ISERROR(VLOOKUP(D32,Январь!$K$12:$Q$154,5,FALSE))," ",VLOOKUP(D32,Январь!$K$12:$Q$154,5,FALSE)) ->  | J32: =IF(ISERROR(VLOOKUP(D32,Январь!$K$12:$Q$154,3,FALSE))," ",VLOOKUP(D32,Январь!$K$12:$Q$154,3,FALSE)) ->  | K32: =IF(ISERROR(VLOOKUP(D32,Январь!$K$12:$Q$154,4,FALSE))," ",VLOOKUP(D32,Январь!$K$12:$Q$154,4,FALSE)) ->  | L32: =IF(ISERROR(VLOOKUP(A32,Январь!$A$10:$J$154,9,FALSE))," ",VLOOKUP(A32,Январь!$A$10:$J$154,9,FALSE)) ->  | M32: =IF(ISERROR(VLOOKUP(A32,Январь!$A$10:$J$154,10,FALSE))," ",VLOOKUP(A32,Январь!$A$10:$J$154,10,FALSE)) -> 
A33: К31 | B33: =IF(ISERROR(VLOOKUP(A33,Январь!$A$10:$Q$154,13,FALSE))," ",VLOOKUP(A33,Январь!$A$10:$Q$154,13,FALSE)) ->  | C33: =IF(ISERROR(VLOOKUP(A33,Январь!$A$10:$Q$154,14,FALSE))," ",VLOOKUP(A33,Январь!$A$10:$Q$154,14,FALSE)) ->  | D33: =IF(ISERROR(VLOOKUP(A33,Январь!$A$10:$J$154,3,FALSE))," ",VLOOKUP(A33,Январь!$A$10:$J$154,3,FALSE)) ->  | E33: =IF(ISERROR(VLOOKUP(A33,Январь!$A$10:$J$154,4,FALSE))," ",VLOOKUP(A33,Январь!$A$10:$J$154,4,FALSE)) ->  | F33: =IF(ISERROR(VLOOKUP(A33,Январь!$A$10:$J$154,5,FALSE))," ",VLOOKUP(A33,Январь!$A$10:$J$154,5,FALSE)) ->  | G33: =IF(ISERROR(VLOOKUP(A33,Январь!$A$10:$J$154,6,FALSE))," ",VLOOKUP(A33,Январь!$A$10:$J$154,6,FALSE)) ->  | H33: =IF(ISERROR(VLOOKUP(D33,Январь!$K$12:$Q$154,2,FALSE))," ",VLOOKUP(D33,Январь!$K$12:$Q$154,2,FALSE)) ->  | I33: =IF(ISERROR(VLOOKUP(D33,Январь!$K$12:$Q$154,5,FALSE))," ",VLOOKUP(D33,Январь!$K$12:$Q$154,5,FALSE)) ->  | J33: =IF(ISERROR(VLOOKUP(D33,Январь!$K$12:$Q$154,3,FALSE))," ",VLOOKUP(D33,Январь!$K$12:$Q$154,3,FALSE)) ->  | K33: =IF(ISERROR(VLOOKUP(D33,Январь!$K$12:$Q$154,4,FALSE))," ",VLOOKUP(D33,Январь!$K$12:$Q$154,4,FALSE)) ->  | L33: =IF(ISERROR(VLOOKUP(A33,Январь!$A$10:$J$154,9,FALSE))," ",VLOOKUP(A33,Январь!$A$10:$J$154,9,FALSE)) ->  | M33: =IF(ISERROR(VLOOKUP(A33,Январь!$A$10:$J$154,10,FALSE))," ",VLOOKUP(A33,Январь!$A$10:$J$154,10,FALSE)) -> 
A34: К32 | B34: =IF(ISERROR(VLOOKUP(A34,Январь!$A$10:$Q$154,13,FALSE))," ",VLOOKUP(A34,Январь!$A$10:$Q$154,13,FALSE)) ->  | C34: =IF(ISERROR(VLOOKUP(A34,Январь!$A$10:$Q$154,14,FALSE))," ",VLOOKUP(A34,Январь!$A$10:$Q$154,14,FALSE)) ->  | D34: =IF(ISERROR(VLOOKUP(A34,Январь!$A$10:$J$154,3,FALSE))," ",VLOOKUP(A34,Январь!$A$10:$J$154,3,FALSE)) ->  | E34: =IF(ISERROR(VLOOKUP(A34,Январь!$A$10:$J$154,4,FALSE))," ",VLOOKUP(A34,Январь!$A$10:$J$154,4,FALSE)) ->  | F34: =IF(ISERROR(VLOOKUP(A34,Январь!$A$10:$J$154,5,FALSE))," ",VLOOKUP(A34,Январь!$A$10:$J$154,5,FALSE)) ->  | G34: =IF(ISERROR(VLOOKUP(A34,Январь!$A$10:$J$154,6,FALSE))," ",VLOOKUP(A34,Январь!$A$10:$J$154,6,FALSE)) ->  | H34: =IF(ISERROR(VLOOKUP(D34,Январь!$K$12:$Q$154,2,FALSE))," ",VLOOKUP(D34,Январь!$K$12:$Q$154,2,FALSE)) ->  | I34: =IF(ISERROR(VLOOKUP(D34,Январь!$K$12:$Q$154,5,FALSE))," ",VLOOKUP(D34,Январь!$K$12:$Q$154,5,FALSE)) ->  | J34: =IF(ISERROR(VLOOKUP(D34,Январь!$K$12:$Q$154,3,FALSE))," ",VLOOKUP(D34,Январь!$K$12:$Q$154,3,FALSE)) ->  | K34: =IF(ISERROR(VLOOKUP(D34,Январь!$K$12:$Q$154,4,FALSE))," ",VLOOKUP(D34,Январь!$K$12:$Q$154,4,FALSE)) ->  | L34: =IF(ISERROR(VLOOKUP(A34,Январь!$A$10:$J$154,9,FALSE))," ",VLOOKUP(A34,Январь!$A$10:$J$154,9,FALSE)) ->  | M34: =IF(ISERROR(VLOOKUP(A34,Январь!$A$10:$J$154,10,FALSE))," ",VLOOKUP(A34,Январь!$A$10:$J$154,10,FALSE)) -> 
A35: К33 | B35: =IF(ISERROR(VLOOKUP(A35,Январь!$A$10:$Q$154,13,FALSE))," ",VLOOKUP(A35,Январь!$A$10:$Q$154,13,FALSE)) ->  | C35: =IF(ISERROR(VLOOKUP(A35,Январь!$A$10:$Q$154,14,FALSE))," ",VLOOKUP(A35,Январь!$A$10:$Q$154,14,FALSE)) ->  | D35: =IF(ISERROR(VLOOKUP(A35,Январь!$A$10:$J$154,3,FALSE))," ",VLOOKUP(A35,Январь!$A$10:$J$154,3,FALSE)) ->  | E35: =IF(ISERROR(VLOOKUP(A35,Январь!$A$10:$J$154,4,FALSE))," ",VLOOKUP(A35,Январь!$A$10:$J$154,4,FALSE)) ->  | F35: =IF(ISERROR(VLOOKUP(A35,Январь!$A$10:$J$154,5,FALSE))," ",VLOOKUP(A35,Январь!$A$10:$J$154,5,FALSE)) ->  | G35: =IF(ISERROR(VLOOKUP(A35,Январь!$A$10:$J$154,6,FALSE))," ",VLOOKUP(A35,Январь!$A$10:$J$154,6,FALSE)) ->  | H35: =IF(ISERROR(VLOOKUP(D35,Январь!$K$12:$Q$154,2,FALSE))," ",VLOOKUP(D35,Январь!$K$12:$Q$154,2,FALSE)) ->  | I35: =IF(ISERROR(VLOOKUP(D35,Январь!$K$12:$Q$154,5,FALSE))," ",VLOOKUP(D35,Январь!$K$12:$Q$154,5,FALSE)) ->  | J35: =IF(ISERROR(VLOOKUP(D35,Январь!$K$12:$Q$154,3,FALSE))," ",VLOOKUP(D35,Январь!$K$12:$Q$154,3,FALSE)) ->  | K35: =IF(ISERROR(VLOOKUP(D35,Январь!$K$12:$Q$154,4,FALSE))," ",VLOOKUP(D35,Январь!$K$12:$Q$154,4,FALSE)) ->  | L35: =IF(ISERROR(VLOOKUP(A35,Январь!$A$10:$J$154,9,FALSE))," ",VLOOKUP(A35,Январь!$A$10:$J$154,9,FALSE)) ->  | M35: =IF(ISERROR(VLOOKUP(A35,Январь!$A$10:$J$154,10,FALSE))," ",VLOOKUP(A35,Январь!$A$10:$J$154,10,FALSE)) -> 
A36: К34 | B36: =IF(ISERROR(VLOOKUP(A36,Январь!$A$10:$Q$154,13,FALSE))," ",VLOOKUP(A36,Январь!$A$10:$Q$154,13,FALSE)) ->  | C36: =IF(ISERROR(VLOOKUP(A36,Январь!$A$10:$Q$154,14,FALSE))," ",VLOOKUP(A36,Январь!$A$10:$Q$154,14,FALSE)) ->  | D36: =IF(ISERROR(VLOOKUP(A36,Январь!$A$10:$J$154,3,FALSE))," ",VLOOKUP(A36,Январь!$A$10:$J$154,3,FALSE)) ->  | E36: =IF(ISERROR(VLOOKUP(A36,Январь!$A$10:$J$154,4,FALSE))," ",VLOOKUP(A36,Январь!$A$10:$J$154,4,FALSE)) ->  | F36: =IF(ISERROR(VLOOKUP(A36,Январь!$A$10:$J$154,5,FALSE))," ",VLOOKUP(A36,Январь!$A$10:$J$154,5,FALSE)) ->  | G36: =IF(ISERROR(VLOOKUP(A36,Январь!$A$10:$J$154,6,FALSE))," ",VLOOKUP(A36,Январь!$A$10:$J$154,6,FALSE)) ->  | H36: =IF(ISERROR(VLOOKUP(D36,Январь!$K$12:$Q$154,2,FALSE))," ",VLOOKUP(D36,Январь!$K$12:$Q$154,2,FALSE)) ->  | I36: =IF(ISERROR(VLOOKUP(D36,Январь!$K$12:$Q$154,5,FALSE))," ",VLOOKUP(D36,Январь!$K$12:$Q$154,5,FALSE)) ->  | J36: =IF(ISERROR(VLOOKUP(D36,Январь!$K$12:$Q$154,3,FALSE))," ",VLOOKUP(D36,Январь!$K$12:$Q$154,3,FALSE)) ->  | K36: =IF(ISERROR(VLOOKUP(D36,Январь!$K$12:$Q$154,4,FALSE))," ",VLOOKUP(D36,Январь!$K$12:$Q$154,4,FALSE)) ->  | L36: =IF(ISERROR(VLOOKUP(A36,Январь!$A$10:$J$154,9,FALSE))," ",VLOOKUP(A36,Январь!$A$10:$J$154,9,FALSE)) ->  | M36: =IF(ISERROR(VLOOKUP(A36,Январь!$A$10:$J$154,10,FALSE))," ",VLOOKUP(A36,Январь!$A$10:$J$154,10,FALSE)) -> 
A37: К35 | B37: =IF(ISERROR(VLOOKUP(A37,Январь!$A$10:$Q$154,13,FALSE))," ",VLOOKUP(A37,Январь!$A$10:$Q$154,13,FALSE)) ->  | C37: =IF(ISERROR(VLOOKUP(A37,Январь!$A$10:$Q$154,14,FALSE))," ",VLOOKUP(A37,Январь!$A$10:$Q$154,14,FALSE)) ->  | D37: =IF(ISERROR(VLOOKUP(A37,Январь!$A$10:$J$154,3,FALSE))," ",VLOOKUP(A37,Январь!$A$10:$J$154,3,FALSE)) ->  | E37: =IF(ISERROR(VLOOKUP(A37,Январь!$A$10:$J$154,4,FALSE))," ",VLOOKUP(A37,Январь!$A$10:$J$154,4,FALSE)) ->  | F37: =IF(ISERROR(VLOOKUP(A37,Январь!$A$10:$J$154,5,FALSE))," ",VLOOKUP(A37,Январь!$A$10:$J$154,5,FALSE)) ->  | G37: =IF(ISERROR(VLOOKUP(A37,Январь!$A$10:$J$154,6,FALSE))," ",VLOOKUP(A37,Январь!$A$10:$J$154,6,FALSE)) ->  | H37: =IF(ISERROR(VLOOKUP(D37,Январь!$K$12:$Q$154,2,FALSE))," ",VLOOKUP(D37,Январь!$K$12:$Q$154,2,FALSE)) ->  | I37: =IF(ISERROR(VLOOKUP(D37,Январь!$K$12:$Q$154,5,FALSE))," ",VLOOKUP(D37,Январь!$K$12:$Q$154,5,FALSE)) ->  | J37: =IF(ISERROR(VLOOKUP(D37,Январь!$K$12:$Q$154,3,FALSE))," ",VLOOKUP(D37,Январь!$K$12:$Q$154,3,FALSE)) ->  | K37: =IF(ISERROR(VLOOKUP(D37,Январь!$K$12:$Q$154,4,FALSE))," ",VLOOKUP(D37,Январь!$K$12:$Q$154,4,FALSE)) ->  | L37: =IF(ISERROR(VLOOKUP(A37,Январь!$A$10:$J$154,9,FALSE))," ",VLOOKUP(A37,Январь!$A$10:$J$154,9,FALSE)) ->  | M37: =IF(ISERROR(VLOOKUP(A37,Январь!$A$10:$J$154,10,FALSE))," ",VLOOKUP(A37,Январь!$A$10:$J$154,10,FALSE)) -> 
A38: К36 | B38: =IF(ISERROR(VLOOKUP(A38,Январь!$A$10:$Q$154,13,FALSE))," ",VLOOKUP(A38,Январь!$A$10:$Q$154,13,FALSE)) ->  | C38: =IF(ISERROR(VLOOKUP(A38,Январь!$A$10:$Q$154,14,FALSE))," ",VLOOKUP(A38,Январь!$A$10:$Q$154,14,FALSE)) ->  | D38: =IF(ISERROR(VLOOKUP(A38,Январь!$A$10:$J$154,3,FALSE))," ",VLOOKUP(A38,Январь!$A$10:$J$154,3,FALSE)) ->  | E38: =IF(ISERROR(VLOOKUP(A38,Январь!$A$10:$J$154,4,FALSE))," ",VLOOKUP(A38,Январь!$A$10:$J$154,4,FALSE)) ->  | F38: =IF(ISERROR(VLOOKUP(A38,Январь!$A$10:$J$154,5,FALSE))," ",VLOOKUP(A38,Январь!$A$10:$J$154,5,FALSE)) ->  | G38: =IF(ISERROR(VLOOKUP(A38,Январь!$A$10:$J$154,6,FALSE))," ",VLOOKUP(A38,Январь!$A$10:$J$154,6,FALSE)) ->  | H38: =IF(ISERROR(VLOOKUP(D38,Январь!$K$12:$Q$154,2,FALSE))," ",VLOOKUP(D38,Январь!$K$12:$Q$154,2,FALSE)) ->  | I38: =IF(ISERROR(VLOOKUP(D38,Январь!$K$12:$Q$154,5,FALSE))," ",VLOOKUP(D38,Январь!$K$12:$Q$154,5,FALSE)) ->  | J38: =IF(ISERROR(VLOOKUP(D38,Январь!$K$12:$Q$154,3,FALSE))," ",VLOOKUP(D38,Январь!$K$12:$Q$154,3,FALSE)) ->  | K38: =IF(ISERROR(VLOOKUP(D38,Январь!$K$12:$Q$154,4,FALSE))," ",VLOOKUP(D38,Январь!$K$12:$Q$154,4,FALSE)) ->  | L38: =IF(ISERROR(VLOOKUP(A38,Январь!$A$10:$J$154,9,FALSE))," ",VLOOKUP(A38,Январь!$A$10:$J$154,9,FALSE)) ->  | M38: =IF(ISERROR(VLOOKUP(A38,Январь!$A$10:$J$154,10,FALSE))," ",VLOOKUP(A38,Январь!$A$10:$J$154,10,FALSE)) -> 
A39: К37 | B39: =IF(ISERROR(VLOOKUP(A39,Январь!$A$10:$Q$154,13,FALSE))," ",VLOOKUP(A39,Январь!$A$10:$Q$154,13,FALSE)) ->  | C39: =IF(ISERROR(VLOOKUP(A39,Январь!$A$10:$Q$154,14,FALSE))," ",VLOOKUP(A39,Январь!$A$10:$Q$154,14,FALSE)) ->  | D39: =IF(ISERROR(VLOOKUP(A39,Январь!$A$10:$J$154,3,FALSE))," ",VLOOKUP(A39,Январь!$A$10:$J$154,3,FALSE)) ->  | E39: =IF(ISERROR(VLOOKUP(A39,Январь!$A$10:$J$154,4,FALSE))," ",VLOOKUP(A39,Январь!$A$10:$J$154,4,FALSE)) ->  | F39: =IF(ISERROR(VLOOKUP(A39,Январь!$A$10:$J$154,5,FALSE))," ",VLOOKUP(A39,Январь!$A$10:$J$154,5,FALSE)) ->  | G39: =IF(ISERROR(VLOOKUP(A39,Январь!$A$10:$J$154,6,FALSE))," ",VLOOKUP(A39,Январь!$A$10:$J$154,6,FALSE)) ->  | H39: =IF(ISERROR(VLOOKUP(D39,Январь!$K$12:$Q$154,2,FALSE))," ",VLOOKUP(D39,Январь!$K$12:$Q$154,2,FALSE)) ->  | I39: =IF(ISERROR(VLOOKUP(D39,Январь!$K$12:$Q$154,5,FALSE))," ",VLOOKUP(D39,Январь!$K$12:$Q$154,5,FALSE)) ->  | J39: =IF(ISERROR(VLOOKUP(D39,Январь!$K$12:$Q$154,3,FALSE))," ",VLOOKUP(D39,Январь!$K$12:$Q$154,3,FALSE)) ->  | K39: =IF(ISERROR(VLOOKUP(D39,Январь!$K$12:$Q$154,4,FALSE))," ",VLOOKUP(D39,Январь!$K$12:$Q$154,4,FALSE)) ->  | L39: =IF(ISERROR(VLOOKUP(A39,Январь!$A$10:$J$154,9,FALSE))," ",VLOOKUP(A39,Январь!$A$10:$J$154,9,FALSE)) ->  | M39: =IF(ISERROR(VLOOKUP(A39,Январь!$A$10:$J$154,10,FALSE))," ",VLOOKUP(A39,Январь!$A$10:$J$154,10,FALSE)) -> 
A40: К38 | B40: =IF(ISERROR(VLOOKUP(A40,Январь!$A$10:$Q$154,13,FALSE))," ",VLOOKUP(A40,Январь!$A$10:$Q$154,13,FALSE)) ->  | C40: =IF(ISERROR(VLOOKUP(A40,Январь!$A$10:$Q$154,14,FALSE))," ",VLOOKUP(A40,Январь!$A$10:$Q$154,14,FALSE)) ->  | D40: =IF(ISERROR(VLOOKUP(A40,Январь!$A$10:$J$154,3,FALSE))," ",VLOOKUP(A40,Январь!$A$10:$J$154,3,FALSE)) ->  | E40: =IF(ISERROR(VLOOKUP(A40,Январь!$A$10:$J$154,4,FALSE))," ",VLOOKUP(A40,Январь!$A$10:$J$154,4,FALSE)) ->  | F40: =IF(ISERROR(VLOOKUP(A40,Январь!$A$10:$J$154,5,FALSE))," ",VLOOKUP(A40,Январь!$A$10:$J$154,5,FALSE)) ->  | G40: =IF(ISERROR(VLOOKUP(A40,Январь!$A$10:$J$154,6,FALSE))," ",VLOOKUP(A40,Январь!$A$10:$J$154,6,FALSE)) ->  | H40: =IF(ISERROR(VLOOKUP(D40,Январь!$K$12:$Q$154,2,FALSE))," ",VLOOKUP(D40,Январь!$K$12:$Q$154,2,FALSE)) ->  | I40: =IF(ISERROR(VLOOKUP(D40,Январь!$K$12:$Q$154,5,FALSE))," ",VLOOKUP(D40,Январь!$K$12:$Q$154,5,FALSE)) ->  | J40: =IF(ISERROR(VLOOKUP(D40,Январь!$K$12:$Q$154,3,FALSE))," ",VLOOKUP(D40,Январь!$K$12:$Q$154,3,FALSE)) ->  | K40: =IF(ISERROR(VLOOKUP(D40,Январь!$K$12:$Q$154,4,FALSE))," ",VLOOKUP(D40,Январь!$K$12:$Q$154,4,FALSE)) ->  | L40: =IF(ISERROR(VLOOKUP(A40,Январь!$A$10:$J$154,9,FALSE))," ",VLOOKUP(A40,Январь!$A$10:$J$154,9,FALSE)) ->  | M40: =IF(ISERROR(VLOOKUP(A40,Январь!$A$10:$J$154,10,FALSE))," ",VLOOKUP(A40,Январь!$A$10:$J$154,10,FALSE)) -> 
A41: К39 | B41: =IF(ISERROR(VLOOKUP(A41,Январь!$A$10:$Q$154,13,FALSE))," ",VLOOKUP(A41,Январь!$A$10:$Q$154,13,FALSE)) ->  | C41: =IF(ISERROR(VLOOKUP(A41,Январь!$A$10:$Q$154,14,FALSE))," ",VLOOKUP(A41,Январь!$A$10:$Q$154,14,FALSE)) ->  | D41: =IF(ISERROR(VLOOKUP(A41,Январь!$A$10:$J$154,3,FALSE))," ",VLOOKUP(A41,Январь!$A$10:$J$154,3,FALSE)) ->  | E41: =IF(ISERROR(VLOOKUP(A41,Январь!$A$10:$J$154,4,FALSE))," ",VLOOKUP(A41,Январь!$A$10:$J$154,4,FALSE)) ->  | F41: =IF(ISERROR(VLOOKUP(A41,Январь!$A$10:$J$154,5,FALSE))," ",VLOOKUP(A41,Январь!$A$10:$J$154,5,FALSE)) ->  | G41: =IF(ISERROR(VLOOKUP(A41,Январь!$A$10:$J$154,6,FALSE))," ",VLOOKUP(A41,Январь!$A$10:$J$154,6,FALSE)) ->  | H41: =IF(ISERROR(VLOOKUP(D41,Январь!$K$12:$Q$154,2,FALSE))," ",VLOOKUP(D41,Январь!$K$12:$Q$154,2,FALSE)) ->  | I41: =IF(ISERROR(VLOOKUP(D41,Январь!$K$12:$Q$154,5,FALSE))," ",VLOOKUP(D41,Январь!$K$12:$Q$154,5,FALSE)) ->  | J41: =IF(ISERROR(VLOOKUP(D41,Январь!$K$12:$Q$154,3,FALSE))," ",VLOOKUP(D41,Январь!$K$12:$Q$154,3,FALSE)) ->  | K41: =IF(ISERROR(VLOOKUP(D41,Январь!$K$12:$Q$154,4,FALSE))," ",VLOOKUP(D41,Январь!$K$12:$Q$154,4,FALSE)) ->  | L41: =IF(ISERROR(VLOOKUP(A41,Январь!$A$10:$J$154,9,FALSE))," ",VLOOKUP(A41,Январь!$A$10:$J$154,9,FALSE)) ->  | M41: =IF(ISERROR(VLOOKUP(A41,Январь!$A$10:$J$154,10,FALSE))," ",VLOOKUP(A41,Январь!$A$10:$J$154,10,FALSE)) -> 
A42: К40 | B42: =IF(ISERROR(VLOOKUP(A42,Январь!$A$10:$Q$154,13,FALSE))," ",VLOOKUP(A42,Январь!$A$10:$Q$154,13,FALSE)) ->  | C42: =IF(ISERROR(VLOOKUP(A42,Январь!$A$10:$Q$154,14,FALSE))," ",VLOOKUP(A42,Январь!$A$10:$Q$154,14,FALSE)) ->  | D42: =IF(ISERROR(VLOOKUP(A42,Январь!$A$10:$J$154,3,FALSE))," ",VLOOKUP(A42,Январь!$A$10:$J$154,3,FALSE)) ->  | E42: =IF(ISERROR(VLOOKUP(A42,Январь!$A$10:$J$154,4,FALSE))," ",VLOOKUP(A42,Январь!$A$10:$J$154,4,FALSE)) ->  | F42: =IF(ISERROR(VLOOKUP(A42,Январь!$A$10:$J$154,5,FALSE))," ",VLOOKUP(A42,Январь!$A$10:$J$154,5,FALSE)) ->  | G42: =IF(ISERROR(VLOOKUP(A42,Январь!$A$10:$J$154,6,FALSE))," ",VLOOKUP(A42,Январь!$A$10:$J$154,6,FALSE)) ->  | H42: =IF(ISERROR(VLOOKUP(D42,Январь!$K$12:$Q$154,2,FALSE))," ",VLOOKUP(D42,Январь!$K$12:$Q$154,2,FALSE)) ->  | I42: =IF(ISERROR(VLOOKUP(D42,Январь!$K$12:$Q$154,5,FALSE))," ",VLOOKUP(D42,Январь!$K$12:$Q$154,5,FALSE)) ->  | J42: =IF(ISERROR(VLOOKUP(D42,Январь!$K$12:$Q$154,3,FALSE))," ",VLOOKUP(D42,Январь!$K$12:$Q$154,3,FALSE)) ->  | K42: =IF(ISERROR(VLOOKUP(D42,Январь!$K$12:$Q$154,4,FALSE))," ",VLOOKUP(D42,Январь!$K$12:$Q$154,4,FALSE)) ->  | L42: =IF(ISERROR(VLOOKUP(A42,Январь!$A$10:$J$154,9,FALSE))," ",VLOOKUP(A42,Январь!$A$10:$J$154,9,FALSE)) ->  | M42: =IF(ISERROR(VLOOKUP(A42,Январь!$A$10:$J$154,10,FALSE))," ",VLOOKUP(A42,Январь!$A$10:$J$154,10,FALSE)) -> 
A43: К41 | B43: =IF(ISERROR(VLOOKUP(A43,Январь!$A$10:$Q$154,13,FALSE))," ",VLOOKUP(A43,Январь!$A$10:$Q$154,13,FALSE)) ->  | C43: =IF(ISERROR(VLOOKUP(A43,Январь!$A$10:$Q$154,14,FALSE))," ",VLOOKUP(A43,Январь!$A$10:$Q$154,14,FALSE)) ->  | D43: =IF(ISERROR(VLOOKUP(A43,Январь!$A$10:$J$154,3,FALSE))," ",VLOOKUP(A43,Январь!$A$10:$J$154,3,FALSE)) ->  | E43: =IF(ISERROR(VLOOKUP(A43,Январь!$A$10:$J$154,4,FALSE))," ",VLOOKUP(A43,Январь!$A$10:$J$154,4,FALSE)) ->  | F43: =IF(ISERROR(VLOOKUP(A43,Январь!$A$10:$J$154,5,FALSE))," ",VLOOKUP(A43,Январь!$A$10:$J$154,5,FALSE)) ->  | G43: =IF(ISERROR(VLOOKUP(A43,Январь!$A$10:$J$154,6,FALSE))," ",VLOOKUP(A43,Январь!$A$10:$J$154,6,FALSE)) ->  | H43: =IF(ISERROR(VLOOKUP(D43,Январь!$K$12:$Q$154,2,FALSE))," ",VLOOKUP(D43,Январь!$K$12:$Q$154,2,FALSE)) ->  | I43: =IF(ISERROR(VLOOKUP(D43,Январь!$K$12:$Q$154,5,FALSE))," ",VLOOKUP(D43,Январь!$K$12:$Q$154,5,FALSE)) ->  | J43: =IF(ISERROR(VLOOKUP(D43,Январь!$K$12:$Q$154,3,FALSE))," ",VLOOKUP(D43,Январь!$K$12:$Q$154,3,FALSE)) ->  | K43: =IF(ISERROR(VLOOKUP(D43,Январь!$K$12:$Q$154,4,FALSE))," ",VLOOKUP(D43,Январь!$K$12:$Q$154,4,FALSE)) ->  | L43: =IF(ISERROR(VLOOKUP(A43,Январь!$A$10:$J$154,9,FALSE))," ",VLOOKUP(A43,Январь!$A$10:$J$154,9,FALSE)) ->  | M43: =IF(ISERROR(VLOOKUP(A43,Январь!$A$10:$J$154,10,FALSE))," ",VLOOKUP(A43,Январь!$A$10:$J$154,10,FALSE)) -> 
A44: К42 | B44: =IF(ISERROR(VLOOKUP(A44,Январь!$A$10:$Q$154,13,FALSE))," ",VLOOKUP(A44,Январь!$A$10:$Q$154,13,FALSE)) ->  | C44: =IF(ISERROR(VLOOKUP(A44,Январь!$A$10:$Q$154,14,FALSE))," ",VLOOKUP(A44,Январь!$A$10:$Q$154,14,FALSE)) ->  | D44: =IF(ISERROR(VLOOKUP(A44,Январь!$A$10:$J$154,3,FALSE))," ",VLOOKUP(A44,Январь!$A$10:$J$154,3,FALSE)) ->  | E44: =IF(ISERROR(VLOOKUP(A44,Январь!$A$10:$J$154,4,FALSE))," ",VLOOKUP(A44,Январь!$A$10:$J$154,4,FALSE)) ->  | F44: =IF(ISERROR(VLOOKUP(A44,Январь!$A$10:$J$154,5,FALSE))," ",VLOOKUP(A44,Январь!$A$10:$J$154,5,FALSE)) ->  | G44: =IF(ISERROR(VLOOKUP(A44,Январь!$A$10:$J$154,6,FALSE))," ",VLOOKUP(A44,Январь!$A$10:$J$154,6,FALSE)) ->  | H44: =IF(ISERROR(VLOOKUP(D44,Январь!$K$12:$Q$154,2,FALSE))," ",VLOOKUP(D44,Январь!$K$12:$Q$154,2,FALSE)) ->  | I44: =IF(ISERROR(VLOOKUP(D44,Январь!$K$12:$Q$154,5,FALSE))," ",VLOOKUP(D44,Январь!$K$12:$Q$154,5,FALSE)) ->  | J44: =IF(ISERROR(VLOOKUP(D44,Январь!$K$12:$Q$154,3,FALSE))," ",VLOOKUP(D44,Январь!$K$12:$Q$154,3,FALSE)) ->  | K44: =IF(ISERROR(VLOOKUP(D44,Январь!$K$12:$Q$154,4,FALSE))," ",VLOOKUP(D44,Январь!$K$12:$Q$154,4,FALSE)) ->  | L44: =IF(ISERROR(VLOOKUP(A44,Январь!$A$10:$J$154,9,FALSE))," ",VLOOKUP(A44,Январь!$A$10:$J$154,9,FALSE)) ->  | M44: =IF(ISERROR(VLOOKUP(A44,Январь!$A$10:$J$154,10,FALSE))," ",VLOOKUP(A44,Январь!$A$10:$J$154,10,FALSE)) -> 
A45: К43 | B45: =IF(ISERROR(VLOOKUP(A45,Январь!$A$10:$Q$154,13,FALSE))," ",VLOOKUP(A45,Январь!$A$10:$Q$154,13,FALSE)) ->  | C45: =IF(ISERROR(VLOOKUP(A45,Январь!$A$10:$Q$154,14,FALSE))," ",VLOOKUP(A45,Январь!$A$10:$Q$154,14,FALSE)) ->  | D45: =IF(ISERROR(VLOOKUP(A45,Январь!$A$10:$J$154,3,FALSE))," ",VLOOKUP(A45,Январь!$A$10:$J$154,3,FALSE)) ->  | E45: =IF(ISERROR(VLOOKUP(A45,Январь!$A$10:$J$154,4,FALSE))," ",VLOOKUP(A45,Январь!$A$10:$J$154,4,FALSE)) ->  | F45: =IF(ISERROR(VLOOKUP(A45,Январь!$A$10:$J$154,5,FALSE))," ",VLOOKUP(A45,Январь!$A$10:$J$154,5,FALSE)) ->  | G45: =IF(ISERROR(VLOOKUP(A45,Январь!$A$10:$J$154,6,FALSE))," ",VLOOKUP(A45,Январь!$A$10:$J$154,6,FALSE)) ->  | H45: =IF(ISERROR(VLOOKUP(D45,Январь!$K$12:$Q$154,2,FALSE))," ",VLOOKUP(D45,Январь!$K$12:$Q$154,2,FALSE)) ->  | I45: =IF(ISERROR(VLOOKUP(D45,Январь!$K$12:$Q$154,5,FALSE))," ",VLOOKUP(D45,Январь!$K$12:$Q$154,5,FALSE)) ->  | J45: =IF(ISERROR(VLOOKUP(D45,Январь!$K$12:$Q$154,3,FALSE))," ",VLOOKUP(D45,Январь!$K$12:$Q$154,3,FALSE)) ->  | K45: =IF(ISERROR(VLOOKUP(D45,Январь!$K$12:$Q$154,4,FALSE))," ",VLOOKUP(D45,Январь!$K$12:$Q$154,4,FALSE)) ->  | L45: =IF(ISERROR(VLOOKUP(A45,Январь!$A$10:$J$154,9,FALSE))," ",VLOOKUP(A45,Январь!$A$10:$J$154,9,FALSE)) ->  | M45: =IF(ISERROR(VLOOKUP(A45,Январь!$A$10:$J$154,10,FALSE))," ",VLOOKUP(A45,Январь!$A$10:$J$154,10,FALSE)) -> 
A46: К44 | B46: =IF(ISERROR(VLOOKUP(A46,Январь!$A$10:$Q$154,13,FALSE))," ",VLOOKUP(A46,Январь!$A$10:$Q$154,13,FALSE)) ->  | C46: =IF(ISERROR(VLOOKUP(A46,Январь!$A$10:$Q$154,14,FALSE))," ",VLOOKUP(A46,Январь!$A$10:$Q$154,14,FALSE)) ->  | D46: =IF(ISERROR(VLOOKUP(A46,Январь!$A$10:$J$154,3,FALSE))," ",VLOOKUP(A46,Январь!$A$10:$J$154,3,FALSE)) ->  | E46: =IF(ISERROR(VLOOKUP(A46,Январь!$A$10:$J$154,4,FALSE))," ",VLOOKUP(A46,Январь!$A$10:$J$154,4,FALSE)) ->  | F46: =IF(ISERROR(VLOOKUP(A46,Январь!$A$10:$J$154,5,FALSE))," ",VLOOKUP(A46,Январь!$A$10:$J$154,5,FALSE)) ->  | G46: =IF(ISERROR(VLOOKUP(A46,Январь!$A$10:$J$154,6,FALSE))," ",VLOOKUP(A46,Январь!$A$10:$J$154,6,FALSE)) ->  | H46: =IF(ISERROR(VLOOKUP(D46,Январь!$K$12:$Q$154,2,FALSE))," ",VLOOKUP(D46,Январь!$K$12:$Q$154,2,FALSE)) ->  | I46: =IF(ISERROR(VLOOKUP(D46,Январь!$K$12:$Q$154,5,FALSE))," ",VLOOKUP(D46,Январь!$K$12:$Q$154,5,FALSE)) ->  | J46: =IF(ISERROR(VLOOKUP(D46,Январь!$K$12:$Q$154,3,FALSE))," ",VLOOKUP(D46,Январь!$K$12:$Q$154,3,FALSE)) ->  | K46: =IF(ISERROR(VLOOKUP(D46,Январь!$K$12:$Q$154,4,FALSE))," ",VLOOKUP(D46,Январь!$K$12:$Q$154,4,FALSE)) ->  | L46: =IF(ISERROR(VLOOKUP(A46,Январь!$A$10:$J$154,9,FALSE))," ",VLOOKUP(A46,Январь!$A$10:$J$154,9,FALSE)) ->  | M46: =IF(ISERROR(VLOOKUP(A46,Январь!$A$10:$J$154,10,FALSE))," ",VLOOKUP(A46,Январь!$A$10:$J$154,10,FALSE)) -> 
A47: К45 | B47: =IF(ISERROR(VLOOKUP(A47,Январь!$A$10:$Q$154,13,FALSE))," ",VLOOKUP(A47,Январь!$A$10:$Q$154,13,FALSE)) ->  | C47: =IF(ISERROR(VLOOKUP(A47,Январь!$A$10:$Q$154,14,FALSE))," ",VLOOKUP(A47,Январь!$A$10:$Q$154,14,FALSE)) ->  | D47: =IF(ISERROR(VLOOKUP(A47,Январь!$A$10:$J$154,3,FALSE))," ",VLOOKUP(A47,Январь!$A$10:$J$154,3,FALSE)) ->  | E47: =IF(ISERROR(VLOOKUP(A47,Январь!$A$10:$J$154,4,FALSE))," ",VLOOKUP(A47,Январь!$A$10:$J$154,4,FALSE)) ->  | F47: =IF(ISERROR(VLOOKUP(A47,Январь!$A$10:$J$154,5,FALSE))," ",VLOOKUP(A47,Январь!$A$10:$J$154,5,FALSE)) ->  | G47: =IF(ISERROR(VLOOKUP(A47,Январь!$A$10:$J$154,6,FALSE))," ",VLOOKUP(A47,Январь!$A$10:$J$154,6,FALSE)) ->  | H47: =IF(ISERROR(VLOOKUP(D47,Январь!$K$12:$Q$154,2,FALSE))," ",VLOOKUP(D47,Январь!$K$12:$Q$154,2,FALSE)) ->  | I47: =IF(ISERROR(VLOOKUP(D47,Январь!$K$12:$Q$154,5,FALSE))," ",VLOOKUP(D47,Январь!$K$12:$Q$154,5,FALSE)) ->  | J47: =IF(ISERROR(VLOOKUP(D47,Январь!$K$12:$Q$154,3,FALSE))," ",VLOOKUP(D47,Январь!$K$12:$Q$154,3,FALSE)) ->  | K47: =IF(ISERROR(VLOOKUP(D47,Январь!$K$12:$Q$154,4,FALSE))," ",VLOOKUP(D47,Январь!$K$12:$Q$154,4,FALSE)) ->  | L47: =IF(ISERROR(VLOOKUP(A47,Январь!$A$10:$J$154,9,FALSE))," ",VLOOKUP(A47,Январь!$A$10:$J$154,9,FALSE)) ->  | M47: =IF(ISERROR(VLOOKUP(A47,Январь!$A$10:$J$154,10,FALSE))," ",VLOOKUP(A47,Январь!$A$10:$J$154,10,FALSE)) -> 
A48: К46 | B48: =IF(ISERROR(VLOOKUP(A48,Январь!$A$10:$Q$154,13,FALSE))," ",VLOOKUP(A48,Январь!$A$10:$Q$154,13,FALSE)) ->  | C48: =IF(ISERROR(VLOOKUP(A48,Январь!$A$10:$Q$154,14,FALSE))," ",VLOOKUP(A48,Январь!$A$10:$Q$154,14,FALSE)) ->  | D48: =IF(ISERROR(VLOOKUP(A48,Январь!$A$10:$J$154,3,FALSE))," ",VLOOKUP(A48,Январь!$A$10:$J$154,3,FALSE)) ->  | E48: =IF(ISERROR(VLOOKUP(A48,Январь!$A$10:$J$154,4,FALSE))," ",VLOOKUP(A48,Январь!$A$10:$J$154,4,FALSE)) ->  | F48: =IF(ISERROR(VLOOKUP(A48,Январь!$A$10:$J$154,5,FALSE))," ",VLOOKUP(A48,Январь!$A$10:$J$154,5,FALSE)) ->  | G48: =IF(ISERROR(VLOOKUP(A48,Январь!$A$10:$J$154,6,FALSE))," ",VLOOKUP(A48,Январь!$A$10:$J$154,6,FALSE)) ->  | H48: =IF(ISERROR(VLOOKUP(D48,Январь!$K$12:$Q$154,2,FALSE))," ",VLOOKUP(D48,Январь!$K$12:$Q$154,2,FALSE)) ->  | I48: =IF(ISERROR(VLOOKUP(D48,Январь!$K$12:$Q$154,5,FALSE))," ",VLOOKUP(D48,Январь!$K$12:$Q$154,5,FALSE)) ->  | J48: =IF(ISERROR(VLOOKUP(D48,Январь!$K$12:$Q$154,3,FALSE))," ",VLOOKUP(D48,Январь!$K$12:$Q$154,3,FALSE)) ->  | K48: =IF(ISERROR(VLOOKUP(D48,Январь!$K$12:$Q$154,4,FALSE))," ",VLOOKUP(D48,Январь!$K$12:$Q$154,4,FALSE)) ->  | L48: =IF(ISERROR(VLOOKUP(A48,Январь!$A$10:$J$154,9,FALSE))," ",VLOOKUP(A48,Январь!$A$10:$J$154,9,FALSE)) ->  | M48: =IF(ISERROR(VLOOKUP(A48,Январь!$A$10:$J$154,10,FALSE))," ",VLOOKUP(A48,Январь!$A$10:$J$154,10,FALSE)) -> 
A49: К47 | B49: =IF(ISERROR(VLOOKUP(A49,Январь!$A$10:$Q$154,13,FALSE))," ",VLOOKUP(A49,Январь!$A$10:$Q$154,13,FALSE)) ->  | C49: =IF(ISERROR(VLOOKUP(A49,Январь!$A$10:$Q$154,14,FALSE))," ",VLOOKUP(A49,Январь!$A$10:$Q$154,14,FALSE)) ->  | D49: =IF(ISERROR(VLOOKUP(A49,Январь!$A$10:$J$154,3,FALSE))," ",VLOOKUP(A49,Январь!$A$10:$J$154,3,FALSE)) ->  | E49: =IF(ISERROR(VLOOKUP(A49,Январь!$A$10:$J$154,4,FALSE))," ",VLOOKUP(A49,Январь!$A$10:$J$154,4,FALSE)) ->  | F49: =IF(ISERROR(VLOOKUP(A49,Январь!$A$10:$J$154,5,FALSE))," ",VLOOKUP(A49,Январь!$A$10:$J$154,5,FALSE)) ->  | G49: =IF(ISERROR(VLOOKUP(A49,Январь!$A$10:$J$154,6,FALSE))," ",VLOOKUP(A49,Январь!$A$10:$J$154,6,FALSE)) ->  | H49: =IF(ISERROR(VLOOKUP(D49,Январь!$K$12:$Q$154,2,FALSE))," ",VLOOKUP(D49,Январь!$K$12:$Q$154,2,FALSE)) ->  | I49: =IF(ISERROR(VLOOKUP(D49,Январь!$K$12:$Q$154,5,FALSE))," ",VLOOKUP(D49,Январь!$K$12:$Q$154,5,FALSE)) ->  | J49: =IF(ISERROR(VLOOKUP(D49,Январь!$K$12:$Q$154,3,FALSE))," ",VLOOKUP(D49,Январь!$K$12:$Q$154,3,FALSE)) ->  | K49: =IF(ISERROR(VLOOKUP(D49,Январь!$K$12:$Q$154,4,FALSE))," ",VLOOKUP(D49,Январь!$K$12:$Q$154,4,FALSE)) ->  | L49: =IF(ISERROR(VLOOKUP(A49,Январь!$A$10:$J$154,9,FALSE))," ",VLOOKUP(A49,Январь!$A$10:$J$154,9,FALSE)) ->  | M49: =IF(ISERROR(VLOOKUP(A49,Январь!$A$10:$J$154,10,FALSE))," ",VLOOKUP(A49,Январь!$A$10:$J$154,10,FALSE)) -> 
A50: К48 | B50: =IF(ISERROR(VLOOKUP(A50,Январь!$A$10:$Q$154,13,FALSE))," ",VLOOKUP(A50,Январь!$A$10:$Q$154,13,FALSE)) ->  | C50: =IF(ISERROR(VLOOKUP(A50,Январь!$A$10:$Q$154,14,FALSE))," ",VLOOKUP(A50,Январь!$A$10:$Q$154,14,FALSE)) ->  | D50: =IF(ISERROR(VLOOKUP(A50,Январь!$A$10:$J$154,3,FALSE))," ",VLOOKUP(A50,Январь!$A$10:$J$154,3,FALSE)) ->  | E50: =IF(ISERROR(VLOOKUP(A50,Январь!$A$10:$J$154,4,FALSE))," ",VLOOKUP(A50,Январь!$A$10:$J$154,4,FALSE)) ->  | F50: =IF(ISERROR(VLOOKUP(A50,Январь!$A$10:$J$154,5,FALSE))," ",VLOOKUP(A50,Январь!$A$10:$J$154,5,FALSE)) ->  | G50: =IF(ISERROR(VLOOKUP(A50,Январь!$A$10:$J$154,6,FALSE))," ",VLOOKUP(A50,Январь!$A$10:$J$154,6,FALSE)) ->  | H50: =IF(ISERROR(VLOOKUP(D50,Январь!$K$12:$Q$154,2,FALSE))," ",VLOOKUP(D50,Январь!$K$12:$Q$154,2,FALSE)) ->  | I50: =IF(ISERROR(VLOOKUP(D50,Январь!$K$12:$Q$154,5,FALSE))," ",VLOOKUP(D50,Январь!$K$12:$Q$154,5,FALSE)) ->  | J50: =IF(ISERROR(VLOOKUP(D50,Январь!$K$12:$Q$154,3,FALSE))," ",VLOOKUP(D50,Январь!$K$12:$Q$154,3,FALSE)) ->  | K50: =IF(ISERROR(VLOOKUP(D50,Январь!$K$12:$Q$154,4,FALSE))," ",VLOOKUP(D50,Январь!$K$12:$Q$154,4,FALSE)) ->  | L50: =IF(ISERROR(VLOOKUP(A50,Январь!$A$10:$J$154,9,FALSE))," ",VLOOKUP(A50,Январь!$A$10:$J$154,9,FALSE)) ->  | M50: =IF(ISERROR(VLOOKUP(A50,Январь!$A$10:$J$154,10,FALSE))," ",VLOOKUP(A50,Январь!$A$10:$J$154,10,FALSE)) -> 
A51: К49 | B51: =IF(ISERROR(VLOOKUP(A51,Январь!$A$10:$Q$154,13,FALSE))," ",VLOOKUP(A51,Январь!$A$10:$Q$154,13,FALSE)) ->  | C51: =IF(ISERROR(VLOOKUP(A51,Январь!$A$10:$Q$154,14,FALSE))," ",VLOOKUP(A51,Январь!$A$10:$Q$154,14,FALSE)) ->  | D51: =IF(ISERROR(VLOOKUP(A51,Январь!$A$10:$J$154,3,FALSE))," ",VLOOKUP(A51,Январь!$A$10:$J$154,3,FALSE)) ->  | E51: =IF(ISERROR(VLOOKUP(A51,Январь!$A$10:$J$154,4,FALSE))," ",VLOOKUP(A51,Январь!$A$10:$J$154,4,FALSE)) ->  | F51: =IF(ISERROR(VLOOKUP(A51,Январь!$A$10:$J$154,5,FALSE))," ",VLOOKUP(A51,Январь!$A$10:$J$154,5,FALSE)) ->  | G51: =IF(ISERROR(VLOOKUP(A51,Январь!$A$10:$J$154,6,FALSE))," ",VLOOKUP(A51,Январь!$A$10:$J$154,6,FALSE)) ->  | H51: =IF(ISERROR(VLOOKUP(D51,Январь!$K$12:$Q$154,2,FALSE))," ",VLOOKUP(D51,Январь!$K$12:$Q$154,2,FALSE)) ->  | I51: =IF(ISERROR(VLOOKUP(D51,Январь!$K$12:$Q$154,5,FALSE))," ",VLOOKUP(D51,Январь!$K$12:$Q$154,5,FALSE)) ->  | J51: =IF(ISERROR(VLOOKUP(D51,Январь!$K$12:$Q$154,3,FALSE))," ",VLOOKUP(D51,Январь!$K$12:$Q$154,3,FALSE)) ->  | K51: =IF(ISERROR(VLOOKUP(D51,Январь!$K$12:$Q$154,4,FALSE))," ",VLOOKUP(D51,Январь!$K$12:$Q$154,4,FALSE)) ->  | L51: =IF(ISERROR(VLOOKUP(A51,Январь!$A$10:$J$154,9,FALSE))," ",VLOOKUP(A51,Январь!$A$10:$J$154,9,FALSE)) ->  | M51: =IF(ISERROR(VLOOKUP(A51,Январь!$A$10:$J$154,10,FALSE))," ",VLOOKUP(A51,Январь!$A$10:$J$154,10,FALSE)) -> 
A52: К50 | B52: =IF(ISERROR(VLOOKUP(A52,Январь!$A$10:$Q$154,13,FALSE))," ",VLOOKUP(A52,Январь!$A$10:$Q$154,13,FALSE)) ->  | C52: =IF(ISERROR(VLOOKUP(A52,Январь!$A$10:$Q$154,14,FALSE))," ",VLOOKUP(A52,Январь!$A$10:$Q$154,14,FALSE)) ->  | D52: =IF(ISERROR(VLOOKUP(A52,Январь!$A$10:$J$154,3,FALSE))," ",VLOOKUP(A52,Январь!$A$10:$J$154,3,FALSE)) ->  | E52: =IF(ISERROR(VLOOKUP(A52,Январь!$A$10:$J$154,4,FALSE))," ",VLOOKUP(A52,Январь!$A$10:$J$154,4,FALSE)) ->  | F52: =IF(ISERROR(VLOOKUP(A52,Январь!$A$10:$J$154,5,FALSE))," ",VLOOKUP(A52,Январь!$A$10:$J$154,5,FALSE)) ->  | G52: =IF(ISERROR(VLOOKUP(A52,Январь!$A$10:$J$154,6,FALSE))," ",VLOOKUP(A52,Январь!$A$10:$J$154,6,FALSE)) ->  | H52: =IF(ISERROR(VLOOKUP(D52,Январь!$K$12:$Q$154,2,FALSE))," ",VLOOKUP(D52,Январь!$K$12:$Q$154,2,FALSE)) ->  | I52: =IF(ISERROR(VLOOKUP(D52,Январь!$K$12:$Q$154,5,FALSE))," ",VLOOKUP(D52,Январь!$K$12:$Q$154,5,FALSE)) ->  | J52: =IF(ISERROR(VLOOKUP(D52,Январь!$K$12:$Q$154,3,FALSE))," ",VLOOKUP(D52,Январь!$K$12:$Q$154,3,FALSE)) ->  | K52: =IF(ISERROR(VLOOKUP(D52,Январь!$K$12:$Q$154,4,FALSE))," ",VLOOKUP(D52,Январь!$K$12:$Q$154,4,FALSE)) ->  | L52: =IF(ISERROR(VLOOKUP(A52,Январь!$A$10:$J$154,9,FALSE))," ",VLOOKUP(A52,Январь!$A$10:$J$154,9,FALSE)) ->  | M52: =IF(ISERROR(VLOOKUP(A52,Январь!$A$10:$J$154,10,FALSE))," ",VLOOKUP(A52,Январь!$A$10:$J$154,10,FALSE)) -> 
A53: К51 | B53: =IF(ISERROR(VLOOKUP(A53,Январь!$A$10:$Q$154,13,FALSE))," ",VLOOKUP(A53,Январь!$A$10:$Q$154,13,FALSE)) ->  | C53: =IF(ISERROR(VLOOKUP(A53,Январь!$A$10:$Q$154,14,FALSE))," ",VLOOKUP(A53,Январь!$A$10:$Q$154,14,FALSE)) ->  | D53: =IF(ISERROR(VLOOKUP(A53,Январь!$A$10:$J$154,3,FALSE))," ",VLOOKUP(A53,Январь!$A$10:$J$154,3,FALSE)) ->  | E53: =IF(ISERROR(VLOOKUP(A53,Январь!$A$10:$J$154,4,FALSE))," ",VLOOKUP(A53,Январь!$A$10:$J$154,4,FALSE)) ->  | F53: =IF(ISERROR(VLOOKUP(A53,Январь!$A$10:$J$154,5,FALSE))," ",VLOOKUP(A53,Январь!$A$10:$J$154,5,FALSE)) ->  | G53: =IF(ISERROR(VLOOKUP(A53,Январь!$A$10:$J$154,6,FALSE))," ",VLOOKUP(A53,Январь!$A$10:$J$154,6,FALSE)) ->  | H53: =IF(ISERROR(VLOOKUP(D53,Январь!$K$12:$Q$154,2,FALSE))," ",VLOOKUP(D53,Январь!$K$12:$Q$154,2,FALSE)) ->  | I53: =IF(ISERROR(VLOOKUP(D53,Январь!$K$12:$Q$154,5,FALSE))," ",VLOOKUP(D53,Январь!$K$12:$Q$154,5,FALSE)) ->  | J53: =IF(ISERROR(VLOOKUP(D53,Январь!$K$12:$Q$154,3,FALSE))," ",VLOOKUP(D53,Январь!$K$12:$Q$154,3,FALSE)) ->  | K53: =IF(ISERROR(VLOOKUP(D53,Январь!$K$12:$Q$154,4,FALSE))," ",VLOOKUP(D53,Январь!$K$12:$Q$154,4,FALSE)) ->  | L53: =IF(ISERROR(VLOOKUP(A53,Январь!$A$10:$J$154,9,FALSE))," ",VLOOKUP(A53,Январь!$A$10:$J$154,9,FALSE)) ->  | M53: =IF(ISERROR(VLOOKUP(A53,Январь!$A$10:$J$154,10,FALSE))," ",VLOOKUP(A53,Январь!$A$10:$J$154,10,FALSE)) -> 
A54: К52 | B54: =IF(ISERROR(VLOOKUP(A54,Январь!$A$10:$Q$154,13,FALSE))," ",VLOOKUP(A54,Январь!$A$10:$Q$154,13,FALSE)) ->  | C54: =IF(ISERROR(VLOOKUP(A54,Январь!$A$10:$Q$154,14,FALSE))," ",VLOOKUP(A54,Январь!$A$10:$Q$154,14,FALSE)) ->  | D54: =IF(ISERROR(VLOOKUP(A54,Январь!$A$10:$J$154,3,FALSE))," ",VLOOKUP(A54,Январь!$A$10:$J$154,3,FALSE)) ->  | E54: =IF(ISERROR(VLOOKUP(A54,Январь!$A$10:$J$154,4,FALSE))," ",VLOOKUP(A54,Январь!$A$10:$J$154,4,FALSE)) ->  | F54: =IF(ISERROR(VLOOKUP(A54,Январь!$A$10:$J$154,5,FALSE))," ",VLOOKUP(A54,Январь!$A$10:$J$154,5,FALSE)) ->  | G54: =IF(ISERROR(VLOOKUP(A54,Январь!$A$10:$J$154,6,FALSE))," ",VLOOKUP(A54,Январь!$A$10:$J$154,6,FALSE)) ->  | H54: =IF(ISERROR(VLOOKUP(D54,Январь!$K$12:$Q$154,2,FALSE))," ",VLOOKUP(D54,Январь!$K$12:$Q$154,2,FALSE)) ->  | I54: =IF(ISERROR(VLOOKUP(D54,Январь!$K$12:$Q$154,5,FALSE))," ",VLOOKUP(D54,Январь!$K$12:$Q$154,5,FALSE)) ->  | J54: =IF(ISERROR(VLOOKUP(D54,Январь!$K$12:$Q$154,3,FALSE))," ",VLOOKUP(D54,Январь!$K$12:$Q$154,3,FALSE)) ->  | K54: =IF(ISERROR(VLOOKUP(D54,Январь!$K$12:$Q$154,4,FALSE))," ",VLOOKUP(D54,Январь!$K$12:$Q$154,4,FALSE)) ->  | L54: =IF(ISERROR(VLOOKUP(A54,Январь!$A$10:$J$154,9,FALSE))," ",VLOOKUP(A54,Январь!$A$10:$J$154,9,FALSE)) ->  | M54: =IF(ISERROR(VLOOKUP(A54,Январь!$A$10:$J$154,10,FALSE))," ",VLOOKUP(A54,Январь!$A$10:$J$154,10,FALSE)) -> 
A55: К53 | B55: =IF(ISERROR(VLOOKUP(A55,Январь!$A$10:$Q$154,13,FALSE))," ",VLOOKUP(A55,Январь!$A$10:$Q$154,13,FALSE)) ->  | C55: =IF(ISERROR(VLOOKUP(A55,Январь!$A$10:$Q$154,14,FALSE))," ",VLOOKUP(A55,Январь!$A$10:$Q$154,14,FALSE)) ->  | D55: =IF(ISERROR(VLOOKUP(A55,Январь!$A$10:$J$154,3,FALSE))," ",VLOOKUP(A55,Январь!$A$10:$J$154,3,FALSE)) ->  | E55: =IF(ISERROR(VLOOKUP(A55,Январь!$A$10:$J$154,4,FALSE))," ",VLOOKUP(A55,Январь!$A$10:$J$154,4,FALSE)) ->  | F55: =IF(ISERROR(VLOOKUP(A55,Январь!$A$10:$J$154,5,FALSE))," ",VLOOKUP(A55,Январь!$A$10:$J$154,5,FALSE)) ->  | G55: =IF(ISERROR(VLOOKUP(A55,Январь!$A$10:$J$154,6,FALSE))," ",VLOOKUP(A55,Январь!$A$10:$J$154,6,FALSE)) ->  | H55: =IF(ISERROR(VLOOKUP(D55,Январь!$K$12:$Q$154,2,FALSE))," ",VLOOKUP(D55,Январь!$K$12:$Q$154,2,FALSE)) ->  | I55: =IF(ISERROR(VLOOKUP(D55,Январь!$K$12:$Q$154,5,FALSE))," ",VLOOKUP(D55,Январь!$K$12:$Q$154,5,FALSE)) ->  | J55: =IF(ISERROR(VLOOKUP(D55,Январь!$K$12:$Q$154,3,FALSE))," ",VLOOKUP(D55,Январь!$K$12:$Q$154,3,FALSE)) ->  | K55: =IF(ISERROR(VLOOKUP(D55,Январь!$K$12:$Q$154,4,FALSE))," ",VLOOKUP(D55,Январь!$K$12:$Q$154,4,FALSE)) ->  | L55: =IF(ISERROR(VLOOKUP(A55,Январь!$A$10:$J$154,9,FALSE))," ",VLOOKUP(A55,Январь!$A$10:$J$154,9,FALSE)) ->  | M55: =IF(ISERROR(VLOOKUP(A55,Январь!$A$10:$J$154,10,FALSE))," ",VLOOKUP(A55,Январь!$A$10:$J$154,10,FALSE)) -> 
A56: К54 | B56: =IF(ISERROR(VLOOKUP(A56,Январь!$A$10:$Q$154,13,FALSE))," ",VLOOKUP(A56,Январь!$A$10:$Q$154,13,FALSE)) ->  | C56: =IF(ISERROR(VLOOKUP(A56,Январь!$A$10:$Q$154,14,FALSE))," ",VLOOKUP(A56,Январь!$A$10:$Q$154,14,FALSE)) ->  | D56: =IF(ISERROR(VLOOKUP(A56,Январь!$A$10:$J$154,3,FALSE))," ",VLOOKUP(A56,Январь!$A$10:$J$154,3,FALSE)) ->  | E56: =IF(ISERROR(VLOOKUP(A56,Январь!$A$10:$J$154,4,FALSE))," ",VLOOKUP(A56,Январь!$A$10:$J$154,4,FALSE)) ->  | F56: =IF(ISERROR(VLOOKUP(A56,Январь!$A$10:$J$154,5,FALSE))," ",VLOOKUP(A56,Январь!$A$10:$J$154,5,FALSE)) ->  | G56: =IF(ISERROR(VLOOKUP(A56,Январь!$A$10:$J$154,6,FALSE))," ",VLOOKUP(A56,Январь!$A$10:$J$154,6,FALSE)) ->  | H56: =IF(ISERROR(VLOOKUP(D56,Январь!$K$12:$Q$154,2,FALSE))," ",VLOOKUP(D56,Январь!$K$12:$Q$154,2,FALSE)) ->  | I56: =IF(ISERROR(VLOOKUP(D56,Январь!$K$12:$Q$154,5,FALSE))," ",VLOOKUP(D56,Январь!$K$12:$Q$154,5,FALSE)) ->  | J56: =IF(ISERROR(VLOOKUP(D56,Январь!$K$12:$Q$154,3,FALSE))," ",VLOOKUP(D56,Январь!$K$12:$Q$154,3,FALSE)) ->  | K56: =IF(ISERROR(VLOOKUP(D56,Январь!$K$12:$Q$154,4,FALSE))," ",VLOOKUP(D56,Январь!$K$12:$Q$154,4,FALSE)) ->  | L56: =IF(ISERROR(VLOOKUP(A56,Январь!$A$10:$J$154,9,FALSE))," ",VLOOKUP(A56,Январь!$A$10:$J$154,9,FALSE)) ->  | M56: =IF(ISERROR(VLOOKUP(A56,Январь!$A$10:$J$154,10,FALSE))," ",VLOOKUP(A56,Январь!$A$10:$J$154,10,FALSE)) -> 
A57: К55 | B57: =IF(ISERROR(VLOOKUP(A57,Январь!$A$10:$Q$154,13,FALSE))," ",VLOOKUP(A57,Январь!$A$10:$Q$154,13,FALSE)) ->  | C57: =IF(ISERROR(VLOOKUP(A57,Январь!$A$10:$Q$154,14,FALSE))," ",VLOOKUP(A57,Январь!$A$10:$Q$154,14,FALSE)) ->  | D57: =IF(ISERROR(VLOOKUP(A57,Январь!$A$10:$J$154,3,FALSE))," ",VLOOKUP(A57,Январь!$A$10:$J$154,3,FALSE)) ->  | E57: =IF(ISERROR(VLOOKUP(A57,Январь!$A$10:$J$154,4,FALSE))," ",VLOOKUP(A57,Январь!$A$10:$J$154,4,FALSE)) ->  | F57: =IF(ISERROR(VLOOKUP(A57,Январь!$A$10:$J$154,5,FALSE))," ",VLOOKUP(A57,Январь!$A$10:$J$154,5,FALSE)) ->  | G57: =IF(ISERROR(VLOOKUP(A57,Январь!$A$10:$J$154,6,FALSE))," ",VLOOKUP(A57,Январь!$A$10:$J$154,6,FALSE)) ->  | H57: =IF(ISERROR(VLOOKUP(D57,Январь!$K$12:$Q$154,2,FALSE))," ",VLOOKUP(D57,Январь!$K$12:$Q$154,2,FALSE)) ->  | I57: =IF(ISERROR(VLOOKUP(D57,Январь!$K$12:$Q$154,5,FALSE))," ",VLOOKUP(D57,Январь!$K$12:$Q$154,5,FALSE)) ->  | J57: =IF(ISERROR(VLOOKUP(D57,Январь!$K$12:$Q$154,3,FALSE))," ",VLOOKUP(D57,Январь!$K$12:$Q$154,3,FALSE)) ->  | K57: =IF(ISERROR(VLOOKUP(D57,Январь!$K$12:$Q$154,4,FALSE))," ",VLOOKUP(D57,Январь!$K$12:$Q$154,4,FALSE)) ->  | L57: =IF(ISERROR(VLOOKUP(A57,Январь!$A$10:$J$154,9,FALSE))," ",VLOOKUP(A57,Январь!$A$10:$J$154,9,FALSE)) ->  | M57: =IF(ISERROR(VLOOKUP(A57,Январь!$A$10:$J$154,10,FALSE))," ",VLOOKUP(A57,Январь!$A$10:$J$154,10,FALSE)) -> 
A58: К56 | B58: =IF(ISERROR(VLOOKUP(A58,Январь!$A$10:$Q$154,13,FALSE))," ",VLOOKUP(A58,Январь!$A$10:$Q$154,13,FALSE)) ->  | C58: =IF(ISERROR(VLOOKUP(A58,Январь!$A$10:$Q$154,14,FALSE))," ",VLOOKUP(A58,Январь!$A$10:$Q$154,14,FALSE)) ->  | D58: =IF(ISERROR(VLOOKUP(A58,Январь!$A$10:$J$154,3,FALSE))," ",VLOOKUP(A58,Январь!$A$10:$J$154,3,FALSE)) ->  | E58: =IF(ISERROR(VLOOKUP(A58,Январь!$A$10:$J$154,4,FALSE))," ",VLOOKUP(A58,Январь!$A$10:$J$154,4,FALSE)) ->  | F58: =IF(ISERROR(VLOOKUP(A58,Январь!$A$10:$J$154,5,FALSE))," ",VLOOKUP(A58,Январь!$A$10:$J$154,5,FALSE)) ->  | G58: =IF(ISERROR(VLOOKUP(A58,Январь!$A$10:$J$154,6,FALSE))," ",VLOOKUP(A58,Январь!$A$10:$J$154,6,FALSE)) ->  | H58: =IF(ISERROR(VLOOKUP(D58,Январь!$K$12:$Q$154,2,FALSE))," ",VLOOKUP(D58,Январь!$K$12:$Q$154,2,FALSE)) ->  | I58: =IF(ISERROR(VLOOKUP(D58,Январь!$K$12:$Q$154,5,FALSE))," ",VLOOKUP(D58,Январь!$K$12:$Q$154,5,FALSE)) ->  | J58: =IF(ISERROR(VLOOKUP(D58,Январь!$K$12:$Q$154,3,FALSE))," ",VLOOKUP(D58,Январь!$K$12:$Q$154,3,FALSE)) ->  | K58: =IF(ISERROR(VLOOKUP(D58,Январь!$K$12:$Q$154,4,FALSE))," ",VLOOKUP(D58,Январь!$K$12:$Q$154,4,FALSE)) ->  | L58: =IF(ISERROR(VLOOKUP(A58,Январь!$A$10:$J$154,9,FALSE))," ",VLOOKUP(A58,Январь!$A$10:$J$154,9,FALSE)) ->  | M58: =IF(ISERROR(VLOOKUP(A58,Январь!$A$10:$J$154,10,FALSE))," ",VLOOKUP(A58,Январь!$A$10:$J$154,10,FALSE)) -> 
A59: К57 | B59: =IF(ISERROR(VLOOKUP(A59,Январь!$A$10:$Q$154,13,FALSE))," ",VLOOKUP(A59,Январь!$A$10:$Q$154,13,FALSE)) ->  | C59: =IF(ISERROR(VLOOKUP(A59,Январь!$A$10:$Q$154,14,FALSE))," ",VLOOKUP(A59,Январь!$A$10:$Q$154,14,FALSE)) ->  | D59: =IF(ISERROR(VLOOKUP(A59,Январь!$A$10:$J$154,3,FALSE))," ",VLOOKUP(A59,Январь!$A$10:$J$154,3,FALSE)) ->  | E59: =IF(ISERROR(VLOOKUP(A59,Январь!$A$10:$J$154,4,FALSE))," ",VLOOKUP(A59,Январь!$A$10:$J$154,4,FALSE)) ->  | F59: =IF(ISERROR(VLOOKUP(A59,Январь!$A$10:$J$154,5,FALSE))," ",VLOOKUP(A59,Январь!$A$10:$J$154,5,FALSE)) ->  | G59: =IF(ISERROR(VLOOKUP(A59,Январь!$A$10:$J$154,6,FALSE))," ",VLOOKUP(A59,Январь!$A$10:$J$154,6,FALSE)) ->  | H59: =IF(ISERROR(VLOOKUP(D59,Январь!$K$12:$Q$154,2,FALSE))," ",VLOOKUP(D59,Январь!$K$12:$Q$154,2,FALSE)) ->  | I59: =IF(ISERROR(VLOOKUP(D59,Январь!$K$12:$Q$154,5,FALSE))," ",VLOOKUP(D59,Январь!$K$12:$Q$154,5,FALSE)) ->  | J59: =IF(ISERROR(VLOOKUP(D59,Январь!$K$12:$Q$154,3,FALSE))," ",VLOOKUP(D59,Январь!$K$12:$Q$154,3,FALSE)) ->  | K59: =IF(ISERROR(VLOOKUP(D59,Январь!$K$12:$Q$154,4,FALSE))," ",VLOOKUP(D59,Январь!$K$12:$Q$154,4,FALSE)) ->  | L59: =IF(ISERROR(VLOOKUP(A59,Январь!$A$10:$J$154,9,FALSE))," ",VLOOKUP(A59,Январь!$A$10:$J$154,9,FALSE)) ->  | M59: =IF(ISERROR(VLOOKUP(A59,Январь!$A$10:$J$154,10,FALSE))," ",VLOOKUP(A59,Январь!$A$10:$J$154,10,FALSE)) -> 
A60: К58 | B60: =IF(ISERROR(VLOOKUP(A60,Январь!$A$10:$Q$154,13,FALSE))," ",VLOOKUP(A60,Январь!$A$10:$Q$154,13,FALSE)) ->  | C60: =IF(ISERROR(VLOOKUP(A60,Январь!$A$10:$Q$154,14,FALSE))," ",VLOOKUP(A60,Январь!$A$10:$Q$154,14,FALSE)) ->  | D60: =IF(ISERROR(VLOOKUP(A60,Январь!$A$10:$J$154,3,FALSE))," ",VLOOKUP(A60,Январь!$A$10:$J$154,3,FALSE)) ->  | E60: =IF(ISERROR(VLOOKUP(A60,Январь!$A$10:$J$154,4,FALSE))," ",VLOOKUP(A60,Январь!$A$10:$J$154,4,FALSE)) ->  | F60: =IF(ISERROR(VLOOKUP(A60,Январь!$A$10:$J$154,5,FALSE))," ",VLOOKUP(A60,Январь!$A$10:$J$154,5,FALSE)) ->  | G60: =IF(ISERROR(VLOOKUP(A60,Январь!$A$10:$J$154,6,FALSE))," ",VLOOKUP(A60,Январь!$A$10:$J$154,6,FALSE)) ->  | H60: =IF(ISERROR(VLOOKUP(D60,Январь!$K$12:$Q$154,2,FALSE))," ",VLOOKUP(D60,Январь!$K$12:$Q$154,2,FALSE)) ->  | I60: =IF(ISERROR(VLOOKUP(D60,Январь!$K$12:$Q$154,5,FALSE))," ",VLOOKUP(D60,Январь!$K$12:$Q$154,5,FALSE)) ->  | J60: =IF(ISERROR(VLOOKUP(D60,Январь!$K$12:$Q$154,3,FALSE))," ",VLOOKUP(D60,Январь!$K$12:$Q$154,3,FALSE)) ->  | K60: =IF(ISERROR(VLOOKUP(D60,Январь!$K$12:$Q$154,4,FALSE))," ",VLOOKUP(D60,Январь!$K$12:$Q$154,4,FALSE)) ->  | L60: =IF(ISERROR(VLOOKUP(A60,Январь!$A$10:$J$154,9,FALSE))," ",VLOOKUP(A60,Январь!$A$10:$J$154,9,FALSE)) ->  | M60: =IF(ISERROR(VLOOKUP(A60,Январь!$A$10:$J$154,10,FALSE))," ",VLOOKUP(A60,Январь!$A$10:$J$154,10,FALSE)) -> 
A61: К59 | B61: =IF(ISERROR(VLOOKUP(A61,Январь!$A$10:$Q$154,13,FALSE))," ",VLOOKUP(A61,Январь!$A$10:$Q$154,13,FALSE)) ->  | C61: =IF(ISERROR(VLOOKUP(A61,Январь!$A$10:$Q$154,14,FALSE))," ",VLOOKUP(A61,Январь!$A$10:$Q$154,14,FALSE)) ->  | D61: =IF(ISERROR(VLOOKUP(A61,Январь!$A$10:$J$154,3,FALSE))," ",VLOOKUP(A61,Январь!$A$10:$J$154,3,FALSE)) ->  | E61: =IF(ISERROR(VLOOKUP(A61,Январь!$A$10:$J$154,4,FALSE))," ",VLOOKUP(A61,Январь!$A$10:$J$154,4,FALSE)) ->  | F61: =IF(ISERROR(VLOOKUP(A61,Январь!$A$10:$J$154,5,FALSE))," ",VLOOKUP(A61,Январь!$A$10:$J$154,5,FALSE)) ->  | G61: =IF(ISERROR(VLOOKUP(A61,Январь!$A$10:$J$154,6,FALSE))," ",VLOOKUP(A61,Январь!$A$10:$J$154,6,FALSE)) ->  | H61: =IF(ISERROR(VLOOKUP(D61,Январь!$K$12:$Q$154,2,FALSE))," ",VLOOKUP(D61,Январь!$K$12:$Q$154,2,FALSE)) ->  | I61: =IF(ISERROR(VLOOKUP(D61,Январь!$K$12:$Q$154,5,FALSE))," ",VLOOKUP(D61,Январь!$K$12:$Q$154,5,FALSE)) ->  | J61: =IF(ISERROR(VLOOKUP(D61,Январь!$K$12:$Q$154,3,FALSE))," ",VLOOKUP(D61,Январь!$K$12:$Q$154,3,FALSE)) ->  | K61: =IF(ISERROR(VLOOKUP(D61,Январь!$K$12:$Q$154,4,FALSE))," ",VLOOKUP(D61,Январь!$K$12:$Q$154,4,FALSE)) ->  | L61: =IF(ISERROR(VLOOKUP(A61,Январь!$A$10:$J$154,9,FALSE))," ",VLOOKUP(A61,Январь!$A$10:$J$154,9,FALSE)) ->  | M61: =IF(ISERROR(VLOOKUP(A61,Январь!$A$10:$J$154,10,FALSE))," ",VLOOKUP(A61,Январь!$A$10:$J$154,10,FALSE)) -> 
A62: К60 | B62: =IF(ISERROR(VLOOKUP(A62,Январь!$A$10:$Q$154,13,FALSE))," ",VLOOKUP(A62,Январь!$A$10:$Q$154,13,FALSE)) ->  | C62: =IF(ISERROR(VLOOKUP(A62,Январь!$A$10:$Q$154,14,FALSE))," ",VLOOKUP(A62,Январь!$A$10:$Q$154,14,FALSE)) ->  | D62: =IF(ISERROR(VLOOKUP(A62,Январь!$A$10:$J$154,3,FALSE))," ",VLOOKUP(A62,Январь!$A$10:$J$154,3,FALSE)) ->  | E62: =IF(ISERROR(VLOOKUP(A62,Январь!$A$10:$J$154,4,FALSE))," ",VLOOKUP(A62,Январь!$A$10:$J$154,4,FALSE)) ->  | F62: =IF(ISERROR(VLOOKUP(A62,Январь!$A$10:$J$154,5,FALSE))," ",VLOOKUP(A62,Январь!$A$10:$J$154,5,FALSE)) ->  | G62: =IF(ISERROR(VLOOKUP(A62,Январь!$A$10:$J$154,6,FALSE))," ",VLOOKUP(A62,Январь!$A$10:$J$154,6,FALSE)) ->  | H62: =IF(ISERROR(VLOOKUP(D62,Январь!$K$12:$Q$154,2,FALSE))," ",VLOOKUP(D62,Январь!$K$12:$Q$154,2,FALSE)) ->  | I62: =IF(ISERROR(VLOOKUP(D62,Январь!$K$12:$Q$154,5,FALSE))," ",VLOOKUP(D62,Январь!$K$12:$Q$154,5,FALSE)) ->  | J62: =IF(ISERROR(VLOOKUP(D62,Январь!$K$12:$Q$154,3,FALSE))," ",VLOOKUP(D62,Январь!$K$12:$Q$154,3,FALSE)) ->  | K62: =IF(ISERROR(VLOOKUP(D62,Январь!$K$12:$Q$154,4,FALSE))," ",VLOOKUP(D62,Январь!$K$12:$Q$154,4,FALSE)) ->  | L62: =IF(ISERROR(VLOOKUP(A62,Январь!$A$10:$J$154,9,FALSE))," ",VLOOKUP(A62,Январь!$A$10:$J$154,9,FALSE)) ->  | M62: =IF(ISERROR(VLOOKUP(A62,Январь!$A$10:$J$154,10,FALSE))," ",VLOOKUP(A62,Январь!$A$10:$J$154,10,FALSE)) -> 
A63: К61 | B63: =IF(ISERROR(VLOOKUP(A63,Январь!$A$10:$Q$154,13,FALSE))," ",VLOOKUP(A63,Январь!$A$10:$Q$154,13,FALSE)) ->  | C63: =IF(ISERROR(VLOOKUP(A63,Январь!$A$10:$Q$154,14,FALSE))," ",VLOOKUP(A63,Январь!$A$10:$Q$154,14,FALSE)) ->  | D63: =IF(ISERROR(VLOOKUP(A63,Январь!$A$10:$J$154,3,FALSE))," ",VLOOKUP(A63,Январь!$A$10:$J$154,3,FALSE)) ->  | E63: =IF(ISERROR(VLOOKUP(A63,Январь!$A$10:$J$154,4,FALSE))," ",VLOOKUP(A63,Январь!$A$10:$J$154,4,FALSE)) ->  | F63: =IF(ISERROR(VLOOKUP(A63,Январь!$A$10:$J$154,5,FALSE))," ",VLOOKUP(A63,Январь!$A$10:$J$154,5,FALSE)) ->  | G63: =IF(ISERROR(VLOOKUP(A63,Январь!$A$10:$J$154,6,FALSE))," ",VLOOKUP(A63,Январь!$A$10:$J$154,6,FALSE)) ->  | H63: =IF(ISERROR(VLOOKUP(D63,Январь!$K$12:$Q$154,2,FALSE))," ",VLOOKUP(D63,Январь!$K$12:$Q$154,2,FALSE)) ->  | I63: =IF(ISERROR(VLOOKUP(D63,Январь!$K$12:$Q$154,5,FALSE))," ",VLOOKUP(D63,Январь!$K$12:$Q$154,5,FALSE)) ->  | J63: =IF(ISERROR(VLOOKUP(D63,Январь!$K$12:$Q$154,3,FALSE))," ",VLOOKUP(D63,Январь!$K$12:$Q$154,3,FALSE)) ->  | K63: =IF(ISERROR(VLOOKUP(D63,Январь!$K$12:$Q$154,4,FALSE))," ",VLOOKUP(D63,Январь!$K$12:$Q$154,4,FALSE)) ->  | L63: =IF(ISERROR(VLOOKUP(A63,Январь!$A$10:$J$154,9,FALSE))," ",VLOOKUP(A63,Январь!$A$10:$J$154,9,FALSE)) ->  | M63: =IF(ISERROR(VLOOKUP(A63,Январь!$A$10:$J$154,10,FALSE))," ",VLOOKUP(A63,Январь!$A$10:$J$154,10,FALSE)) -> 
A64: К62 | B64: =IF(ISERROR(VLOOKUP(A64,Январь!$A$10:$Q$154,13,FALSE))," ",VLOOKUP(A64,Январь!$A$10:$Q$154,13,FALSE)) ->  | C64: =IF(ISERROR(VLOOKUP(A64,Январь!$A$10:$Q$154,14,FALSE))," ",VLOOKUP(A64,Январь!$A$10:$Q$154,14,FALSE)) ->  | D64: =IF(ISERROR(VLOOKUP(A64,Январь!$A$10:$J$154,3,FALSE))," ",VLOOKUP(A64,Январь!$A$10:$J$154,3,FALSE)) ->  | E64: =IF(ISERROR(VLOOKUP(A64,Январь!$A$10:$J$154,4,FALSE))," ",VLOOKUP(A64,Январь!$A$10:$J$154,4,FALSE)) ->  | F64: =IF(ISERROR(VLOOKUP(A64,Январь!$A$10:$J$154,5,FALSE))," ",VLOOKUP(A64,Январь!$A$10:$J$154,5,FALSE)) ->  | G64: =IF(ISERROR(VLOOKUP(A64,Январь!$A$10:$J$154,6,FALSE))," ",VLOOKUP(A64,Январь!$A$10:$J$154,6,FALSE)) ->  | H64: =IF(ISERROR(VLOOKUP(D64,Январь!$K$12:$Q$154,2,FALSE))," ",VLOOKUP(D64,Январь!$K$12:$Q$154,2,FALSE)) ->  | I64: =IF(ISERROR(VLOOKUP(D64,Январь!$K$12:$Q$154,5,FALSE))," ",VLOOKUP(D64,Январь!$K$12:$Q$154,5,FALSE)) ->  | J64: =IF(ISERROR(VLOOKUP(D64,Январь!$K$12:$Q$154,3,FALSE))," ",VLOOKUP(D64,Январь!$K$12:$Q$154,3,FALSE)) ->  | K64: =IF(ISERROR(VLOOKUP(D64,Январь!$K$12:$Q$154,4,FALSE))," ",VLOOKUP(D64,Январь!$K$12:$Q$154,4,FALSE)) ->  | L64: =IF(ISERROR(VLOOKUP(A64,Январь!$A$10:$J$154,9,FALSE))," ",VLOOKUP(A64,Январь!$A$10:$J$154,9,FALSE)) ->  | M64: =IF(ISERROR(VLOOKUP(A64,Январь!$A$10:$J$154,10,FALSE))," ",VLOOKUP(A64,Январь!$A$10:$J$154,10,FALSE)) -> 
A65: К63 | B65: =IF(ISERROR(VLOOKUP(A65,Январь!$A$10:$Q$154,13,FALSE))," ",VLOOKUP(A65,Январь!$A$10:$Q$154,13,FALSE)) ->  | C65: =IF(ISERROR(VLOOKUP(A65,Январь!$A$10:$Q$154,14,FALSE))," ",VLOOKUP(A65,Январь!$A$10:$Q$154,14,FALSE)) ->  | D65: =IF(ISERROR(VLOOKUP(A65,Январь!$A$10:$J$154,3,FALSE))," ",VLOOKUP(A65,Январь!$A$10:$J$154,3,FALSE)) ->  | E65: =IF(ISERROR(VLOOKUP(A65,Январь!$A$10:$J$154,4,FALSE))," ",VLOOKUP(A65,Январь!$A$10:$J$154,4,FALSE)) ->  | F65: =IF(ISERROR(VLOOKUP(A65,Январь!$A$10:$J$154,5,FALSE))," ",VLOOKUP(A65,Январь!$A$10:$J$154,5,FALSE)) ->  | G65: =IF(ISERROR(VLOOKUP(A65,Январь!$A$10:$J$154,6,FALSE))," ",VLOOKUP(A65,Январь!$A$10:$J$154,6,FALSE)) ->  | H65: =IF(ISERROR(VLOOKUP(D65,Январь!$K$12:$Q$154,2,FALSE))," ",VLOOKUP(D65,Январь!$K$12:$Q$154,2,FALSE)) ->  | I65: =IF(ISERROR(VLOOKUP(D65,Январь!$K$12:$Q$154,5,FALSE))," ",VLOOKUP(D65,Январь!$K$12:$Q$154,5,FALSE)) ->  | J65: =IF(ISERROR(VLOOKUP(D65,Январь!$K$12:$Q$154,3,FALSE))," ",VLOOKUP(D65,Январь!$K$12:$Q$154,3,FALSE)) ->  | K65: =IF(ISERROR(VLOOKUP(D65,Январь!$K$12:$Q$154,4,FALSE))," ",VLOOKUP(D65,Январь!$K$12:$Q$154,4,FALSE)) ->  | L65: =IF(ISERROR(VLOOKUP(A65,Январь!$A$10:$J$154,9,FALSE))," ",VLOOKUP(A65,Январь!$A$10:$J$154,9,FALSE)) ->  | M65: =IF(ISERROR(VLOOKUP(A65,Январь!$A$10:$J$154,10,FALSE))," ",VLOOKUP(A65,Январь!$A$10:$J$154,10,FALSE)) -> 
A66: К64 | B66: =IF(ISERROR(VLOOKUP(A66,Январь!$A$10:$Q$154,13,FALSE))," ",VLOOKUP(A66,Январь!$A$10:$Q$154,13,FALSE)) ->  | C66: =IF(ISERROR(VLOOKUP(A66,Январь!$A$10:$Q$154,14,FALSE))," ",VLOOKUP(A66,Январь!$A$10:$Q$154,14,FALSE)) ->  | D66: =IF(ISERROR(VLOOKUP(A66,Январь!$A$10:$J$154,3,FALSE))," ",VLOOKUP(A66,Январь!$A$10:$J$154,3,FALSE)) ->  | E66: =IF(ISERROR(VLOOKUP(A66,Январь!$A$10:$J$154,4,FALSE))," ",VLOOKUP(A66,Январь!$A$10:$J$154,4,FALSE)) ->  | F66: =IF(ISERROR(VLOOKUP(A66,Январь!$A$10:$J$154,5,FALSE))," ",VLOOKUP(A66,Январь!$A$10:$J$154,5,FALSE)) ->  | G66: =IF(ISERROR(VLOOKUP(A66,Январь!$A$10:$J$154,6,FALSE))," ",VLOOKUP(A66,Январь!$A$10:$J$154,6,FALSE)) ->  | H66: =IF(ISERROR(VLOOKUP(D66,Январь!$K$12:$Q$154,2,FALSE))," ",VLOOKUP(D66,Январь!$K$12:$Q$154,2,FALSE)) ->  | I66: =IF(ISERROR(VLOOKUP(D66,Январь!$K$12:$Q$154,5,FALSE))," ",VLOOKUP(D66,Январь!$K$12:$Q$154,5,FALSE)) ->  | J66: =IF(ISERROR(VLOOKUP(D66,Январь!$K$12:$Q$154,3,FALSE))," ",VLOOKUP(D66,Январь!$K$12:$Q$154,3,FALSE)) ->  | K66: =IF(ISERROR(VLOOKUP(D66,Январь!$K$12:$Q$154,4,FALSE))," ",VLOOKUP(D66,Январь!$K$12:$Q$154,4,FALSE)) ->  | L66: =IF(ISERROR(VLOOKUP(A66,Январь!$A$10:$J$154,9,FALSE))," ",VLOOKUP(A66,Январь!$A$10:$J$154,9,FALSE)) ->  | M66: =IF(ISERROR(VLOOKUP(A66,Январь!$A$10:$J$154,10,FALSE))," ",VLOOKUP(A66,Январь!$A$10:$J$154,10,FALSE)) -> 
A67: К65 | B67: =IF(ISERROR(VLOOKUP(A67,Январь!$A$10:$Q$154,13,FALSE))," ",VLOOKUP(A67,Январь!$A$10:$Q$154,13,FALSE)) ->  | C67: =IF(ISERROR(VLOOKUP(A67,Январь!$A$10:$Q$154,14,FALSE))," ",VLOOKUP(A67,Январь!$A$10:$Q$154,14,FALSE)) ->  | D67: =IF(ISERROR(VLOOKUP(A67,Январь!$A$10:$J$154,3,FALSE))," ",VLOOKUP(A67,Январь!$A$10:$J$154,3,FALSE)) ->  | E67: =IF(ISERROR(VLOOKUP(A67,Январь!$A$10:$J$154,4,FALSE))," ",VLOOKUP(A67,Январь!$A$10:$J$154,4,FALSE)) ->  | F67: =IF(ISERROR(VLOOKUP(A67,Январь!$A$10:$J$154,5,FALSE))," ",VLOOKUP(A67,Январь!$A$10:$J$154,5,FALSE)) ->  | G67: =IF(ISERROR(VLOOKUP(A67,Январь!$A$10:$J$154,6,FALSE))," ",VLOOKUP(A67,Январь!$A$10:$J$154,6,FALSE)) ->  | H67: =IF(ISERROR(VLOOKUP(D67,Январь!$K$12:$Q$154,2,FALSE))," ",VLOOKUP(D67,Январь!$K$12:$Q$154,2,FALSE)) ->  | I67: =IF(ISERROR(VLOOKUP(D67,Январь!$K$12:$Q$154,5,FALSE))," ",VLOOKUP(D67,Январь!$K$12:$Q$154,5,FALSE)) ->  | J67: =IF(ISERROR(VLOOKUP(D67,Январь!$K$12:$Q$154,3,FALSE))," ",VLOOKUP(D67,Январь!$K$12:$Q$154,3,FALSE)) ->  | K67: =IF(ISERROR(VLOOKUP(D67,Январь!$K$12:$Q$154,4,FALSE))," ",VLOOKUP(D67,Январь!$K$12:$Q$154,4,FALSE)) ->  | L67: =IF(ISERROR(VLOOKUP(A67,Январь!$A$10:$J$154,9,FALSE))," ",VLOOKUP(A67,Январь!$A$10:$J$154,9,FALSE)) ->  | M67: =IF(ISERROR(VLOOKUP(A67,Январь!$A$10:$J$154,10,FALSE))," ",VLOOKUP(A67,Январь!$A$10:$J$154,10,FALSE)) -> 
A68: =$C$1&ROW()-2 -> К66 | B68: =IF(ISERROR(VLOOKUP(A68,Январь!$A$10:$Q$154,13,FALSE))," ",VLOOKUP(A68,Январь!$A$10:$Q$154,13,FALSE)) ->  | C68: =IF(ISERROR(VLOOKUP(A68,Январь!$A$10:$Q$154,14,FALSE))," ",VLOOKUP(A68,Январь!$A$10:$Q$154,14,FALSE)) ->  | D68: =IF(ISERROR(VLOOKUP(A68,Январь!$A$10:$J$154,3,FALSE))," ",VLOOKUP(A68,Январь!$A$10:$J$154,3,FALSE)) ->  | E68: =IF(ISERROR(VLOOKUP(A68,Январь!$A$10:$J$154,4,FALSE))," ",VLOOKUP(A68,Январь!$A$10:$J$154,4,FALSE)) ->  | F68: =IF(ISERROR(VLOOKUP(A68,Январь!$A$10:$J$154,5,FALSE))," ",VLOOKUP(A68,Январь!$A$10:$J$154,5,FALSE)) ->  | G68: =IF(ISERROR(VLOOKUP(A68,Январь!$A$10:$J$154,6,FALSE))," ",VLOOKUP(A68,Январь!$A$10:$J$154,6,FALSE)) ->  | H68: =IF(ISERROR(VLOOKUP(D68,Январь!$K$12:$Q$154,2,FALSE))," ",VLOOKUP(D68,Январь!$K$12:$Q$154,2,FALSE)) ->  | I68: =IF(ISERROR(VLOOKUP(D68,Январь!$K$12:$Q$154,5,FALSE))," ",VLOOKUP(D68,Январь!$K$12:$Q$154,5,FALSE)) ->  | J68: =IF(ISERROR(VLOOKUP(D68,Январь!$K$12:$Q$154,3,FALSE))," ",VLOOKUP(D68,Январь!$K$12:$Q$154,3,FALSE)) ->  | K68: =IF(ISERROR(VLOOKUP(D68,Январь!$K$12:$Q$154,4,FALSE))," ",VLOOKUP(D68,Январь!$K$12:$Q$154,4,FALSE)) ->  | L68: =IF(ISERROR(VLOOKUP(A68,Январь!$A$10:$J$154,9,FALSE))," ",VLOOKUP(A68,Январь!$A$10:$J$154,9,FALSE)) ->  | M68: =IF(ISERROR(VLOOKUP(A68,Январь!$A$10:$J$154,10,FALSE))," ",VLOOKUP(A68,Январь!$A$10:$J$154,10,FALSE)) -> 
A69: К67 | B69: =IF(ISERROR(VLOOKUP(A69,Январь!$A$10:$Q$154,13,FALSE))," ",VLOOKUP(A69,Январь!$A$10:$Q$154,13,FALSE)) ->  | C69: =IF(ISERROR(VLOOKUP(A69,Январь!$A$10:$Q$154,14,FALSE))," ",VLOOKUP(A69,Январь!$A$10:$Q$154,14,FALSE)) ->  | D69: =IF(ISERROR(VLOOKUP(A69,Январь!$A$10:$J$154,3,FALSE))," ",VLOOKUP(A69,Январь!$A$10:$J$154,3,FALSE)) ->  | E69: =IF(ISERROR(VLOOKUP(A69,Январь!$A$10:$J$154,4,FALSE))," ",VLOOKUP(A69,Январь!$A$10:$J$154,4,FALSE)) ->  | F69: =IF(ISERROR(VLOOKUP(A69,Январь!$A$10:$J$154,5,FALSE))," ",VLOOKUP(A69,Январь!$A$10:$J$154,5,FALSE)) ->  | G69: =IF(ISERROR(VLOOKUP(A69,Январь!$A$10:$J$154,6,FALSE))," ",VLOOKUP(A69,Январь!$A$10:$J$154,6,FALSE)) ->  | H69: =IF(ISERROR(VLOOKUP(D69,Январь!$K$12:$Q$154,2,FALSE))," ",VLOOKUP(D69,Январь!$K$12:$Q$154,2,FALSE)) ->  | I69: =IF(ISERROR(VLOOKUP(D69,Январь!$K$12:$Q$154,5,FALSE))," ",VLOOKUP(D69,Январь!$K$12:$Q$154,5,FALSE)) ->  | J69: =IF(ISERROR(VLOOKUP(D69,Январь!$K$12:$Q$154,3,FALSE))," ",VLOOKUP(D69,Январь!$K$12:$Q$154,3,FALSE)) ->  | K69: =IF(ISERROR(VLOOKUP(D69,Январь!$K$12:$Q$154,4,FALSE))," ",VLOOKUP(D69,Январь!$K$12:$Q$154,4,FALSE)) ->  | L69: =IF(ISERROR(VLOOKUP(A69,Январь!$A$10:$J$154,9,FALSE))," ",VLOOKUP(A69,Январь!$A$10:$J$154,9,FALSE)) ->  | M69: =IF(ISERROR(VLOOKUP(A69,Январь!$A$10:$J$154,10,FALSE))," ",VLOOKUP(A69,Январь!$A$10:$J$154,10,FALSE)) -> 
A70: К68 | B70: =IF(ISERROR(VLOOKUP(A70,Январь!$A$10:$Q$154,13,FALSE))," ",VLOOKUP(A70,Январь!$A$10:$Q$154,13,FALSE)) ->  | C70: =IF(ISERROR(VLOOKUP(A70,Январь!$A$10:$Q$154,14,FALSE))," ",VLOOKUP(A70,Январь!$A$10:$Q$154,14,FALSE)) ->  | D70: =IF(ISERROR(VLOOKUP(A70,Январь!$A$10:$J$154,3,FALSE))," ",VLOOKUP(A70,Январь!$A$10:$J$154,3,FALSE)) ->  | E70: =IF(ISERROR(VLOOKUP(A70,Январь!$A$10:$J$154,4,FALSE))," ",VLOOKUP(A70,Январь!$A$10:$J$154,4,FALSE)) ->  | F70: =IF(ISERROR(VLOOKUP(A70,Январь!$A$10:$J$154,5,FALSE))," ",VLOOKUP(A70,Январь!$A$10:$J$154,5,FALSE)) ->  | G70: =IF(ISERROR(VLOOKUP(A70,Январь!$A$10:$J$154,6,FALSE))," ",VLOOKUP(A70,Январь!$A$10:$J$154,6,FALSE)) ->  | H70: =IF(ISERROR(VLOOKUP(D70,Январь!$K$12:$Q$154,2,FALSE))," ",VLOOKUP(D70,Январь!$K$12:$Q$154,2,FALSE)) ->  | I70: =IF(ISERROR(VLOOKUP(D70,Январь!$K$12:$Q$154,5,FALSE))," ",VLOOKUP(D70,Январь!$K$12:$Q$154,5,FALSE)) ->  | J70: =IF(ISERROR(VLOOKUP(D70,Январь!$K$12:$Q$154,3,FALSE))," ",VLOOKUP(D70,Январь!$K$12:$Q$154,3,FALSE)) ->  | K70: =IF(ISERROR(VLOOKUP(D70,Январь!$K$12:$Q$154,4,FALSE))," ",VLOOKUP(D70,Январь!$K$12:$Q$154,4,FALSE)) ->  | L70: =IF(ISERROR(VLOOKUP(A70,Январь!$A$10:$J$154,9,FALSE))," ",VLOOKUP(A70,Январь!$A$10:$J$154,9,FALSE)) ->  | M70: =IF(ISERROR(VLOOKUP(A70,Январь!$A$10:$J$154,10,FALSE))," ",VLOOKUP(A70,Январь!$A$10:$J$154,10,FALSE)) -> 
A71: К69 | B71: =IF(ISERROR(VLOOKUP(A71,Январь!$A$10:$Q$154,13,FALSE))," ",VLOOKUP(A71,Январь!$A$10:$Q$154,13,FALSE)) ->  | C71: =IF(ISERROR(VLOOKUP(A71,Январь!$A$10:$Q$154,14,FALSE))," ",VLOOKUP(A71,Январь!$A$10:$Q$154,14,FALSE)) ->  | D71: =IF(ISERROR(VLOOKUP(A71,Январь!$A$10:$J$154,3,FALSE))," ",VLOOKUP(A71,Январь!$A$10:$J$154,3,FALSE)) ->  | E71: =IF(ISERROR(VLOOKUP(A71,Январь!$A$10:$J$154,4,FALSE))," ",VLOOKUP(A71,Январь!$A$10:$J$154,4,FALSE)) ->  | F71: =IF(ISERROR(VLOOKUP(A71,Январь!$A$10:$J$154,5,FALSE))," ",VLOOKUP(A71,Январь!$A$10:$J$154,5,FALSE)) ->  | G71: =IF(ISERROR(VLOOKUP(A71,Январь!$A$10:$J$154,6,FALSE))," ",VLOOKUP(A71,Январь!$A$10:$J$154,6,FALSE)) ->  | H71: =IF(ISERROR(VLOOKUP(D71,Январь!$K$12:$Q$154,2,FALSE))," ",VLOOKUP(D71,Январь!$K$12:$Q$154,2,FALSE)) ->  | I71: =IF(ISERROR(VLOOKUP(D71,Январь!$K$12:$Q$154,5,FALSE))," ",VLOOKUP(D71,Январь!$K$12:$Q$154,5,FALSE)) ->  | J71: =IF(ISERROR(VLOOKUP(D71,Январь!$K$12:$Q$154,3,FALSE))," ",VLOOKUP(D71,Январь!$K$12:$Q$154,3,FALSE)) ->  | K71: =IF(ISERROR(VLOOKUP(D71,Январь!$K$12:$Q$154,4,FALSE))," ",VLOOKUP(D71,Январь!$K$12:$Q$154,4,FALSE)) ->  | L71: =IF(ISERROR(VLOOKUP(A71,Январь!$A$10:$J$154,9,FALSE))," ",VLOOKUP(A71,Январь!$A$10:$J$154,9,FALSE)) ->  | M71: =IF(ISERROR(VLOOKUP(A71,Январь!$A$10:$J$154,10,FALSE))," ",VLOOKUP(A71,Январь!$A$10:$J$154,10,FALSE)) -> 
A72: К70 | B72: =IF(ISERROR(VLOOKUP(A72,Январь!$A$10:$Q$154,13,FALSE))," ",VLOOKUP(A72,Январь!$A$10:$Q$154,13,FALSE)) ->  | C72: =IF(ISERROR(VLOOKUP(A72,Январь!$A$10:$Q$154,14,FALSE))," ",VLOOKUP(A72,Январь!$A$10:$Q$154,14,FALSE)) ->  | D72: =IF(ISERROR(VLOOKUP(A72,Январь!$A$10:$J$154,3,FALSE))," ",VLOOKUP(A72,Январь!$A$10:$J$154,3,FALSE)) ->  | E72: =IF(ISERROR(VLOOKUP(A72,Январь!$A$10:$J$154,4,FALSE))," ",VLOOKUP(A72,Январь!$A$10:$J$154,4,FALSE)) ->  | F72: =IF(ISERROR(VLOOKUP(A72,Январь!$A$10:$J$154,5,FALSE))," ",VLOOKUP(A72,Январь!$A$10:$J$154,5,FALSE)) ->  | G72: =IF(ISERROR(VLOOKUP(A72,Январь!$A$10:$J$154,6,FALSE))," ",VLOOKUP(A72,Январь!$A$10:$J$154,6,FALSE)) ->  | H72: =IF(ISERROR(VLOOKUP(D72,Январь!$K$12:$Q$154,2,FALSE))," ",VLOOKUP(D72,Январь!$K$12:$Q$154,2,FALSE)) ->  | I72: =IF(ISERROR(VLOOKUP(D72,Январь!$K$12:$Q$154,5,FALSE))," ",VLOOKUP(D72,Январь!$K$12:$Q$154,5,FALSE)) ->  | J72: =IF(ISERROR(VLOOKUP(D72,Январь!$K$12:$Q$154,3,FALSE))," ",VLOOKUP(D72,Январь!$K$12:$Q$154,3,FALSE)) ->  | K72: =IF(ISERROR(VLOOKUP(D72,Январь!$K$12:$Q$154,4,FALSE))," ",VLOOKUP(D72,Январь!$K$12:$Q$154,4,FALSE)) ->  | L72: =IF(ISERROR(VLOOKUP(A72,Январь!$A$10:$J$154,9,FALSE))," ",VLOOKUP(A72,Январь!$A$10:$J$154,9,FALSE)) ->  | M72: =IF(ISERROR(VLOOKUP(A72,Январь!$A$10:$J$154,10,FALSE))," ",VLOOKUP(A72,Январь!$A$10:$J$154,10,FALSE)) -> 
A73: К71 | B73: =IF(ISERROR(VLOOKUP(A73,Январь!$A$10:$Q$154,13,FALSE))," ",VLOOKUP(A73,Январь!$A$10:$Q$154,13,FALSE)) ->  | C73: =IF(ISERROR(VLOOKUP(A73,Январь!$A$10:$Q$154,14,FALSE))," ",VLOOKUP(A73,Январь!$A$10:$Q$154,14,FALSE)) ->  | D73: =IF(ISERROR(VLOOKUP(A73,Январь!$A$10:$J$154,3,FALSE))," ",VLOOKUP(A73,Январь!$A$10:$J$154,3,FALSE)) ->  | E73: =IF(ISERROR(VLOOKUP(A73,Январь!$A$10:$J$154,4,FALSE))," ",VLOOKUP(A73,Январь!$A$10:$J$154,4,FALSE)) ->  | F73: =IF(ISERROR(VLOOKUP(A73,Январь!$A$10:$J$154,5,FALSE))," ",VLOOKUP(A73,Январь!$A$10:$J$154,5,FALSE)) ->  | G73: =IF(ISERROR(VLOOKUP(A73,Январь!$A$10:$J$154,6,FALSE))," ",VLOOKUP(A73,Январь!$A$10:$J$154,6,FALSE)) ->  | H73: =IF(ISERROR(VLOOKUP(D73,Январь!$K$12:$Q$154,2,FALSE))," ",VLOOKUP(D73,Январь!$K$12:$Q$154,2,FALSE)) ->  | I73: =IF(ISERROR(VLOOKUP(D73,Январь!$K$12:$Q$154,5,FALSE))," ",VLOOKUP(D73,Январь!$K$12:$Q$154,5,FALSE)) ->  | J73: =IF(ISERROR(VLOOKUP(D73,Январь!$K$12:$Q$154,3,FALSE))," ",VLOOKUP(D73,Январь!$K$12:$Q$154,3,FALSE)) ->  | K73: =IF(ISERROR(VLOOKUP(D73,Январь!$K$12:$Q$154,4,FALSE))," ",VLOOKUP(D73,Январь!$K$12:$Q$154,4,FALSE)) ->  | L73: =IF(ISERROR(VLOOKUP(A73,Январь!$A$10:$J$154,9,FALSE))," ",VLOOKUP(A73,Январь!$A$10:$J$154,9,FALSE)) ->  | M73: =IF(ISERROR(VLOOKUP(A73,Январь!$A$10:$J$154,10,FALSE))," ",VLOOKUP(A73,Январь!$A$10:$J$154,10,FALSE)) -> 
A74: К72 | B74: =IF(ISERROR(VLOOKUP(A74,Январь!$A$10:$Q$154,13,FALSE))," ",VLOOKUP(A74,Январь!$A$10:$Q$154,13,FALSE)) ->  | C74: =IF(ISERROR(VLOOKUP(A74,Январь!$A$10:$Q$154,14,FALSE))," ",VLOOKUP(A74,Январь!$A$10:$Q$154,14,FALSE)) ->  | D74: =IF(ISERROR(VLOOKUP(A74,Январь!$A$10:$J$154,3,FALSE))," ",VLOOKUP(A74,Январь!$A$10:$J$154,3,FALSE)) ->  | E74: =IF(ISERROR(VLOOKUP(A74,Январь!$A$10:$J$154,4,FALSE))," ",VLOOKUP(A74,Январь!$A$10:$J$154,4,FALSE)) ->  | F74: =IF(ISERROR(VLOOKUP(A74,Январь!$A$10:$J$154,5,FALSE))," ",VLOOKUP(A74,Январь!$A$10:$J$154,5,FALSE)) ->  | G74: =IF(ISERROR(VLOOKUP(A74,Январь!$A$10:$J$154,6,FALSE))," ",VLOOKUP(A74,Январь!$A$10:$J$154,6,FALSE)) ->  | H74: =IF(ISERROR(VLOOKUP(D74,Январь!$K$12:$Q$154,2,FALSE))," ",VLOOKUP(D74,Январь!$K$12:$Q$154,2,FALSE)) ->  | I74: =IF(ISERROR(VLOOKUP(D74,Январь!$K$12:$Q$154,5,FALSE))," ",VLOOKUP(D74,Январь!$K$12:$Q$154,5,FALSE)) ->  | J74: =IF(ISERROR(VLOOKUP(D74,Январь!$K$12:$Q$154,3,FALSE))," ",VLOOKUP(D74,Январь!$K$12:$Q$154,3,FALSE)) ->  | K74: =IF(ISERROR(VLOOKUP(D74,Январь!$K$12:$Q$154,4,FALSE))," ",VLOOKUP(D74,Январь!$K$12:$Q$154,4,FALSE)) ->  | L74: =IF(ISERROR(VLOOKUP(A74,Январь!$A$10:$J$154,9,FALSE))," ",VLOOKUP(A74,Январь!$A$10:$J$154,9,FALSE)) ->  | M74: =IF(ISERROR(VLOOKUP(A74,Январь!$A$10:$J$154,10,FALSE))," ",VLOOKUP(A74,Январь!$A$10:$J$154,10,FALSE)) -> 
A75: К73 | B75: =IF(ISERROR(VLOOKUP(A75,Январь!$A$10:$Q$154,13,FALSE))," ",VLOOKUP(A75,Январь!$A$10:$Q$154,13,FALSE)) ->  | C75: =IF(ISERROR(VLOOKUP(A75,Январь!$A$10:$Q$154,14,FALSE))," ",VLOOKUP(A75,Январь!$A$10:$Q$154,14,FALSE)) ->  | D75: =IF(ISERROR(VLOOKUP(A75,Январь!$A$10:$J$154,3,FALSE))," ",VLOOKUP(A75,Январь!$A$10:$J$154,3,FALSE)) ->  | E75: =IF(ISERROR(VLOOKUP(A75,Январь!$A$10:$J$154,4,FALSE))," ",VLOOKUP(A75,Январь!$A$10:$J$154,4,FALSE)) ->  | F75: =IF(ISERROR(VLOOKUP(A75,Январь!$A$10:$J$154,5,FALSE))," ",VLOOKUP(A75,Январь!$A$10:$J$154,5,FALSE)) ->  | G75: =IF(ISERROR(VLOOKUP(A75,Январь!$A$10:$J$154,6,FALSE))," ",VLOOKUP(A75,Январь!$A$10:$J$154,6,FALSE)) ->  | H75: =IF(ISERROR(VLOOKUP(D75,Январь!$K$12:$Q$154,2,FALSE))," ",VLOOKUP(D75,Январь!$K$12:$Q$154,2,FALSE)) ->  | I75: =IF(ISERROR(VLOOKUP(D75,Январь!$K$12:$Q$154,5,FALSE))," ",VLOOKUP(D75,Январь!$K$12:$Q$154,5,FALSE)) ->  | J75: =IF(ISERROR(VLOOKUP(D75,Январь!$K$12:$Q$154,3,FALSE))," ",VLOOKUP(D75,Январь!$K$12:$Q$154,3,FALSE)) ->  | K75: =IF(ISERROR(VLOOKUP(D75,Январь!$K$12:$Q$154,4,FALSE))," ",VLOOKUP(D75,Январь!$K$12:$Q$154,4,FALSE)) ->  | L75: =IF(ISERROR(VLOOKUP(A75,Январь!$A$10:$J$154,9,FALSE))," ",VLOOKUP(A75,Январь!$A$10:$J$154,9,FALSE)) ->  | M75: =IF(ISERROR(VLOOKUP(A75,Январь!$A$10:$J$154,10,FALSE))," ",VLOOKUP(A75,Январь!$A$10:$J$154,10,FALSE)) -> 
A76: К74 | B76: =IF(ISERROR(VLOOKUP(A76,Январь!$A$10:$Q$154,13,FALSE))," ",VLOOKUP(A76,Январь!$A$10:$Q$154,13,FALSE)) ->  | C76: =IF(ISERROR(VLOOKUP(A76,Январь!$A$10:$Q$154,14,FALSE))," ",VLOOKUP(A76,Январь!$A$10:$Q$154,14,FALSE)) ->  | D76: =IF(ISERROR(VLOOKUP(A76,Январь!$A$10:$J$154,3,FALSE))," ",VLOOKUP(A76,Январь!$A$10:$J$154,3,FALSE)) ->  | E76: =IF(ISERROR(VLOOKUP(A76,Январь!$A$10:$J$154,4,FALSE))," ",VLOOKUP(A76,Январь!$A$10:$J$154,4,FALSE)) ->  | F76: =IF(ISERROR(VLOOKUP(A76,Январь!$A$10:$J$154,5,FALSE))," ",VLOOKUP(A76,Январь!$A$10:$J$154,5,FALSE)) ->  | G76: =IF(ISERROR(VLOOKUP(A76,Январь!$A$10:$J$154,6,FALSE))," ",VLOOKUP(A76,Январь!$A$10:$J$154,6,FALSE)) ->  | H76: =IF(ISERROR(VLOOKUP(D76,Январь!$K$12:$Q$154,2,FALSE))," ",VLOOKUP(D76,Январь!$K$12:$Q$154,2,FALSE)) ->  | I76: =IF(ISERROR(VLOOKUP(D76,Январь!$K$12:$Q$154,5,FALSE))," ",VLOOKUP(D76,Январь!$K$12:$Q$154,5,FALSE)) ->  | J76: =IF(ISERROR(VLOOKUP(D76,Январь!$K$12:$Q$154,3,FALSE))," ",VLOOKUP(D76,Январь!$K$12:$Q$154,3,FALSE)) ->  | K76: =IF(ISERROR(VLOOKUP(D76,Январь!$K$12:$Q$154,4,FALSE))," ",VLOOKUP(D76,Январь!$K$12:$Q$154,4,FALSE)) ->  | L76: =IF(ISERROR(VLOOKUP(A76,Январь!$A$10:$J$154,9,FALSE))," ",VLOOKUP(A76,Январь!$A$10:$J$154,9,FALSE)) ->  | M76: =IF(ISERROR(VLOOKUP(A76,Январь!$A$10:$J$154,10,FALSE))," ",VLOOKUP(A76,Январь!$A$10:$J$154,10,FALSE)) -> 
A77: К75 | B77: =IF(ISERROR(VLOOKUP(A77,Январь!$A$10:$Q$154,13,FALSE))," ",VLOOKUP(A77,Январь!$A$10:$Q$154,13,FALSE)) ->  | C77: =IF(ISERROR(VLOOKUP(A77,Январь!$A$10:$Q$154,14,FALSE))," ",VLOOKUP(A77,Январь!$A$10:$Q$154,14,FALSE)) ->  | D77: =IF(ISERROR(VLOOKUP(A77,Январь!$A$10:$J$154,3,FALSE))," ",VLOOKUP(A77,Январь!$A$10:$J$154,3,FALSE)) ->  | E77: =IF(ISERROR(VLOOKUP(A77,Январь!$A$10:$J$154,4,FALSE))," ",VLOOKUP(A77,Январь!$A$10:$J$154,4,FALSE)) ->  | F77: =IF(ISERROR(VLOOKUP(A77,Январь!$A$10:$J$154,5,FALSE))," ",VLOOKUP(A77,Январь!$A$10:$J$154,5,FALSE)) ->  | G77: =IF(ISERROR(VLOOKUP(A77,Январь!$A$10:$J$154,6,FALSE))," ",VLOOKUP(A77,Январь!$A$10:$J$154,6,FALSE)) ->  | H77: =IF(ISERROR(VLOOKUP(D77,Январь!$K$12:$Q$154,2,FALSE))," ",VLOOKUP(D77,Январь!$K$12:$Q$154,2,FALSE)) ->  | I77: =IF(ISERROR(VLOOKUP(D77,Январь!$K$12:$Q$154,5,FALSE))," ",VLOOKUP(D77,Январь!$K$12:$Q$154,5,FALSE)) ->  | J77: =IF(ISERROR(VLOOKUP(D77,Январь!$K$12:$Q$154,3,FALSE))," ",VLOOKUP(D77,Январь!$K$12:$Q$154,3,FALSE)) ->  | K77: =IF(ISERROR(VLOOKUP(D77,Январь!$K$12:$Q$154,4,FALSE))," ",VLOOKUP(D77,Январь!$K$12:$Q$154,4,FALSE)) ->  | L77: =IF(ISERROR(VLOOKUP(A77,Январь!$A$10:$J$154,9,FALSE))," ",VLOOKUP(A77,Январь!$A$10:$J$154,9,FALSE)) ->  | M77: =IF(ISERROR(VLOOKUP(A77,Январь!$A$10:$J$154,10,FALSE))," ",VLOOKUP(A77,Январь!$A$10:$J$154,10,FALSE)) -> 
A78: К76 | B78: =IF(ISERROR(VLOOKUP(A78,Январь!$A$10:$Q$154,13,FALSE))," ",VLOOKUP(A78,Январь!$A$10:$Q$154,13,FALSE)) ->  | C78: =IF(ISERROR(VLOOKUP(A78,Январь!$A$10:$Q$154,14,FALSE))," ",VLOOKUP(A78,Январь!$A$10:$Q$154,14,FALSE)) ->  | D78: =IF(ISERROR(VLOOKUP(A78,Январь!$A$10:$J$154,3,FALSE))," ",VLOOKUP(A78,Январь!$A$10:$J$154,3,FALSE)) ->  | E78: =IF(ISERROR(VLOOKUP(A78,Январь!$A$10:$J$154,4,FALSE))," ",VLOOKUP(A78,Январь!$A$10:$J$154,4,FALSE)) ->  | F78: =IF(ISERROR(VLOOKUP(A78,Январь!$A$10:$J$154,5,FALSE))," ",VLOOKUP(A78,Январь!$A$10:$J$154,5,FALSE)) ->  | G78: =IF(ISERROR(VLOOKUP(A78,Январь!$A$10:$J$154,6,FALSE))," ",VLOOKUP(A78,Январь!$A$10:$J$154,6,FALSE)) ->  | H78: =IF(ISERROR(VLOOKUP(D78,Январь!$K$12:$Q$154,2,FALSE))," ",VLOOKUP(D78,Январь!$K$12:$Q$154,2,FALSE)) ->  | I78: =IF(ISERROR(VLOOKUP(D78,Январь!$K$12:$Q$154,5,FALSE))," ",VLOOKUP(D78,Январь!$K$12:$Q$154,5,FALSE)) ->  | J78: =IF(ISERROR(VLOOKUP(D78,Январь!$K$12:$Q$154,3,FALSE))," ",VLOOKUP(D78,Январь!$K$12:$Q$154,3,FALSE)) ->  | K78: =IF(ISERROR(VLOOKUP(D78,Январь!$K$12:$Q$154,4,FALSE))," ",VLOOKUP(D78,Январь!$K$12:$Q$154,4,FALSE)) ->  | L78: =IF(ISERROR(VLOOKUP(A78,Январь!$A$10:$J$154,9,FALSE))," ",VLOOKUP(A78,Январь!$A$10:$J$154,9,FALSE)) ->  | M78: =IF(ISERROR(VLOOKUP(A78,Январь!$A$10:$J$154,10,FALSE))," ",VLOOKUP(A78,Январь!$A$10:$J$154,10,FALSE)) -> 
A79: К77 | B79: =IF(ISERROR(VLOOKUP(A79,Январь!$A$10:$Q$154,13,FALSE))," ",VLOOKUP(A79,Январь!$A$10:$Q$154,13,FALSE)) ->  | C79: =IF(ISERROR(VLOOKUP(A79,Январь!$A$10:$Q$154,14,FALSE))," ",VLOOKUP(A79,Январь!$A$10:$Q$154,14,FALSE)) ->  | D79: =IF(ISERROR(VLOOKUP(A79,Январь!$A$10:$J$154,3,FALSE))," ",VLOOKUP(A79,Январь!$A$10:$J$154,3,FALSE)) ->  | E79: =IF(ISERROR(VLOOKUP(A79,Январь!$A$10:$J$154,4,FALSE))," ",VLOOKUP(A79,Январь!$A$10:$J$154,4,FALSE)) ->  | F79: =IF(ISERROR(VLOOKUP(A79,Январь!$A$10:$J$154,5,FALSE))," ",VLOOKUP(A79,Январь!$A$10:$J$154,5,FALSE)) ->  | G79: =IF(ISERROR(VLOOKUP(A79,Январь!$A$10:$J$154,6,FALSE))," ",VLOOKUP(A79,Январь!$A$10:$J$154,6,FALSE)) ->  | H79: =IF(ISERROR(VLOOKUP(D79,Январь!$K$12:$Q$154,2,FALSE))," ",VLOOKUP(D79,Январь!$K$12:$Q$154,2,FALSE)) ->  | I79: =IF(ISERROR(VLOOKUP(D79,Январь!$K$12:$Q$154,5,FALSE))," ",VLOOKUP(D79,Январь!$K$12:$Q$154,5,FALSE)) ->  | J79: =IF(ISERROR(VLOOKUP(D79,Январь!$K$12:$Q$154,3,FALSE))," ",VLOOKUP(D79,Январь!$K$12:$Q$154,3,FALSE)) ->  | K79: =IF(ISERROR(VLOOKUP(D79,Январь!$K$12:$Q$154,4,FALSE))," ",VLOOKUP(D79,Январь!$K$12:$Q$154,4,FALSE)) ->  | L79: =IF(ISERROR(VLOOKUP(A79,Январь!$A$10:$J$154,9,FALSE))," ",VLOOKUP(A79,Январь!$A$10:$J$154,9,FALSE)) ->  | M79: =IF(ISERROR(VLOOKUP(A79,Январь!$A$10:$J$154,10,FALSE))," ",VLOOKUP(A79,Январь!$A$10:$J$154,10,FALSE)) -> 
A80: К78 | B80: =IF(ISERROR(VLOOKUP(A80,Январь!$A$10:$Q$154,13,FALSE))," ",VLOOKUP(A80,Январь!$A$10:$Q$154,13,FALSE)) ->  | C80: =IF(ISERROR(VLOOKUP(A80,Январь!$A$10:$Q$154,14,FALSE))," ",VLOOKUP(A80,Январь!$A$10:$Q$154,14,FALSE)) ->  | D80: =IF(ISERROR(VLOOKUP(A80,Январь!$A$10:$J$154,3,FALSE))," ",VLOOKUP(A80,Январь!$A$10:$J$154,3,FALSE)) ->  | E80: =IF(ISERROR(VLOOKUP(A80,Январь!$A$10:$J$154,4,FALSE))," ",VLOOKUP(A80,Январь!$A$10:$J$154,4,FALSE)) ->  | F80: =IF(ISERROR(VLOOKUP(A80,Январь!$A$10:$J$154,5,FALSE))," ",VLOOKUP(A80,Январь!$A$10:$J$154,5,FALSE)) ->  | G80: =IF(ISERROR(VLOOKUP(A80,Январь!$A$10:$J$154,6,FALSE))," ",VLOOKUP(A80,Январь!$A$10:$J$154,6,FALSE)) ->  | H80: =IF(ISERROR(VLOOKUP(D80,Январь!$K$12:$Q$154,2,FALSE))," ",VLOOKUP(D80,Январь!$K$12:$Q$154,2,FALSE)) ->  | I80: =IF(ISERROR(VLOOKUP(D80,Январь!$K$12:$Q$154,5,FALSE))," ",VLOOKUP(D80,Январь!$K$12:$Q$154,5,FALSE)) ->  | J80: =IF(ISERROR(VLOOKUP(D80,Январь!$K$12:$Q$154,3,FALSE))," ",VLOOKUP(D80,Январь!$K$12:$Q$154,3,FALSE)) ->  | K80: =IF(ISERROR(VLOOKUP(D80,Январь!$K$12:$Q$154,4,FALSE))," ",VLOOKUP(D80,Январь!$K$12:$Q$154,4,FALSE)) ->  | L80: =IF(ISERROR(VLOOKUP(A80,Январь!$A$10:$J$154,9,FALSE))," ",VLOOKUP(A80,Январь!$A$10:$J$154,9,FALSE)) ->  | M80: =IF(ISERROR(VLOOKUP(A80,Январь!$A$10:$J$154,10,FALSE))," ",VLOOKUP(A80,Январь!$A$10:$J$154,10,FALSE)) -> 
A81: К79 | B81: =IF(ISERROR(VLOOKUP(A81,Январь!$A$10:$Q$154,13,FALSE))," ",VLOOKUP(A81,Январь!$A$10:$Q$154,13,FALSE)) ->  | C81: =IF(ISERROR(VLOOKUP(A81,Январь!$A$10:$Q$154,14,FALSE))," ",VLOOKUP(A81,Январь!$A$10:$Q$154,14,FALSE)) ->  | D81: =IF(ISERROR(VLOOKUP(A81,Январь!$A$10:$J$154,3,FALSE))," ",VLOOKUP(A81,Январь!$A$10:$J$154,3,FALSE)) ->  | E81: =IF(ISERROR(VLOOKUP(A81,Январь!$A$10:$J$154,4,FALSE))," ",VLOOKUP(A81,Январь!$A$10:$J$154,4,FALSE)) ->  | F81: =IF(ISERROR(VLOOKUP(A81,Январь!$A$10:$J$154,5,FALSE))," ",VLOOKUP(A81,Январь!$A$10:$J$154,5,FALSE)) ->  | G81: =IF(ISERROR(VLOOKUP(A81,Январь!$A$10:$J$154,6,FALSE))," ",VLOOKUP(A81,Январь!$A$10:$J$154,6,FALSE)) ->  | H81: =IF(ISERROR(VLOOKUP(D81,Январь!$K$12:$Q$154,2,FALSE))," ",VLOOKUP(D81,Январь!$K$12:$Q$154,2,FALSE)) ->  | I81: =IF(ISERROR(VLOOKUP(D81,Январь!$K$12:$Q$154,5,FALSE))," ",VLOOKUP(D81,Январь!$K$12:$Q$154,5,FALSE)) ->  | J81: =IF(ISERROR(VLOOKUP(D81,Январь!$K$12:$Q$154,3,FALSE))," ",VLOOKUP(D81,Январь!$K$12:$Q$154,3,FALSE)) ->  | K81: =IF(ISERROR(VLOOKUP(D81,Январь!$K$12:$Q$154,4,FALSE))," ",VLOOKUP(D81,Январь!$K$12:$Q$154,4,FALSE)) ->  | L81: =IF(ISERROR(VLOOKUP(A81,Январь!$A$10:$J$154,9,FALSE))," ",VLOOKUP(A81,Январь!$A$10:$J$154,9,FALSE)) ->  | M81: =IF(ISERROR(VLOOKUP(A81,Январь!$A$10:$J$154,10,FALSE))," ",VLOOKUP(A81,Январь!$A$10:$J$154,10,FALSE)) -> 
A82: К80 | B82: =IF(ISERROR(VLOOKUP(A82,Январь!$A$10:$Q$154,13,FALSE))," ",VLOOKUP(A82,Январь!$A$10:$Q$154,13,FALSE)) ->  | C82: =IF(ISERROR(VLOOKUP(A82,Январь!$A$10:$Q$154,14,FALSE))," ",VLOOKUP(A82,Январь!$A$10:$Q$154,14,FALSE)) ->  | D82: =IF(ISERROR(VLOOKUP(A82,Январь!$A$10:$J$154,3,FALSE))," ",VLOOKUP(A82,Январь!$A$10:$J$154,3,FALSE)) ->  | E82: =IF(ISERROR(VLOOKUP(A82,Январь!$A$10:$J$154,4,FALSE))," ",VLOOKUP(A82,Январь!$A$10:$J$154,4,FALSE)) ->  | F82: =IF(ISERROR(VLOOKUP(A82,Январь!$A$10:$J$154,5,FALSE))," ",VLOOKUP(A82,Январь!$A$10:$J$154,5,FALSE)) ->  | G82: =IF(ISERROR(VLOOKUP(A82,Январь!$A$10:$J$154,6,FALSE))," ",VLOOKUP(A82,Январь!$A$10:$J$154,6,FALSE)) ->  | H82: =IF(ISERROR(VLOOKUP(D82,Январь!$K$12:$Q$154,2,FALSE))," ",VLOOKUP(D82,Январь!$K$12:$Q$154,2,FALSE)) ->  | I82: =IF(ISERROR(VLOOKUP(D82,Январь!$K$12:$Q$154,5,FALSE))," ",VLOOKUP(D82,Январь!$K$12:$Q$154,5,FALSE)) ->  | J82: =IF(ISERROR(VLOOKUP(D82,Январь!$K$12:$Q$154,3,FALSE))," ",VLOOKUP(D82,Январь!$K$12:$Q$154,3,FALSE)) ->  | K82: =IF(ISERROR(VLOOKUP(D82,Январь!$K$12:$Q$154,4,FALSE))," ",VLOOKUP(D82,Январь!$K$12:$Q$154,4,FALSE)) ->  | L82: =IF(ISERROR(VLOOKUP(A82,Январь!$A$10:$J$154,9,FALSE))," ",VLOOKUP(A82,Январь!$A$10:$J$154,9,FALSE)) ->  | M82: =IF(ISERROR(VLOOKUP(A82,Январь!$A$10:$J$154,10,FALSE))," ",VLOOKUP(A82,Январь!$A$10:$J$154,10,FALSE)) -> 
A83: К81 | B83: =IF(ISERROR(VLOOKUP(A83,Январь!$A$10:$Q$154,13,FALSE))," ",VLOOKUP(A83,Январь!$A$10:$Q$154,13,FALSE)) ->  | C83: =IF(ISERROR(VLOOKUP(A83,Январь!$A$10:$Q$154,14,FALSE))," ",VLOOKUP(A83,Январь!$A$10:$Q$154,14,FALSE)) ->  | D83: =IF(ISERROR(VLOOKUP(A83,Январь!$A$10:$J$154,3,FALSE))," ",VLOOKUP(A83,Январь!$A$10:$J$154,3,FALSE)) ->  | E83: =IF(ISERROR(VLOOKUP(A83,Январь!$A$10:$J$154,4,FALSE))," ",VLOOKUP(A83,Январь!$A$10:$J$154,4,FALSE)) ->  | F83: =IF(ISERROR(VLOOKUP(A83,Январь!$A$10:$J$154,5,FALSE))," ",VLOOKUP(A83,Январь!$A$10:$J$154,5,FALSE)) ->  | G83: =IF(ISERROR(VLOOKUP(A83,Январь!$A$10:$J$154,6,FALSE))," ",VLOOKUP(A83,Январь!$A$10:$J$154,6,FALSE)) ->  | H83: =IF(ISERROR(VLOOKUP(D83,Январь!$K$12:$Q$154,2,FALSE))," ",VLOOKUP(D83,Январь!$K$12:$Q$154,2,FALSE)) ->  | I83: =IF(ISERROR(VLOOKUP(D83,Январь!$K$12:$Q$154,5,FALSE))," ",VLOOKUP(D83,Январь!$K$12:$Q$154,5,FALSE)) ->  | J83: =IF(ISERROR(VLOOKUP(D83,Январь!$K$12:$Q$154,3,FALSE))," ",VLOOKUP(D83,Январь!$K$12:$Q$154,3,FALSE)) ->  | K83: =IF(ISERROR(VLOOKUP(D83,Январь!$K$12:$Q$154,4,FALSE))," ",VLOOKUP(D83,Январь!$K$12:$Q$154,4,FALSE)) ->  | L83: =IF(ISERROR(VLOOKUP(A83,Январь!$A$10:$J$154,9,FALSE))," ",VLOOKUP(A83,Январь!$A$10:$J$154,9,FALSE)) ->  | M83: =IF(ISERROR(VLOOKUP(A83,Январь!$A$10:$J$154,10,FALSE))," ",VLOOKUP(A83,Январь!$A$10:$J$154,10,FALSE)) -> 
A84: К82 | B84: =IF(ISERROR(VLOOKUP(A84,Январь!$A$10:$Q$154,13,FALSE))," ",VLOOKUP(A84,Январь!$A$10:$Q$154,13,FALSE)) ->  | C84: =IF(ISERROR(VLOOKUP(A84,Январь!$A$10:$Q$154,14,FALSE))," ",VLOOKUP(A84,Январь!$A$10:$Q$154,14,FALSE)) ->  | D84: =IF(ISERROR(VLOOKUP(A84,Январь!$A$10:$J$154,3,FALSE))," ",VLOOKUP(A84,Январь!$A$10:$J$154,3,FALSE)) ->  | E84: =IF(ISERROR(VLOOKUP(A84,Январь!$A$10:$J$154,4,FALSE))," ",VLOOKUP(A84,Январь!$A$10:$J$154,4,FALSE)) ->  | F84: =IF(ISERROR(VLOOKUP(A84,Январь!$A$10:$J$154,5,FALSE))," ",VLOOKUP(A84,Январь!$A$10:$J$154,5,FALSE)) ->  | G84: =IF(ISERROR(VLOOKUP(A84,Январь!$A$10:$J$154,6,FALSE))," ",VLOOKUP(A84,Январь!$A$10:$J$154,6,FALSE)) ->  | H84: =IF(ISERROR(VLOOKUP(D84,Январь!$K$12:$Q$154,2,FALSE))," ",VLOOKUP(D84,Январь!$K$12:$Q$154,2,FALSE)) ->  | I84: =IF(ISERROR(VLOOKUP(D84,Январь!$K$12:$Q$154,5,FALSE))," ",VLOOKUP(D84,Январь!$K$12:$Q$154,5,FALSE)) ->  | J84: =IF(ISERROR(VLOOKUP(D84,Январь!$K$12:$Q$154,3,FALSE))," ",VLOOKUP(D84,Январь!$K$12:$Q$154,3,FALSE)) ->  | K84: =IF(ISERROR(VLOOKUP(D84,Январь!$K$12:$Q$154,4,FALSE))," ",VLOOKUP(D84,Январь!$K$12:$Q$154,4,FALSE)) ->  | L84: =IF(ISERROR(VLOOKUP(A84,Январь!$A$10:$J$154,9,FALSE))," ",VLOOKUP(A84,Январь!$A$10:$J$154,9,FALSE)) ->  | M84: =IF(ISERROR(VLOOKUP(A84,Январь!$A$10:$J$154,10,FALSE))," ",VLOOKUP(A84,Январь!$A$10:$J$154,10,FALSE)) -> 
A85: К83 | B85: =IF(ISERROR(VLOOKUP(A85,Январь!$A$10:$Q$154,13,FALSE))," ",VLOOKUP(A85,Январь!$A$10:$Q$154,13,FALSE)) ->  | C85: =IF(ISERROR(VLOOKUP(A85,Январь!$A$10:$Q$154,14,FALSE))," ",VLOOKUP(A85,Январь!$A$10:$Q$154,14,FALSE)) ->  | D85: =IF(ISERROR(VLOOKUP(A85,Январь!$A$10:$J$154,3,FALSE))," ",VLOOKUP(A85,Январь!$A$10:$J$154,3,FALSE)) ->  | E85: =IF(ISERROR(VLOOKUP(A85,Январь!$A$10:$J$154,4,FALSE))," ",VLOOKUP(A85,Январь!$A$10:$J$154,4,FALSE)) ->  | F85: =IF(ISERROR(VLOOKUP(A85,Январь!$A$10:$J$154,5,FALSE))," ",VLOOKUP(A85,Январь!$A$10:$J$154,5,FALSE)) ->  | G85: =IF(ISERROR(VLOOKUP(A85,Январь!$A$10:$J$154,6,FALSE))," ",VLOOKUP(A85,Январь!$A$10:$J$154,6,FALSE)) ->  | H85: =IF(ISERROR(VLOOKUP(D85,Январь!$K$12:$Q$154,2,FALSE))," ",VLOOKUP(D85,Январь!$K$12:$Q$154,2,FALSE)) ->  | I85: =IF(ISERROR(VLOOKUP(D85,Январь!$K$12:$Q$154,5,FALSE))," ",VLOOKUP(D85,Январь!$K$12:$Q$154,5,FALSE)) ->  | J85: =IF(ISERROR(VLOOKUP(D85,Январь!$K$12:$Q$154,3,FALSE))," ",VLOOKUP(D85,Январь!$K$12:$Q$154,3,FALSE)) ->  | K85: =IF(ISERROR(VLOOKUP(D85,Январь!$K$12:$Q$154,4,FALSE))," ",VLOOKUP(D85,Январь!$K$12:$Q$154,4,FALSE)) ->  | L85: =IF(ISERROR(VLOOKUP(A85,Январь!$A$10:$J$154,9,FALSE))," ",VLOOKUP(A85,Январь!$A$10:$J$154,9,FALSE)) ->  | M85: =IF(ISERROR(VLOOKUP(A85,Январь!$A$10:$J$154,10,FALSE))," ",VLOOKUP(A85,Январь!$A$10:$J$154,10,FALSE)) -> 
A86: К84 | B86: =IF(ISERROR(VLOOKUP(A86,Январь!$A$10:$Q$154,13,FALSE))," ",VLOOKUP(A86,Январь!$A$10:$Q$154,13,FALSE)) ->  | C86: =IF(ISERROR(VLOOKUP(A86,Январь!$A$10:$Q$154,14,FALSE))," ",VLOOKUP(A86,Январь!$A$10:$Q$154,14,FALSE)) ->  | D86: =IF(ISERROR(VLOOKUP(A86,Январь!$A$10:$J$154,3,FALSE))," ",VLOOKUP(A86,Январь!$A$10:$J$154,3,FALSE)) ->  | E86: =IF(ISERROR(VLOOKUP(A86,Январь!$A$10:$J$154,4,FALSE))," ",VLOOKUP(A86,Январь!$A$10:$J$154,4,FALSE)) ->  | F86: =IF(ISERROR(VLOOKUP(A86,Январь!$A$10:$J$154,5,FALSE))," ",VLOOKUP(A86,Январь!$A$10:$J$154,5,FALSE)) ->  | G86: =IF(ISERROR(VLOOKUP(A86,Январь!$A$10:$J$154,6,FALSE))," ",VLOOKUP(A86,Январь!$A$10:$J$154,6,FALSE)) ->  | H86: =IF(ISERROR(VLOOKUP(D86,Январь!$K$12:$Q$154,2,FALSE))," ",VLOOKUP(D86,Январь!$K$12:$Q$154,2,FALSE)) ->  | I86: =IF(ISERROR(VLOOKUP(D86,Январь!$K$12:$Q$154,5,FALSE))," ",VLOOKUP(D86,Январь!$K$12:$Q$154,5,FALSE)) ->  | J86: =IF(ISERROR(VLOOKUP(D86,Январь!$K$12:$Q$154,3,FALSE))," ",VLOOKUP(D86,Январь!$K$12:$Q$154,3,FALSE)) ->  | K86: =IF(ISERROR(VLOOKUP(D86,Январь!$K$12:$Q$154,4,FALSE))," ",VLOOKUP(D86,Январь!$K$12:$Q$154,4,FALSE)) ->  | L86: =IF(ISERROR(VLOOKUP(A86,Январь!$A$10:$J$154,9,FALSE))," ",VLOOKUP(A86,Январь!$A$10:$J$154,9,FALSE)) ->  | M86: =IF(ISERROR(VLOOKUP(A86,Январь!$A$10:$J$154,10,FALSE))," ",VLOOKUP(A86,Январь!$A$10:$J$154,10,FALSE)) -> 
A87: К85 | B87: =IF(ISERROR(VLOOKUP(A87,Январь!$A$10:$Q$154,13,FALSE))," ",VLOOKUP(A87,Январь!$A$10:$Q$154,13,FALSE)) ->  | C87: =IF(ISERROR(VLOOKUP(A87,Январь!$A$10:$Q$154,14,FALSE))," ",VLOOKUP(A87,Январь!$A$10:$Q$154,14,FALSE)) ->  | D87: =IF(ISERROR(VLOOKUP(A87,Январь!$A$10:$J$154,3,FALSE))," ",VLOOKUP(A87,Январь!$A$10:$J$154,3,FALSE)) ->  | E87: =IF(ISERROR(VLOOKUP(A87,Январь!$A$10:$J$154,4,FALSE))," ",VLOOKUP(A87,Январь!$A$10:$J$154,4,FALSE)) ->  | F87: =IF(ISERROR(VLOOKUP(A87,Январь!$A$10:$J$154,5,FALSE))," ",VLOOKUP(A87,Январь!$A$10:$J$154,5,FALSE)) ->  | G87: =IF(ISERROR(VLOOKUP(A87,Январь!$A$10:$J$154,6,FALSE))," ",VLOOKUP(A87,Январь!$A$10:$J$154,6,FALSE)) ->  | H87: =IF(ISERROR(VLOOKUP(D87,Январь!$K$12:$Q$154,2,FALSE))," ",VLOOKUP(D87,Январь!$K$12:$Q$154,2,FALSE)) ->  | I87: =IF(ISERROR(VLOOKUP(D87,Январь!$K$12:$Q$154,5,FALSE))," ",VLOOKUP(D87,Январь!$K$12:$Q$154,5,FALSE)) ->  | J87: =IF(ISERROR(VLOOKUP(D87,Январь!$K$12:$Q$154,3,FALSE))," ",VLOOKUP(D87,Январь!$K$12:$Q$154,3,FALSE)) ->  | K87: =IF(ISERROR(VLOOKUP(D87,Январь!$K$12:$Q$154,4,FALSE))," ",VLOOKUP(D87,Январь!$K$12:$Q$154,4,FALSE)) ->  | L87: =IF(ISERROR(VLOOKUP(A87,Январь!$A$10:$J$154,9,FALSE))," ",VLOOKUP(A87,Январь!$A$10:$J$154,9,FALSE)) ->  | M87: =IF(ISERROR(VLOOKUP(A87,Январь!$A$10:$J$154,10,FALSE))," ",VLOOKUP(A87,Январь!$A$10:$J$154,10,FALSE)) -> 
A88: К86 | B88: =IF(ISERROR(VLOOKUP(A88,Январь!$A$10:$Q$154,13,FALSE))," ",VLOOKUP(A88,Январь!$A$10:$Q$154,13,FALSE)) ->  | C88: =IF(ISERROR(VLOOKUP(A88,Январь!$A$10:$Q$154,14,FALSE))," ",VLOOKUP(A88,Январь!$A$10:$Q$154,14,FALSE)) ->  | D88: =IF(ISERROR(VLOOKUP(A88,Январь!$A$10:$J$154,3,FALSE))," ",VLOOKUP(A88,Январь!$A$10:$J$154,3,FALSE)) ->  | E88: =IF(ISERROR(VLOOKUP(A88,Январь!$A$10:$J$154,4,FALSE))," ",VLOOKUP(A88,Январь!$A$10:$J$154,4,FALSE)) ->  | F88: =IF(ISERROR(VLOOKUP(A88,Январь!$A$10:$J$154,5,FALSE))," ",VLOOKUP(A88,Январь!$A$10:$J$154,5,FALSE)) ->  | G88: =IF(ISERROR(VLOOKUP(A88,Январь!$A$10:$J$154,6,FALSE))," ",VLOOKUP(A88,Январь!$A$10:$J$154,6,FALSE)) ->  | H88: =IF(ISERROR(VLOOKUP(D88,Январь!$K$12:$Q$154,2,FALSE))," ",VLOOKUP(D88,Январь!$K$12:$Q$154,2,FALSE)) ->  | I88: =IF(ISERROR(VLOOKUP(D88,Январь!$K$12:$Q$154,5,FALSE))," ",VLOOKUP(D88,Январь!$K$12:$Q$154,5,FALSE)) ->  | J88: =IF(ISERROR(VLOOKUP(D88,Январь!$K$12:$Q$154,3,FALSE))," ",VLOOKUP(D88,Январь!$K$12:$Q$154,3,FALSE)) ->  | K88: =IF(ISERROR(VLOOKUP(D88,Январь!$K$12:$Q$154,4,FALSE))," ",VLOOKUP(D88,Январь!$K$12:$Q$154,4,FALSE)) ->  | L88: =IF(ISERROR(VLOOKUP(A88,Январь!$A$10:$J$154,9,FALSE))," ",VLOOKUP(A88,Январь!$A$10:$J$154,9,FALSE)) ->  | M88: =IF(ISERROR(VLOOKUP(A88,Январь!$A$10:$J$154,10,FALSE))," ",VLOOKUP(A88,Январь!$A$10:$J$154,10,FALSE)) -> 
A89: К87 | B89: =IF(ISERROR(VLOOKUP(A89,Январь!$A$10:$Q$154,13,FALSE))," ",VLOOKUP(A89,Январь!$A$10:$Q$154,13,FALSE)) ->  | C89: =IF(ISERROR(VLOOKUP(A89,Январь!$A$10:$Q$154,14,FALSE))," ",VLOOKUP(A89,Январь!$A$10:$Q$154,14,FALSE)) ->  | D89: =IF(ISERROR(VLOOKUP(A89,Январь!$A$10:$J$154,3,FALSE))," ",VLOOKUP(A89,Январь!$A$10:$J$154,3,FALSE)) ->  | E89: =IF(ISERROR(VLOOKUP(A89,Январь!$A$10:$J$154,4,FALSE))," ",VLOOKUP(A89,Январь!$A$10:$J$154,4,FALSE)) ->  | F89: =IF(ISERROR(VLOOKUP(A89,Январь!$A$10:$J$154,5,FALSE))," ",VLOOKUP(A89,Январь!$A$10:$J$154,5,FALSE)) ->  | G89: =IF(ISERROR(VLOOKUP(A89,Январь!$A$10:$J$154,6,FALSE))," ",VLOOKUP(A89,Январь!$A$10:$J$154,6,FALSE)) ->  | H89: =IF(ISERROR(VLOOKUP(D89,Январь!$K$12:$Q$154,2,FALSE))," ",VLOOKUP(D89,Январь!$K$12:$Q$154,2,FALSE)) ->  | I89: =IF(ISERROR(VLOOKUP(D89,Январь!$K$12:$Q$154,5,FALSE))," ",VLOOKUP(D89,Январь!$K$12:$Q$154,5,FALSE)) ->  | J89: =IF(ISERROR(VLOOKUP(D89,Январь!$K$12:$Q$154,3,FALSE))," ",VLOOKUP(D89,Январь!$K$12:$Q$154,3,FALSE)) ->  | K89: =IF(ISERROR(VLOOKUP(D89,Январь!$K$12:$Q$154,4,FALSE))," ",VLOOKUP(D89,Январь!$K$12:$Q$154,4,FALSE)) ->  | L89: =IF(ISERROR(VLOOKUP(A89,Январь!$A$10:$J$154,9,FALSE))," ",VLOOKUP(A89,Январь!$A$10:$J$154,9,FALSE)) ->  | M89: =IF(ISERROR(VLOOKUP(A89,Январь!$A$10:$J$154,10,FALSE))," ",VLOOKUP(A89,Январь!$A$10:$J$154,10,FALSE)) -> 
A90: К88 | B90: =IF(ISERROR(VLOOKUP(A90,Январь!$A$10:$Q$154,13,FALSE))," ",VLOOKUP(A90,Январь!$A$10:$Q$154,13,FALSE)) ->  | C90: =IF(ISERROR(VLOOKUP(A90,Январь!$A$10:$Q$154,14,FALSE))," ",VLOOKUP(A90,Январь!$A$10:$Q$154,14,FALSE)) ->  | D90: =IF(ISERROR(VLOOKUP(A90,Январь!$A$10:$J$154,3,FALSE))," ",VLOOKUP(A90,Январь!$A$10:$J$154,3,FALSE)) ->  | E90: =IF(ISERROR(VLOOKUP(A90,Январь!$A$10:$J$154,4,FALSE))," ",VLOOKUP(A90,Январь!$A$10:$J$154,4,FALSE)) ->  | F90: =IF(ISERROR(VLOOKUP(A90,Январь!$A$10:$J$154,5,FALSE))," ",VLOOKUP(A90,Январь!$A$10:$J$154,5,FALSE)) ->  | G90: =IF(ISERROR(VLOOKUP(A90,Январь!$A$10:$J$154,6,FALSE))," ",VLOOKUP(A90,Январь!$A$10:$J$154,6,FALSE)) ->  | H90: =IF(ISERROR(VLOOKUP(D90,Январь!$K$12:$Q$154,2,FALSE))," ",VLOOKUP(D90,Январь!$K$12:$Q$154,2,FALSE)) ->  | I90: =IF(ISERROR(VLOOKUP(D90,Январь!$K$12:$Q$154,5,FALSE))," ",VLOOKUP(D90,Январь!$K$12:$Q$154,5,FALSE)) ->  | J90: =IF(ISERROR(VLOOKUP(D90,Январь!$K$12:$Q$154,3,FALSE))," ",VLOOKUP(D90,Январь!$K$12:$Q$154,3,FALSE)) ->  | K90: =IF(ISERROR(VLOOKUP(D90,Январь!$K$12:$Q$154,4,FALSE))," ",VLOOKUP(D90,Январь!$K$12:$Q$154,4,FALSE)) ->  | L90: =IF(ISERROR(VLOOKUP(A90,Январь!$A$10:$J$154,9,FALSE))," ",VLOOKUP(A90,Январь!$A$10:$J$154,9,FALSE)) ->  | M90: =IF(ISERROR(VLOOKUP(A90,Январь!$A$10:$J$154,10,FALSE))," ",VLOOKUP(A90,Январь!$A$10:$J$154,10,FALSE)) -> 
A91: К89 | B91: =IF(ISERROR(VLOOKUP(A91,Январь!$A$10:$Q$154,13,FALSE))," ",VLOOKUP(A91,Январь!$A$10:$Q$154,13,FALSE)) ->  | C91: =IF(ISERROR(VLOOKUP(A91,Январь!$A$10:$Q$154,14,FALSE))," ",VLOOKUP(A91,Январь!$A$10:$Q$154,14,FALSE)) ->  | D91: =IF(ISERROR(VLOOKUP(A91,Январь!$A$10:$J$154,3,FALSE))," ",VLOOKUP(A91,Январь!$A$10:$J$154,3,FALSE)) ->  | E91: =IF(ISERROR(VLOOKUP(A91,Январь!$A$10:$J$154,4,FALSE))," ",VLOOKUP(A91,Январь!$A$10:$J$154,4,FALSE)) ->  | F91: =IF(ISERROR(VLOOKUP(A91,Январь!$A$10:$J$154,5,FALSE))," ",VLOOKUP(A91,Январь!$A$10:$J$154,5,FALSE)) ->  | G91: =IF(ISERROR(VLOOKUP(A91,Январь!$A$10:$J$154,6,FALSE))," ",VLOOKUP(A91,Январь!$A$10:$J$154,6,FALSE)) ->  | H91: =IF(ISERROR(VLOOKUP(D91,Январь!$K$12:$Q$154,2,FALSE))," ",VLOOKUP(D91,Январь!$K$12:$Q$154,2,FALSE)) ->  | I91: =IF(ISERROR(VLOOKUP(D91,Январь!$K$12:$Q$154,5,FALSE))," ",VLOOKUP(D91,Январь!$K$12:$Q$154,5,FALSE)) ->  | J91: =IF(ISERROR(VLOOKUP(D91,Январь!$K$12:$Q$154,3,FALSE))," ",VLOOKUP(D91,Январь!$K$12:$Q$154,3,FALSE)) ->  | K91: =IF(ISERROR(VLOOKUP(D91,Январь!$K$12:$Q$154,4,FALSE))," ",VLOOKUP(D91,Январь!$K$12:$Q$154,4,FALSE)) ->  | L91: =IF(ISERROR(VLOOKUP(A91,Январь!$A$10:$J$154,9,FALSE))," ",VLOOKUP(A91,Январь!$A$10:$J$154,9,FALSE)) ->  | M91: =IF(ISERROR(VLOOKUP(A91,Январь!$A$10:$J$154,10,FALSE))," ",VLOOKUP(A91,Январь!$A$10:$J$154,10,FALSE)) -> 
A92: К90 | B92: =IF(ISERROR(VLOOKUP(A92,Январь!$A$10:$Q$154,13,FALSE))," ",VLOOKUP(A92,Январь!$A$10:$Q$154,13,FALSE)) ->  | C92: =IF(ISERROR(VLOOKUP(A92,Январь!$A$10:$Q$154,14,FALSE))," ",VLOOKUP(A92,Январь!$A$10:$Q$154,14,FALSE)) ->  | D92: =IF(ISERROR(VLOOKUP(A92,Январь!$A$10:$J$154,3,FALSE))," ",VLOOKUP(A92,Январь!$A$10:$J$154,3,FALSE)) ->  | E92: =IF(ISERROR(VLOOKUP(A92,Январь!$A$10:$J$154,4,FALSE))," ",VLOOKUP(A92,Январь!$A$10:$J$154,4,FALSE)) ->  | F92: =IF(ISERROR(VLOOKUP(A92,Январь!$A$10:$J$154,5,FALSE))," ",VLOOKUP(A92,Январь!$A$10:$J$154,5,FALSE)) ->  | G92: =IF(ISERROR(VLOOKUP(A92,Январь!$A$10:$J$154,6,FALSE))," ",VLOOKUP(A92,Январь!$A$10:$J$154,6,FALSE)) ->  | H92: =IF(ISERROR(VLOOKUP(D92,Январь!$K$12:$Q$154,2,FALSE))," ",VLOOKUP(D92,Январь!$K$12:$Q$154,2,FALSE)) ->  | I92: =IF(ISERROR(VLOOKUP(D92,Январь!$K$12:$Q$154,5,FALSE))," ",VLOOKUP(D92,Январь!$K$12:$Q$154,5,FALSE)) ->  | J92: =IF(ISERROR(VLOOKUP(D92,Январь!$K$12:$Q$154,3,FALSE))," ",VLOOKUP(D92,Январь!$K$12:$Q$154,3,FALSE)) ->  | K92: =IF(ISERROR(VLOOKUP(D92,Январь!$K$12:$Q$154,4,FALSE))," ",VLOOKUP(D92,Январь!$K$12:$Q$154,4,FALSE)) ->  | L92: =IF(ISERROR(VLOOKUP(A92,Январь!$A$10:$J$154,9,FALSE))," ",VLOOKUP(A92,Январь!$A$10:$J$154,9,FALSE)) ->  | M92: =IF(ISERROR(VLOOKUP(A92,Январь!$A$10:$J$154,10,FALSE))," ",VLOOKUP(A92,Январь!$A$10:$J$154,10,FALSE)) -> 
A93: К91 | B93: =IF(ISERROR(VLOOKUP(A93,Январь!$A$10:$Q$154,13,FALSE))," ",VLOOKUP(A93,Январь!$A$10:$Q$154,13,FALSE)) ->  | C93: =IF(ISERROR(VLOOKUP(A93,Январь!$A$10:$Q$154,14,FALSE))," ",VLOOKUP(A93,Январь!$A$10:$Q$154,14,FALSE)) ->  | D93: =IF(ISERROR(VLOOKUP(A93,Январь!$A$10:$J$154,3,FALSE))," ",VLOOKUP(A93,Январь!$A$10:$J$154,3,FALSE)) ->  | E93: =IF(ISERROR(VLOOKUP(A93,Январь!$A$10:$J$154,4,FALSE))," ",VLOOKUP(A93,Январь!$A$10:$J$154,4,FALSE)) ->  | F93: =IF(ISERROR(VLOOKUP(A93,Январь!$A$10:$J$154,5,FALSE))," ",VLOOKUP(A93,Январь!$A$10:$J$154,5,FALSE)) ->  | G93: =IF(ISERROR(VLOOKUP(A93,Январь!$A$10:$J$154,6,FALSE))," ",VLOOKUP(A93,Январь!$A$10:$J$154,6,FALSE)) ->  | H93: =IF(ISERROR(VLOOKUP(D93,Январь!$K$12:$Q$154,2,FALSE))," ",VLOOKUP(D93,Январь!$K$12:$Q$154,2,FALSE)) ->  | I93: =IF(ISERROR(VLOOKUP(D93,Январь!$K$12:$Q$154,5,FALSE))," ",VLOOKUP(D93,Январь!$K$12:$Q$154,5,FALSE)) ->  | J93: =IF(ISERROR(VLOOKUP(D93,Январь!$K$12:$Q$154,3,FALSE))," ",VLOOKUP(D93,Январь!$K$12:$Q$154,3,FALSE)) ->  | K93: =IF(ISERROR(VLOOKUP(D93,Январь!$K$12:$Q$154,4,FALSE))," ",VLOOKUP(D93,Январь!$K$12:$Q$154,4,FALSE)) ->  | L93: =IF(ISERROR(VLOOKUP(A93,Январь!$A$10:$J$154,9,FALSE))," ",VLOOKUP(A93,Январь!$A$10:$J$154,9,FALSE)) ->  | M93: =IF(ISERROR(VLOOKUP(A93,Январь!$A$10:$J$154,10,FALSE))," ",VLOOKUP(A93,Январь!$A$10:$J$154,10,FALSE)) -> 
A94: К92 | B94: =IF(ISERROR(VLOOKUP(A94,Январь!$A$10:$Q$154,13,FALSE))," ",VLOOKUP(A94,Январь!$A$10:$Q$154,13,FALSE)) ->  | C94: =IF(ISERROR(VLOOKUP(A94,Январь!$A$10:$Q$154,14,FALSE))," ",VLOOKUP(A94,Январь!$A$10:$Q$154,14,FALSE)) ->  | D94: =IF(ISERROR(VLOOKUP(A94,Январь!$A$10:$J$154,3,FALSE))," ",VLOOKUP(A94,Январь!$A$10:$J$154,3,FALSE)) ->  | E94: =IF(ISERROR(VLOOKUP(A94,Январь!$A$10:$J$154,4,FALSE))," ",VLOOKUP(A94,Январь!$A$10:$J$154,4,FALSE)) ->  | F94: =IF(ISERROR(VLOOKUP(A94,Январь!$A$10:$J$154,5,FALSE))," ",VLOOKUP(A94,Январь!$A$10:$J$154,5,FALSE)) ->  | G94: =IF(ISERROR(VLOOKUP(A94,Январь!$A$10:$J$154,6,FALSE))," ",VLOOKUP(A94,Январь!$A$10:$J$154,6,FALSE)) ->  | H94: =IF(ISERROR(VLOOKUP(D94,Январь!$K$12:$Q$154,2,FALSE))," ",VLOOKUP(D94,Январь!$K$12:$Q$154,2,FALSE)) ->  | I94: =IF(ISERROR(VLOOKUP(D94,Январь!$K$12:$Q$154,5,FALSE))," ",VLOOKUP(D94,Январь!$K$12:$Q$154,5,FALSE)) ->  | J94: =IF(ISERROR(VLOOKUP(D94,Январь!$K$12:$Q$154,3,FALSE))," ",VLOOKUP(D94,Январь!$K$12:$Q$154,3,FALSE)) ->  | K94: =IF(ISERROR(VLOOKUP(D94,Январь!$K$12:$Q$154,4,FALSE))," ",VLOOKUP(D94,Январь!$K$12:$Q$154,4,FALSE)) ->  | L94: =IF(ISERROR(VLOOKUP(A94,Январь!$A$10:$J$154,9,FALSE))," ",VLOOKUP(A94,Январь!$A$10:$J$154,9,FALSE)) ->  | M94: =IF(ISERROR(VLOOKUP(A94,Январь!$A$10:$J$154,10,FALSE))," ",VLOOKUP(A94,Январь!$A$10:$J$154,10,FALSE)) -> 
A95: К93 | B95: =IF(ISERROR(VLOOKUP(A95,Январь!$A$10:$Q$154,13,FALSE))," ",VLOOKUP(A95,Январь!$A$10:$Q$154,13,FALSE)) ->  | C95: =IF(ISERROR(VLOOKUP(A95,Январь!$A$10:$Q$154,14,FALSE))," ",VLOOKUP(A95,Январь!$A$10:$Q$154,14,FALSE)) ->  | D95: =IF(ISERROR(VLOOKUP(A95,Январь!$A$10:$J$154,3,FALSE))," ",VLOOKUP(A95,Январь!$A$10:$J$154,3,FALSE)) ->  | E95: =IF(ISERROR(VLOOKUP(A95,Январь!$A$10:$J$154,4,FALSE))," ",VLOOKUP(A95,Январь!$A$10:$J$154,4,FALSE)) ->  | F95: =IF(ISERROR(VLOOKUP(A95,Январь!$A$10:$J$154,5,FALSE))," ",VLOOKUP(A95,Январь!$A$10:$J$154,5,FALSE)) ->  | G95: =IF(ISERROR(VLOOKUP(A95,Январь!$A$10:$J$154,6,FALSE))," ",VLOOKUP(A95,Январь!$A$10:$J$154,6,FALSE)) ->  | H95: =IF(ISERROR(VLOOKUP(D95,Январь!$K$12:$Q$154,2,FALSE))," ",VLOOKUP(D95,Январь!$K$12:$Q$154,2,FALSE)) ->  | I95: =IF(ISERROR(VLOOKUP(D95,Январь!$K$12:$Q$154,5,FALSE))," ",VLOOKUP(D95,Январь!$K$12:$Q$154,5,FALSE)) ->  | J95: =IF(ISERROR(VLOOKUP(D95,Январь!$K$12:$Q$154,3,FALSE))," ",VLOOKUP(D95,Январь!$K$12:$Q$154,3,FALSE)) ->  | K95: =IF(ISERROR(VLOOKUP(D95,Январь!$K$12:$Q$154,4,FALSE))," ",VLOOKUP(D95,Январь!$K$12:$Q$154,4,FALSE)) ->  | L95: =IF(ISERROR(VLOOKUP(A95,Январь!$A$10:$J$154,9,FALSE))," ",VLOOKUP(A95,Январь!$A$10:$J$154,9,FALSE)) ->  | M95: =IF(ISERROR(VLOOKUP(A95,Январь!$A$10:$J$154,10,FALSE))," ",VLOOKUP(A95,Январь!$A$10:$J$154,10,FALSE)) -> 
A96: К94 | B96: =IF(ISERROR(VLOOKUP(A96,Январь!$A$10:$Q$154,13,FALSE))," ",VLOOKUP(A96,Январь!$A$10:$Q$154,13,FALSE)) ->  | C96: =IF(ISERROR(VLOOKUP(A96,Январь!$A$10:$Q$154,14,FALSE))," ",VLOOKUP(A96,Январь!$A$10:$Q$154,14,FALSE)) ->  | D96: =IF(ISERROR(VLOOKUP(A96,Январь!$A$10:$J$154,3,FALSE))," ",VLOOKUP(A96,Январь!$A$10:$J$154,3,FALSE)) ->  | E96: =IF(ISERROR(VLOOKUP(A96,Январь!$A$10:$J$154,4,FALSE))," ",VLOOKUP(A96,Январь!$A$10:$J$154,4,FALSE)) ->  | F96: =IF(ISERROR(VLOOKUP(A96,Январь!$A$10:$J$154,5,FALSE))," ",VLOOKUP(A96,Январь!$A$10:$J$154,5,FALSE)) ->  | G96: =IF(ISERROR(VLOOKUP(A96,Январь!$A$10:$J$154,6,FALSE))," ",VLOOKUP(A96,Январь!$A$10:$J$154,6,FALSE)) ->  | H96: =IF(ISERROR(VLOOKUP(D96,Январь!$K$12:$Q$154,2,FALSE))," ",VLOOKUP(D96,Январь!$K$12:$Q$154,2,FALSE)) ->  | I96: =IF(ISERROR(VLOOKUP(D96,Январь!$K$12:$Q$154,5,FALSE))," ",VLOOKUP(D96,Январь!$K$12:$Q$154,5,FALSE)) ->  | J96: =IF(ISERROR(VLOOKUP(D96,Январь!$K$12:$Q$154,3,FALSE))," ",VLOOKUP(D96,Январь!$K$12:$Q$154,3,FALSE)) ->  | K96: =IF(ISERROR(VLOOKUP(D96,Январь!$K$12:$Q$154,4,FALSE))," ",VLOOKUP(D96,Январь!$K$12:$Q$154,4,FALSE)) ->  | L96: =IF(ISERROR(VLOOKUP(A96,Январь!$A$10:$J$154,9,FALSE))," ",VLOOKUP(A96,Январь!$A$10:$J$154,9,FALSE)) ->  | M96: =IF(ISERROR(VLOOKUP(A96,Январь!$A$10:$J$154,10,FALSE))," ",VLOOKUP(A96,Январь!$A$10:$J$154,10,FALSE)) -> 
A97: К95 | B97: =IF(ISERROR(VLOOKUP(A97,Январь!$A$10:$Q$154,13,FALSE))," ",VLOOKUP(A97,Январь!$A$10:$Q$154,13,FALSE)) ->  | C97: =IF(ISERROR(VLOOKUP(A97,Январь!$A$10:$Q$154,14,FALSE))," ",VLOOKUP(A97,Январь!$A$10:$Q$154,14,FALSE)) ->  | D97: =IF(ISERROR(VLOOKUP(A97,Январь!$A$10:$J$154,3,FALSE))," ",VLOOKUP(A97,Январь!$A$10:$J$154,3,FALSE)) ->  | E97: =IF(ISERROR(VLOOKUP(A97,Январь!$A$10:$J$154,4,FALSE))," ",VLOOKUP(A97,Январь!$A$10:$J$154,4,FALSE)) ->  | F97: =IF(ISERROR(VLOOKUP(A97,Январь!$A$10:$J$154,5,FALSE))," ",VLOOKUP(A97,Январь!$A$10:$J$154,5,FALSE)) ->  | G97: =IF(ISERROR(VLOOKUP(A97,Январь!$A$10:$J$154,6,FALSE))," ",VLOOKUP(A97,Январь!$A$10:$J$154,6,FALSE)) ->  | H97: =IF(ISERROR(VLOOKUP(D97,Январь!$K$12:$Q$154,2,FALSE))," ",VLOOKUP(D97,Январь!$K$12:$Q$154,2,FALSE)) ->  | I97: =IF(ISERROR(VLOOKUP(D97,Январь!$K$12:$Q$154,5,FALSE))," ",VLOOKUP(D97,Январь!$K$12:$Q$154,5,FALSE)) ->  | J97: =IF(ISERROR(VLOOKUP(D97,Январь!$K$12:$Q$154,3,FALSE))," ",VLOOKUP(D97,Январь!$K$12:$Q$154,3,FALSE)) ->  | K97: =IF(ISERROR(VLOOKUP(D97,Январь!$K$12:$Q$154,4,FALSE))," ",VLOOKUP(D97,Январь!$K$12:$Q$154,4,FALSE)) ->  | L97: =IF(ISERROR(VLOOKUP(A97,Январь!$A$10:$J$154,9,FALSE))," ",VLOOKUP(A97,Январь!$A$10:$J$154,9,FALSE)) ->  | M97: =IF(ISERROR(VLOOKUP(A97,Январь!$A$10:$J$154,10,FALSE))," ",VLOOKUP(A97,Январь!$A$10:$J$154,10,FALSE)) -> 
A98: К96 | B98: =IF(ISERROR(VLOOKUP(A98,Январь!$A$10:$Q$154,13,FALSE))," ",VLOOKUP(A98,Январь!$A$10:$Q$154,13,FALSE)) ->  | C98: =IF(ISERROR(VLOOKUP(A98,Январь!$A$10:$Q$154,14,FALSE))," ",VLOOKUP(A98,Январь!$A$10:$Q$154,14,FALSE)) ->  | D98: =IF(ISERROR(VLOOKUP(A98,Январь!$A$10:$J$154,3,FALSE))," ",VLOOKUP(A98,Январь!$A$10:$J$154,3,FALSE)) ->  | E98: =IF(ISERROR(VLOOKUP(A98,Январь!$A$10:$J$154,4,FALSE))," ",VLOOKUP(A98,Январь!$A$10:$J$154,4,FALSE)) ->  | F98: =IF(ISERROR(VLOOKUP(A98,Январь!$A$10:$J$154,5,FALSE))," ",VLOOKUP(A98,Январь!$A$10:$J$154,5,FALSE)) ->  | G98: =IF(ISERROR(VLOOKUP(A98,Январь!$A$10:$J$154,6,FALSE))," ",VLOOKUP(A98,Январь!$A$10:$J$154,6,FALSE)) ->  | H98: =IF(ISERROR(VLOOKUP(D98,Январь!$K$12:$Q$154,2,FALSE))," ",VLOOKUP(D98,Январь!$K$12:$Q$154,2,FALSE)) ->  | I98: =IF(ISERROR(VLOOKUP(D98,Январь!$K$12:$Q$154,5,FALSE))," ",VLOOKUP(D98,Январь!$K$12:$Q$154,5,FALSE)) ->  | J98: =IF(ISERROR(VLOOKUP(D98,Январь!$K$12:$Q$154,3,FALSE))," ",VLOOKUP(D98,Январь!$K$12:$Q$154,3,FALSE)) ->  | K98: =IF(ISERROR(VLOOKUP(D98,Январь!$K$12:$Q$154,4,FALSE))," ",VLOOKUP(D98,Январь!$K$12:$Q$154,4,FALSE)) ->  | L98: =IF(ISERROR(VLOOKUP(A98,Январь!$A$10:$J$154,9,FALSE))," ",VLOOKUP(A98,Январь!$A$10:$J$154,9,FALSE)) ->  | M98: =IF(ISERROR(VLOOKUP(A98,Январь!$A$10:$J$154,10,FALSE))," ",VLOOKUP(A98,Январь!$A$10:$J$154,10,FALSE)) -> 
A99: К97 | B99: =IF(ISERROR(VLOOKUP(A99,Январь!$A$10:$Q$154,13,FALSE))," ",VLOOKUP(A99,Январь!$A$10:$Q$154,13,FALSE)) ->  | C99: =IF(ISERROR(VLOOKUP(A99,Январь!$A$10:$Q$154,14,FALSE))," ",VLOOKUP(A99,Январь!$A$10:$Q$154,14,FALSE)) ->  | D99: =IF(ISERROR(VLOOKUP(A99,Январь!$A$10:$J$154,3,FALSE))," ",VLOOKUP(A99,Январь!$A$10:$J$154,3,FALSE)) ->  | E99: =IF(ISERROR(VLOOKUP(A99,Январь!$A$10:$J$154,4,FALSE))," ",VLOOKUP(A99,Январь!$A$10:$J$154,4,FALSE)) ->  | F99: =IF(ISERROR(VLOOKUP(A99,Январь!$A$10:$J$154,5,FALSE))," ",VLOOKUP(A99,Январь!$A$10:$J$154,5,FALSE)) ->  | G99: =IF(ISERROR(VLOOKUP(A99,Январь!$A$10:$J$154,6,FALSE))," ",VLOOKUP(A99,Январь!$A$10:$J$154,6,FALSE)) ->  | H99: =IF(ISERROR(VLOOKUP(D99,Январь!$K$12:$Q$154,2,FALSE))," ",VLOOKUP(D99,Январь!$K$12:$Q$154,2,FALSE)) ->  | I99: =IF(ISERROR(VLOOKUP(D99,Январь!$K$12:$Q$154,5,FALSE))," ",VLOOKUP(D99,Январь!$K$12:$Q$154,5,FALSE)) ->  | J99: =IF(ISERROR(VLOOKUP(D99,Январь!$K$12:$Q$154,3,FALSE))," ",VLOOKUP(D99,Январь!$K$12:$Q$154,3,FALSE)) ->  | K99: =IF(ISERROR(VLOOKUP(D99,Январь!$K$12:$Q$154,4,FALSE))," ",VLOOKUP(D99,Январь!$K$12:$Q$154,4,FALSE)) ->  | L99: =IF(ISERROR(VLOOKUP(A99,Январь!$A$10:$J$154,9,FALSE))," ",VLOOKUP(A99,Январь!$A$10:$J$154,9,FALSE)) ->  | M99: =IF(ISERROR(VLOOKUP(A99,Январь!$A$10:$J$154,10,FALSE))," ",VLOOKUP(A99,Январь!$A$10:$J$154,10,FALSE)) -> 
A100: К98 | B100: =IF(ISERROR(VLOOKUP(A100,Январь!$A$10:$Q$154,13,FALSE))," ",VLOOKUP(A100,Январь!$A$10:$Q$154,13,FALSE)) ->  | C100: =IF(ISERROR(VLOOKUP(A100,Январь!$A$10:$Q$154,14,FALSE))," ",VLOOKUP(A100,Январь!$A$10:$Q$154,14,FALSE)) ->  | D100: =IF(ISERROR(VLOOKUP(A100,Январь!$A$10:$J$154,3,FALSE))," ",VLOOKUP(A100,Январь!$A$10:$J$154,3,FALSE)) ->  | E100: =IF(ISERROR(VLOOKUP(A100,Январь!$A$10:$J$154,4,FALSE))," ",VLOOKUP(A100,Январь!$A$10:$J$154,4,FALSE)) ->  | F100: =IF(ISERROR(VLOOKUP(A100,Январь!$A$10:$J$154,5,FALSE))," ",VLOOKUP(A100,Январь!$A$10:$J$154,5,FALSE)) ->  | G100: =IF(ISERROR(VLOOKUP(A100,Январь!$A$10:$J$154,6,FALSE))," ",VLOOKUP(A100,Январь!$A$10:$J$154,6,FALSE)) ->  | H100: =IF(ISERROR(VLOOKUP(D100,Январь!$K$12:$Q$154,2,FALSE))," ",VLOOKUP(D100,Январь!$K$12:$Q$154,2,FALSE)) ->  | I100: =IF(ISERROR(VLOOKUP(D100,Январь!$K$12:$Q$154,5,FALSE))," ",VLOOKUP(D100,Январь!$K$12:$Q$154,5,FALSE)) ->  | J100: =IF(ISERROR(VLOOKUP(D100,Январь!$K$12:$Q$154,3,FALSE))," ",VLOOKUP(D100,Январь!$K$12:$Q$154,3,FALSE)) ->  | K100: =IF(ISERROR(VLOOKUP(D100,Январь!$K$12:$Q$154,4,FALSE))," ",VLOOKUP(D100,Январь!$K$12:$Q$154,4,FALSE)) ->  | L100: =IF(ISERROR(VLOOKUP(A100,Январь!$A$10:$J$154,9,FALSE))," ",VLOOKUP(A100,Январь!$A$10:$J$154,9,FALSE)) ->  | M100: =IF(ISERROR(VLOOKUP(A100,Январь!$A$10:$J$154,10,FALSE))," ",VLOOKUP(A100,Январь!$A$10:$J$154,10,FALSE)) -> 
A101: К99 | B101: =IF(ISERROR(VLOOKUP(A101,Январь!$A$10:$Q$154,13,FALSE))," ",VLOOKUP(A101,Январь!$A$10:$Q$154,13,FALSE)) ->  | C101: =IF(ISERROR(VLOOKUP(A101,Январь!$A$10:$Q$154,14,FALSE))," ",VLOOKUP(A101,Январь!$A$10:$Q$154,14,FALSE)) ->  | D101: =IF(ISERROR(VLOOKUP(A101,Январь!$A$10:$J$154,3,FALSE))," ",VLOOKUP(A101,Январь!$A$10:$J$154,3,FALSE)) ->  | E101: =IF(ISERROR(VLOOKUP(A101,Январь!$A$10:$J$154,4,FALSE))," ",VLOOKUP(A101,Январь!$A$10:$J$154,4,FALSE)) ->  | F101: =IF(ISERROR(VLOOKUP(A101,Январь!$A$10:$J$154,5,FALSE))," ",VLOOKUP(A101,Январь!$A$10:$J$154,5,FALSE)) ->  | G101: =IF(ISERROR(VLOOKUP(A101,Январь!$A$10:$J$154,6,FALSE))," ",VLOOKUP(A101,Январь!$A$10:$J$154,6,FALSE)) ->  | H101: =IF(ISERROR(VLOOKUP(D101,Январь!$K$12:$Q$154,2,FALSE))," ",VLOOKUP(D101,Январь!$K$12:$Q$154,2,FALSE)) ->  | I101: =IF(ISERROR(VLOOKUP(D101,Январь!$K$12:$Q$154,5,FALSE))," ",VLOOKUP(D101,Январь!$K$12:$Q$154,5,FALSE)) ->  | J101: =IF(ISERROR(VLOOKUP(D101,Январь!$K$12:$Q$154,3,FALSE))," ",VLOOKUP(D101,Январь!$K$12:$Q$154,3,FALSE)) ->  | K101: =IF(ISERROR(VLOOKUP(D101,Январь!$K$12:$Q$154,4,FALSE))," ",VLOOKUP(D101,Январь!$K$12:$Q$154,4,FALSE)) ->  | L101: =IF(ISERROR(VLOOKUP(A101,Январь!$A$10:$J$154,9,FALSE))," ",VLOOKUP(A101,Январь!$A$10:$J$154,9,FALSE)) ->  | M101: =IF(ISERROR(VLOOKUP(A101,Январь!$A$10:$J$154,10,FALSE))," ",VLOOKUP(A101,Январь!$A$10:$J$154,10,FALSE)) -> 
A102: К100 | B102: =IF(ISERROR(VLOOKUP(A102,Январь!$A$10:$Q$154,13,FALSE))," ",VLOOKUP(A102,Январь!$A$10:$Q$154,13,FALSE)) ->  | C102: =IF(ISERROR(VLOOKUP(A102,Январь!$A$10:$Q$154,14,FALSE))," ",VLOOKUP(A102,Январь!$A$10:$Q$154,14,FALSE)) ->  | D102: =IF(ISERROR(VLOOKUP(A102,Январь!$A$10:$J$154,3,FALSE))," ",VLOOKUP(A102,Январь!$A$10:$J$154,3,FALSE)) ->  | E102: =IF(ISERROR(VLOOKUP(A102,Январь!$A$10:$J$154,4,FALSE))," ",VLOOKUP(A102,Январь!$A$10:$J$154,4,FALSE)) ->  | F102: =IF(ISERROR(VLOOKUP(A102,Январь!$A$10:$J$154,5,FALSE))," ",VLOOKUP(A102,Январь!$A$10:$J$154,5,FALSE)) ->  | G102: =IF(ISERROR(VLOOKUP(A102,Январь!$A$10:$J$154,6,FALSE))," ",VLOOKUP(A102,Январь!$A$10:$J$154,6,FALSE)) ->  | H102: =IF(ISERROR(VLOOKUP(D102,Январь!$K$12:$Q$154,2,FALSE))," ",VLOOKUP(D102,Январь!$K$12:$Q$154,2,FALSE)) ->  | I102: =IF(ISERROR(VLOOKUP(D102,Январь!$K$12:$Q$154,5,FALSE))," ",VLOOKUP(D102,Январь!$K$12:$Q$154,5,FALSE)) ->  | J102: =IF(ISERROR(VLOOKUP(D102,Январь!$K$12:$Q$154,3,FALSE))," ",VLOOKUP(D102,Январь!$K$12:$Q$154,3,FALSE)) ->  | K102: =IF(ISERROR(VLOOKUP(D102,Январь!$K$12:$Q$154,4,FALSE))," ",VLOOKUP(D102,Январь!$K$12:$Q$154,4,FALSE)) ->  | L102: =IF(ISERROR(VLOOKUP(A102,Январь!$A$10:$J$154,9,FALSE))," ",VLOOKUP(A102,Январь!$A$10:$J$154,9,FALSE)) ->  | M102: =IF(ISERROR(VLOOKUP(A102,Январь!$A$10:$J$154,10,FALSE))," ",VLOOKUP(A102,Январь!$A$10:$J$154,10,FALSE)) -> 
A103: К101 | B103: =IF(ISERROR(VLOOKUP(A103,Январь!$A$10:$Q$154,13,FALSE))," ",VLOOKUP(A103,Январь!$A$10:$Q$154,13,FALSE)) ->  | C103: =IF(ISERROR(VLOOKUP(A103,Январь!$A$10:$Q$154,14,FALSE))," ",VLOOKUP(A103,Январь!$A$10:$Q$154,14,FALSE)) ->  | D103: =IF(ISERROR(VLOOKUP(A103,Январь!$A$10:$J$154,3,FALSE))," ",VLOOKUP(A103,Январь!$A$10:$J$154,3,FALSE)) ->  | E103: =IF(ISERROR(VLOOKUP(A103,Январь!$A$10:$J$154,4,FALSE))," ",VLOOKUP(A103,Январь!$A$10:$J$154,4,FALSE)) ->  | F103: =IF(ISERROR(VLOOKUP(A103,Январь!$A$10:$J$154,5,FALSE))," ",VLOOKUP(A103,Январь!$A$10:$J$154,5,FALSE)) ->  | G103: =IF(ISERROR(VLOOKUP(A103,Январь!$A$10:$J$154,6,FALSE))," ",VLOOKUP(A103,Январь!$A$10:$J$154,6,FALSE)) ->  | H103: =IF(ISERROR(VLOOKUP(D103,Январь!$K$12:$Q$154,2,FALSE))," ",VLOOKUP(D103,Январь!$K$12:$Q$154,2,FALSE)) ->  | I103: =IF(ISERROR(VLOOKUP(D103,Январь!$K$12:$Q$154,5,FALSE))," ",VLOOKUP(D103,Январь!$K$12:$Q$154,5,FALSE)) ->  | J103: =IF(ISERROR(VLOOKUP(D103,Январь!$K$12:$Q$154,3,FALSE))," ",VLOOKUP(D103,Январь!$K$12:$Q$154,3,FALSE)) ->  | K103: =IF(ISERROR(VLOOKUP(D103,Январь!$K$12:$Q$154,4,FALSE))," ",VLOOKUP(D103,Январь!$K$12:$Q$154,4,FALSE)) ->  | L103: =IF(ISERROR(VLOOKUP(A103,Январь!$A$10:$J$154,9,FALSE))," ",VLOOKUP(A103,Январь!$A$10:$J$154,9,FALSE)) ->  | M103: =IF(ISERROR(VLOOKUP(A103,Январь!$A$10:$J$154,10,FALSE))," ",VLOOKUP(A103,Январь!$A$10:$J$154,10,FALSE)) -> 
A104: К102 | B104: =IF(ISERROR(VLOOKUP(A104,Январь!$A$10:$Q$154,13,FALSE))," ",VLOOKUP(A104,Январь!$A$10:$Q$154,13,FALSE)) ->  | C104: =IF(ISERROR(VLOOKUP(A104,Январь!$A$10:$Q$154,14,FALSE))," ",VLOOKUP(A104,Январь!$A$10:$Q$154,14,FALSE)) ->  | D104: =IF(ISERROR(VLOOKUP(A104,Январь!$A$10:$J$154,3,FALSE))," ",VLOOKUP(A104,Январь!$A$10:$J$154,3,FALSE)) ->  | E104: =IF(ISERROR(VLOOKUP(A104,Январь!$A$10:$J$154,4,FALSE))," ",VLOOKUP(A104,Январь!$A$10:$J$154,4,FALSE)) ->  | F104: =IF(ISERROR(VLOOKUP(A104,Январь!$A$10:$J$154,5,FALSE))," ",VLOOKUP(A104,Январь!$A$10:$J$154,5,FALSE)) ->  | G104: =IF(ISERROR(VLOOKUP(A104,Январь!$A$10:$J$154,6,FALSE))," ",VLOOKUP(A104,Январь!$A$10:$J$154,6,FALSE)) ->  | H104: =IF(ISERROR(VLOOKUP(D104,Январь!$K$12:$Q$154,2,FALSE))," ",VLOOKUP(D104,Январь!$K$12:$Q$154,2,FALSE)) ->  | I104: =IF(ISERROR(VLOOKUP(D104,Январь!$K$12:$Q$154,5,FALSE))," ",VLOOKUP(D104,Январь!$K$12:$Q$154,5,FALSE)) ->  | J104: =IF(ISERROR(VLOOKUP(D104,Январь!$K$12:$Q$154,3,FALSE))," ",VLOOKUP(D104,Январь!$K$12:$Q$154,3,FALSE)) ->  | K104: =IF(ISERROR(VLOOKUP(D104,Январь!$K$12:$Q$154,4,FALSE))," ",VLOOKUP(D104,Январь!$K$12:$Q$154,4,FALSE)) ->  | L104: =IF(ISERROR(VLOOKUP(A104,Январь!$A$10:$J$154,9,FALSE))," ",VLOOKUP(A104,Январь!$A$10:$J$154,9,FALSE)) ->  | M104: =IF(ISERROR(VLOOKUP(A104,Январь!$A$10:$J$154,10,FALSE))," ",VLOOKUP(A104,Январь!$A$10:$J$154,10,FALSE)) -> 
A105: К103 | B105: =IF(ISERROR(VLOOKUP(A105,Январь!$A$10:$Q$154,13,FALSE))," ",VLOOKUP(A105,Январь!$A$10:$Q$154,13,FALSE)) ->  | C105: =IF(ISERROR(VLOOKUP(A105,Январь!$A$10:$Q$154,14,FALSE))," ",VLOOKUP(A105,Январь!$A$10:$Q$154,14,FALSE)) ->  | D105: =IF(ISERROR(VLOOKUP(A105,Январь!$A$10:$J$154,3,FALSE))," ",VLOOKUP(A105,Январь!$A$10:$J$154,3,FALSE)) ->  | E105: =IF(ISERROR(VLOOKUP(A105,Январь!$A$10:$J$154,4,FALSE))," ",VLOOKUP(A105,Январь!$A$10:$J$154,4,FALSE)) ->  | F105: =IF(ISERROR(VLOOKUP(A105,Январь!$A$10:$J$154,5,FALSE))," ",VLOOKUP(A105,Январь!$A$10:$J$154,5,FALSE)) ->  | G105: =IF(ISERROR(VLOOKUP(A105,Январь!$A$10:$J$154,6,FALSE))," ",VLOOKUP(A105,Январь!$A$10:$J$154,6,FALSE)) ->  | H105: =IF(ISERROR(VLOOKUP(D105,Январь!$K$12:$Q$154,2,FALSE))," ",VLOOKUP(D105,Январь!$K$12:$Q$154,2,FALSE)) ->  | I105: =IF(ISERROR(VLOOKUP(D105,Январь!$K$12:$Q$154,5,FALSE))," ",VLOOKUP(D105,Январь!$K$12:$Q$154,5,FALSE)) ->  | J105: =IF(ISERROR(VLOOKUP(D105,Январь!$K$12:$Q$154,3,FALSE))," ",VLOOKUP(D105,Январь!$K$12:$Q$154,3,FALSE)) ->  | K105: =IF(ISERROR(VLOOKUP(D105,Январь!$K$12:$Q$154,4,FALSE))," ",VLOOKUP(D105,Январь!$K$12:$Q$154,4,FALSE)) ->  | L105: =IF(ISERROR(VLOOKUP(A105,Январь!$A$10:$J$154,9,FALSE))," ",VLOOKUP(A105,Январь!$A$10:$J$154,9,FALSE)) ->  | M105: =IF(ISERROR(VLOOKUP(A105,Январь!$A$10:$J$154,10,FALSE))," ",VLOOKUP(A105,Январь!$A$10:$J$154,10,FALSE)) -> 
A106: К104 | B106: =IF(ISERROR(VLOOKUP(A106,Январь!$A$10:$Q$154,13,FALSE))," ",VLOOKUP(A106,Январь!$A$10:$Q$154,13,FALSE)) ->  | C106: =IF(ISERROR(VLOOKUP(A106,Январь!$A$10:$Q$154,14,FALSE))," ",VLOOKUP(A106,Январь!$A$10:$Q$154,14,FALSE)) ->  | D106: =IF(ISERROR(VLOOKUP(A106,Январь!$A$10:$J$154,3,FALSE))," ",VLOOKUP(A106,Январь!$A$10:$J$154,3,FALSE)) ->  | E106: =IF(ISERROR(VLOOKUP(A106,Январь!$A$10:$J$154,4,FALSE))," ",VLOOKUP(A106,Январь!$A$10:$J$154,4,FALSE)) ->  | F106: =IF(ISERROR(VLOOKUP(A106,Январь!$A$10:$J$154,5,FALSE))," ",VLOOKUP(A106,Январь!$A$10:$J$154,5,FALSE)) ->  | G106: =IF(ISERROR(VLOOKUP(A106,Январь!$A$10:$J$154,6,FALSE))," ",VLOOKUP(A106,Январь!$A$10:$J$154,6,FALSE)) ->  | H106: =IF(ISERROR(VLOOKUP(D106,Январь!$K$12:$Q$154,2,FALSE))," ",VLOOKUP(D106,Январь!$K$12:$Q$154,2,FALSE)) ->  | I106: =IF(ISERROR(VLOOKUP(D106,Январь!$K$12:$Q$154,5,FALSE))," ",VLOOKUP(D106,Январь!$K$12:$Q$154,5,FALSE)) ->  | J106: =IF(ISERROR(VLOOKUP(D106,Январь!$K$12:$Q$154,3,FALSE))," ",VLOOKUP(D106,Январь!$K$12:$Q$154,3,FALSE)) ->  | K106: =IF(ISERROR(VLOOKUP(D106,Январь!$K$12:$Q$154,4,FALSE))," ",VLOOKUP(D106,Январь!$K$12:$Q$154,4,FALSE)) ->  | L106: =IF(ISERROR(VLOOKUP(A106,Январь!$A$10:$J$154,9,FALSE))," ",VLOOKUP(A106,Январь!$A$10:$J$154,9,FALSE)) ->  | M106: =IF(ISERROR(VLOOKUP(A106,Январь!$A$10:$J$154,10,FALSE))," ",VLOOKUP(A106,Январь!$A$10:$J$154,10,FALSE)) -> 
A107: К105 | B107: =IF(ISERROR(VLOOKUP(A107,Январь!$A$10:$Q$154,13,FALSE))," ",VLOOKUP(A107,Январь!$A$10:$Q$154,13,FALSE)) ->  | C107: =IF(ISERROR(VLOOKUP(A107,Январь!$A$10:$Q$154,14,FALSE))," ",VLOOKUP(A107,Январь!$A$10:$Q$154,14,FALSE)) ->  | D107: =IF(ISERROR(VLOOKUP(A107,Январь!$A$10:$J$154,3,FALSE))," ",VLOOKUP(A107,Январь!$A$10:$J$154,3,FALSE)) ->  | E107: =IF(ISERROR(VLOOKUP(A107,Январь!$A$10:$J$154,4,FALSE))," ",VLOOKUP(A107,Январь!$A$10:$J$154,4,FALSE)) ->  | F107: =IF(ISERROR(VLOOKUP(A107,Январь!$A$10:$J$154,5,FALSE))," ",VLOOKUP(A107,Январь!$A$10:$J$154,5,FALSE)) ->  | G107: =IF(ISERROR(VLOOKUP(A107,Январь!$A$10:$J$154,6,FALSE))," ",VLOOKUP(A107,Январь!$A$10:$J$154,6,FALSE)) ->  | H107: =IF(ISERROR(VLOOKUP(D107,Январь!$K$12:$Q$154,2,FALSE))," ",VLOOKUP(D107,Январь!$K$12:$Q$154,2,FALSE)) ->  | I107: =IF(ISERROR(VLOOKUP(D107,Январь!$K$12:$Q$154,5,FALSE))," ",VLOOKUP(D107,Январь!$K$12:$Q$154,5,FALSE)) ->  | J107: =IF(ISERROR(VLOOKUP(D107,Январь!$K$12:$Q$154,3,FALSE))," ",VLOOKUP(D107,Январь!$K$12:$Q$154,3,FALSE)) ->  | K107: =IF(ISERROR(VLOOKUP(D107,Январь!$K$12:$Q$154,4,FALSE))," ",VLOOKUP(D107,Январь!$K$12:$Q$154,4,FALSE)) ->  | L107: =IF(ISERROR(VLOOKUP(A107,Январь!$A$10:$J$154,9,FALSE))," ",VLOOKUP(A107,Январь!$A$10:$J$154,9,FALSE)) ->  | M107: =IF(ISERROR(VLOOKUP(A107,Январь!$A$10:$J$154,10,FALSE))," ",VLOOKUP(A107,Январь!$A$10:$J$154,10,FALSE)) -> 
A108: К106 | B108: =IF(ISERROR(VLOOKUP(A108,Январь!$A$10:$Q$154,13,FALSE))," ",VLOOKUP(A108,Январь!$A$10:$Q$154,13,FALSE)) ->  | C108: =IF(ISERROR(VLOOKUP(A108,Январь!$A$10:$Q$154,14,FALSE))," ",VLOOKUP(A108,Январь!$A$10:$Q$154,14,FALSE)) ->  | D108: =IF(ISERROR(VLOOKUP(A108,Январь!$A$10:$J$154,3,FALSE))," ",VLOOKUP(A108,Январь!$A$10:$J$154,3,FALSE)) ->  | E108: =IF(ISERROR(VLOOKUP(A108,Январь!$A$10:$J$154,4,FALSE))," ",VLOOKUP(A108,Январь!$A$10:$J$154,4,FALSE)) ->  | F108: =IF(ISERROR(VLOOKUP(A108,Январь!$A$10:$J$154,5,FALSE))," ",VLOOKUP(A108,Январь!$A$10:$J$154,5,FALSE)) ->  | G108: =IF(ISERROR(VLOOKUP(A108,Январь!$A$10:$J$154,6,FALSE))," ",VLOOKUP(A108,Январь!$A$10:$J$154,6,FALSE)) ->  | H108: =IF(ISERROR(VLOOKUP(D108,Январь!$K$12:$Q$154,2,FALSE))," ",VLOOKUP(D108,Январь!$K$12:$Q$154,2,FALSE)) ->  | I108: =IF(ISERROR(VLOOKUP(D108,Январь!$K$12:$Q$154,5,FALSE))," ",VLOOKUP(D108,Январь!$K$12:$Q$154,5,FALSE)) ->  | J108: =IF(ISERROR(VLOOKUP(D108,Январь!$K$12:$Q$154,3,FALSE))," ",VLOOKUP(D108,Январь!$K$12:$Q$154,3,FALSE)) ->  | K108: =IF(ISERROR(VLOOKUP(D108,Январь!$K$12:$Q$154,4,FALSE))," ",VLOOKUP(D108,Январь!$K$12:$Q$154,4,FALSE)) ->  | L108: =IF(ISERROR(VLOOKUP(A108,Январь!$A$10:$J$154,9,FALSE))," ",VLOOKUP(A108,Январь!$A$10:$J$154,9,FALSE)) ->  | M108: =IF(ISERROR(VLOOKUP(A108,Январь!$A$10:$J$154,10,FALSE))," ",VLOOKUP(A108,Январь!$A$10:$J$154,10,FALSE)) -> 
A109: К107 | B109: =IF(ISERROR(VLOOKUP(A109,Январь!$A$10:$Q$154,13,FALSE))," ",VLOOKUP(A109,Январь!$A$10:$Q$154,13,FALSE)) ->  | C109: =IF(ISERROR(VLOOKUP(A109,Январь!$A$10:$Q$154,14,FALSE))," ",VLOOKUP(A109,Январь!$A$10:$Q$154,14,FALSE)) ->  | D109: =IF(ISERROR(VLOOKUP(A109,Январь!$A$10:$J$154,3,FALSE))," ",VLOOKUP(A109,Январь!$A$10:$J$154,3,FALSE)) ->  | E109: =IF(ISERROR(VLOOKUP(A109,Январь!$A$10:$J$154,4,FALSE))," ",VLOOKUP(A109,Январь!$A$10:$J$154,4,FALSE)) ->  | F109: =IF(ISERROR(VLOOKUP(A109,Январь!$A$10:$J$154,5,FALSE))," ",VLOOKUP(A109,Январь!$A$10:$J$154,5,FALSE)) ->  | G109: =IF(ISERROR(VLOOKUP(A109,Январь!$A$10:$J$154,6,FALSE))," ",VLOOKUP(A109,Январь!$A$10:$J$154,6,FALSE)) ->  | H109: =IF(ISERROR(VLOOKUP(D109,Январь!$K$12:$Q$154,2,FALSE))," ",VLOOKUP(D109,Январь!$K$12:$Q$154,2,FALSE)) ->  | I109: =IF(ISERROR(VLOOKUP(D109,Январь!$K$12:$Q$154,5,FALSE))," ",VLOOKUP(D109,Январь!$K$12:$Q$154,5,FALSE)) ->  | J109: =IF(ISERROR(VLOOKUP(D109,Январь!$K$12:$Q$154,3,FALSE))," ",VLOOKUP(D109,Январь!$K$12:$Q$154,3,FALSE)) ->  | K109: =IF(ISERROR(VLOOKUP(D109,Январь!$K$12:$Q$154,4,FALSE))," ",VLOOKUP(D109,Январь!$K$12:$Q$154,4,FALSE)) ->  | L109: =IF(ISERROR(VLOOKUP(A109,Январь!$A$10:$J$154,9,FALSE))," ",VLOOKUP(A109,Январь!$A$10:$J$154,9,FALSE)) ->  | M109: =IF(ISERROR(VLOOKUP(A109,Январь!$A$10:$J$154,10,FALSE))," ",VLOOKUP(A109,Январь!$A$10:$J$154,10,FALSE)) -> 
A110: К108 | B110: =IF(ISERROR(VLOOKUP(A110,Январь!$A$10:$Q$154,13,FALSE))," ",VLOOKUP(A110,Январь!$A$10:$Q$154,13,FALSE)) ->  | C110: =IF(ISERROR(VLOOKUP(A110,Январь!$A$10:$Q$154,14,FALSE))," ",VLOOKUP(A110,Январь!$A$10:$Q$154,14,FALSE)) ->  | D110: =IF(ISERROR(VLOOKUP(A110,Январь!$A$10:$J$154,3,FALSE))," ",VLOOKUP(A110,Январь!$A$10:$J$154,3,FALSE)) ->  | E110: =IF(ISERROR(VLOOKUP(A110,Январь!$A$10:$J$154,4,FALSE))," ",VLOOKUP(A110,Январь!$A$10:$J$154,4,FALSE)) ->  | F110: =IF(ISERROR(VLOOKUP(A110,Январь!$A$10:$J$154,5,FALSE))," ",VLOOKUP(A110,Январь!$A$10:$J$154,5,FALSE)) ->  | G110: =IF(ISERROR(VLOOKUP(A110,Январь!$A$10:$J$154,6,FALSE))," ",VLOOKUP(A110,Январь!$A$10:$J$154,6,FALSE)) ->  | H110: =IF(ISERROR(VLOOKUP(D110,Январь!$K$12:$Q$154,2,FALSE))," ",VLOOKUP(D110,Январь!$K$12:$Q$154,2,FALSE)) ->  | I110: =IF(ISERROR(VLOOKUP(D110,Январь!$K$12:$Q$154,5,FALSE))," ",VLOOKUP(D110,Январь!$K$12:$Q$154,5,FALSE)) ->  | J110: =IF(ISERROR(VLOOKUP(D110,Январь!$K$12:$Q$154,3,FALSE))," ",VLOOKUP(D110,Январь!$K$12:$Q$154,3,FALSE)) ->  | K110: =IF(ISERROR(VLOOKUP(D110,Январь!$K$12:$Q$154,4,FALSE))," ",VLOOKUP(D110,Январь!$K$12:$Q$154,4,FALSE)) ->  | L110: =IF(ISERROR(VLOOKUP(A110,Январь!$A$10:$J$154,9,FALSE))," ",VLOOKUP(A110,Январь!$A$10:$J$154,9,FALSE)) ->  | M110: =IF(ISERROR(VLOOKUP(A110,Январь!$A$10:$J$154,10,FALSE))," ",VLOOKUP(A110,Январь!$A$10:$J$154,10,FALSE)) -> 
A111: К109 | B111: =IF(ISERROR(VLOOKUP(A111,Январь!$A$10:$Q$154,13,FALSE))," ",VLOOKUP(A111,Январь!$A$10:$Q$154,13,FALSE)) ->  | C111: =IF(ISERROR(VLOOKUP(A111,Январь!$A$10:$Q$154,14,FALSE))," ",VLOOKUP(A111,Январь!$A$10:$Q$154,14,FALSE)) ->  | D111: =IF(ISERROR(VLOOKUP(A111,Январь!$A$10:$J$154,3,FALSE))," ",VLOOKUP(A111,Январь!$A$10:$J$154,3,FALSE)) ->  | E111: =IF(ISERROR(VLOOKUP(A111,Январь!$A$10:$J$154,4,FALSE))," ",VLOOKUP(A111,Январь!$A$10:$J$154,4,FALSE)) ->  | F111: =IF(ISERROR(VLOOKUP(A111,Январь!$A$10:$J$154,5,FALSE))," ",VLOOKUP(A111,Январь!$A$10:$J$154,5,FALSE)) ->  | G111: =IF(ISERROR(VLOOKUP(A111,Январь!$A$10:$J$154,6,FALSE))," ",VLOOKUP(A111,Январь!$A$10:$J$154,6,FALSE)) ->  | H111: =IF(ISERROR(VLOOKUP(D111,Январь!$K$12:$Q$154,2,FALSE))," ",VLOOKUP(D111,Январь!$K$12:$Q$154,2,FALSE)) ->  | I111: =IF(ISERROR(VLOOKUP(D111,Январь!$K$12:$Q$154,5,FALSE))," ",VLOOKUP(D111,Январь!$K$12:$Q$154,5,FALSE)) ->  | J111: =IF(ISERROR(VLOOKUP(D111,Январь!$K$12:$Q$154,3,FALSE))," ",VLOOKUP(D111,Январь!$K$12:$Q$154,3,FALSE)) ->  | K111: =IF(ISERROR(VLOOKUP(D111,Январь!$K$12:$Q$154,4,FALSE))," ",VLOOKUP(D111,Январь!$K$12:$Q$154,4,FALSE)) ->  | L111: =IF(ISERROR(VLOOKUP(A111,Январь!$A$10:$J$154,9,FALSE))," ",VLOOKUP(A111,Январь!$A$10:$J$154,9,FALSE)) ->  | M111: =IF(ISERROR(VLOOKUP(A111,Январь!$A$10:$J$154,10,FALSE))," ",VLOOKUP(A111,Январь!$A$10:$J$154,10,FALSE)) -> 
A112: К110 | B112: =IF(ISERROR(VLOOKUP(A112,Январь!$A$10:$Q$154,13,FALSE))," ",VLOOKUP(A112,Январь!$A$10:$Q$154,13,FALSE)) ->  | C112: =IF(ISERROR(VLOOKUP(A112,Январь!$A$10:$Q$154,14,FALSE))," ",VLOOKUP(A112,Январь!$A$10:$Q$154,14,FALSE)) ->  | D112: =IF(ISERROR(VLOOKUP(A112,Январь!$A$10:$J$154,3,FALSE))," ",VLOOKUP(A112,Январь!$A$10:$J$154,3,FALSE)) ->  | E112: =IF(ISERROR(VLOOKUP(A112,Январь!$A$10:$J$154,4,FALSE))," ",VLOOKUP(A112,Январь!$A$10:$J$154,4,FALSE)) ->  | F112: =IF(ISERROR(VLOOKUP(A112,Январь!$A$10:$J$154,5,FALSE))," ",VLOOKUP(A112,Январь!$A$10:$J$154,5,FALSE)) ->  | G112: =IF(ISERROR(VLOOKUP(A112,Январь!$A$10:$J$154,6,FALSE))," ",VLOOKUP(A112,Январь!$A$10:$J$154,6,FALSE)) ->  | H112: =IF(ISERROR(VLOOKUP(D112,Январь!$K$12:$Q$154,2,FALSE))," ",VLOOKUP(D112,Январь!$K$12:$Q$154,2,FALSE)) ->  | I112: =IF(ISERROR(VLOOKUP(D112,Январь!$K$12:$Q$154,5,FALSE))," ",VLOOKUP(D112,Январь!$K$12:$Q$154,5,FALSE)) ->  | J112: =IF(ISERROR(VLOOKUP(D112,Январь!$K$12:$Q$154,3,FALSE))," ",VLOOKUP(D112,Январь!$K$12:$Q$154,3,FALSE)) ->  | K112: =IF(ISERROR(VLOOKUP(D112,Январь!$K$12:$Q$154,4,FALSE))," ",VLOOKUP(D112,Январь!$K$12:$Q$154,4,FALSE)) ->  | L112: =IF(ISERROR(VLOOKUP(A112,Январь!$A$10:$J$154,9,FALSE))," ",VLOOKUP(A112,Январь!$A$10:$J$154,9,FALSE)) ->  | M112: =IF(ISERROR(VLOOKUP(A112,Январь!$A$10:$J$154,10,FALSE))," ",VLOOKUP(A112,Январь!$A$10:$J$154,10,FALSE)) -> 
A113: К111 | B113: =IF(ISERROR(VLOOKUP(A113,Январь!$A$10:$Q$154,13,FALSE))," ",VLOOKUP(A113,Январь!$A$10:$Q$154,13,FALSE)) ->  | C113: =IF(ISERROR(VLOOKUP(A113,Январь!$A$10:$Q$154,14,FALSE))," ",VLOOKUP(A113,Январь!$A$10:$Q$154,14,FALSE)) ->  | D113: =IF(ISERROR(VLOOKUP(A113,Январь!$A$10:$J$154,3,FALSE))," ",VLOOKUP(A113,Январь!$A$10:$J$154,3,FALSE)) ->  | E113: =IF(ISERROR(VLOOKUP(A113,Январь!$A$10:$J$154,4,FALSE))," ",VLOOKUP(A113,Январь!$A$10:$J$154,4,FALSE)) ->  | F113: =IF(ISERROR(VLOOKUP(A113,Январь!$A$10:$J$154,5,FALSE))," ",VLOOKUP(A113,Январь!$A$10:$J$154,5,FALSE)) ->  | G113: =IF(ISERROR(VLOOKUP(A113,Январь!$A$10:$J$154,6,FALSE))," ",VLOOKUP(A113,Январь!$A$10:$J$154,6,FALSE)) ->  | H113: =IF(ISERROR(VLOOKUP(D113,Январь!$K$12:$Q$154,2,FALSE))," ",VLOOKUP(D113,Январь!$K$12:$Q$154,2,FALSE)) ->  | I113: =IF(ISERROR(VLOOKUP(D113,Январь!$K$12:$Q$154,5,FALSE))," ",VLOOKUP(D113,Январь!$K$12:$Q$154,5,FALSE)) ->  | J113: =IF(ISERROR(VLOOKUP(D113,Январь!$K$12:$Q$154,3,FALSE))," ",VLOOKUP(D113,Январь!$K$12:$Q$154,3,FALSE)) ->  | K113: =IF(ISERROR(VLOOKUP(D113,Январь!$K$12:$Q$154,4,FALSE))," ",VLOOKUP(D113,Январь!$K$12:$Q$154,4,FALSE)) ->  | L113: =IF(ISERROR(VLOOKUP(A113,Январь!$A$10:$J$154,9,FALSE))," ",VLOOKUP(A113,Январь!$A$10:$J$154,9,FALSE)) ->  | M113: =IF(ISERROR(VLOOKUP(A113,Январь!$A$10:$J$154,10,FALSE))," ",VLOOKUP(A113,Январь!$A$10:$J$154,10,FALSE)) -> 
A114: К112 | B114: =IF(ISERROR(VLOOKUP(A114,Январь!$A$10:$Q$154,13,FALSE))," ",VLOOKUP(A114,Январь!$A$10:$Q$154,13,FALSE)) ->  | C114: =IF(ISERROR(VLOOKUP(A114,Январь!$A$10:$Q$154,14,FALSE))," ",VLOOKUP(A114,Январь!$A$10:$Q$154,14,FALSE)) ->  | D114: =IF(ISERROR(VLOOKUP(A114,Январь!$A$10:$J$154,3,FALSE))," ",VLOOKUP(A114,Январь!$A$10:$J$154,3,FALSE)) ->  | E114: =IF(ISERROR(VLOOKUP(A114,Январь!$A$10:$J$154,4,FALSE))," ",VLOOKUP(A114,Январь!$A$10:$J$154,4,FALSE)) ->  | F114: =IF(ISERROR(VLOOKUP(A114,Январь!$A$10:$J$154,5,FALSE))," ",VLOOKUP(A114,Январь!$A$10:$J$154,5,FALSE)) ->  | G114: =IF(ISERROR(VLOOKUP(A114,Январь!$A$10:$J$154,6,FALSE))," ",VLOOKUP(A114,Январь!$A$10:$J$154,6,FALSE)) ->  | H114: =IF(ISERROR(VLOOKUP(D114,Январь!$K$12:$Q$154,2,FALSE))," ",VLOOKUP(D114,Январь!$K$12:$Q$154,2,FALSE)) ->  | I114: =IF(ISERROR(VLOOKUP(D114,Январь!$K$12:$Q$154,5,FALSE))," ",VLOOKUP(D114,Январь!$K$12:$Q$154,5,FALSE)) ->  | J114: =IF(ISERROR(VLOOKUP(D114,Январь!$K$12:$Q$154,3,FALSE))," ",VLOOKUP(D114,Январь!$K$12:$Q$154,3,FALSE)) ->  | K114: =IF(ISERROR(VLOOKUP(D114,Январь!$K$12:$Q$154,4,FALSE))," ",VLOOKUP(D114,Январь!$K$12:$Q$154,4,FALSE)) ->  | L114: =IF(ISERROR(VLOOKUP(A114,Январь!$A$10:$J$154,9,FALSE))," ",VLOOKUP(A114,Январь!$A$10:$J$154,9,FALSE)) ->  | M114: =IF(ISERROR(VLOOKUP(A114,Январь!$A$10:$J$154,10,FALSE))," ",VLOOKUP(A114,Январь!$A$10:$J$154,10,FALSE)) -> 
A115: К113 | B115: =IF(ISERROR(VLOOKUP(A115,Январь!$A$10:$Q$154,13,FALSE))," ",VLOOKUP(A115,Январь!$A$10:$Q$154,13,FALSE)) ->  | C115: =IF(ISERROR(VLOOKUP(A115,Январь!$A$10:$Q$154,14,FALSE))," ",VLOOKUP(A115,Январь!$A$10:$Q$154,14,FALSE)) ->  | D115: =IF(ISERROR(VLOOKUP(A115,Январь!$A$10:$J$154,3,FALSE))," ",VLOOKUP(A115,Январь!$A$10:$J$154,3,FALSE)) ->  | E115: =IF(ISERROR(VLOOKUP(A115,Январь!$A$10:$J$154,4,FALSE))," ",VLOOKUP(A115,Январь!$A$10:$J$154,4,FALSE)) ->  | F115: =IF(ISERROR(VLOOKUP(A115,Январь!$A$10:$J$154,5,FALSE))," ",VLOOKUP(A115,Январь!$A$10:$J$154,5,FALSE)) ->  | G115: =IF(ISERROR(VLOOKUP(A115,Январь!$A$10:$J$154,6,FALSE))," ",VLOOKUP(A115,Январь!$A$10:$J$154,6,FALSE)) ->  | H115: =IF(ISERROR(VLOOKUP(D115,Январь!$K$12:$Q$154,2,FALSE))," ",VLOOKUP(D115,Январь!$K$12:$Q$154,2,FALSE)) ->  | I115: =IF(ISERROR(VLOOKUP(D115,Январь!$K$12:$Q$154,5,FALSE))," ",VLOOKUP(D115,Январь!$K$12:$Q$154,5,FALSE)) ->  | J115: =IF(ISERROR(VLOOKUP(D115,Январь!$K$12:$Q$154,3,FALSE))," ",VLOOKUP(D115,Январь!$K$12:$Q$154,3,FALSE)) ->  | K115: =IF(ISERROR(VLOOKUP(D115,Январь!$K$12:$Q$154,4,FALSE))," ",VLOOKUP(D115,Январь!$K$12:$Q$154,4,FALSE)) ->  | L115: =IF(ISERROR(VLOOKUP(A115,Январь!$A$10:$J$154,9,FALSE))," ",VLOOKUP(A115,Январь!$A$10:$J$154,9,FALSE)) ->  | M115: =IF(ISERROR(VLOOKUP(A115,Январь!$A$10:$J$154,10,FALSE))," ",VLOOKUP(A115,Январь!$A$10:$J$154,10,FALSE)) -> 
A116: К114 | B116: =IF(ISERROR(VLOOKUP(A116,Январь!$A$10:$Q$154,13,FALSE))," ",VLOOKUP(A116,Январь!$A$10:$Q$154,13,FALSE)) ->  | C116: =IF(ISERROR(VLOOKUP(A116,Январь!$A$10:$Q$154,14,FALSE))," ",VLOOKUP(A116,Январь!$A$10:$Q$154,14,FALSE)) ->  | D116: =IF(ISERROR(VLOOKUP(A116,Январь!$A$10:$J$154,3,FALSE))," ",VLOOKUP(A116,Январь!$A$10:$J$154,3,FALSE)) ->  | E116: =IF(ISERROR(VLOOKUP(A116,Январь!$A$10:$J$154,4,FALSE))," ",VLOOKUP(A116,Январь!$A$10:$J$154,4,FALSE)) ->  | F116: =IF(ISERROR(VLOOKUP(A116,Январь!$A$10:$J$154,5,FALSE))," ",VLOOKUP(A116,Январь!$A$10:$J$154,5,FALSE)) ->  | G116: =IF(ISERROR(VLOOKUP(A116,Январь!$A$10:$J$154,6,FALSE))," ",VLOOKUP(A116,Январь!$A$10:$J$154,6,FALSE)) ->  | H116: =IF(ISERROR(VLOOKUP(D116,Январь!$K$12:$Q$154,2,FALSE))," ",VLOOKUP(D116,Январь!$K$12:$Q$154,2,FALSE)) ->  | I116: =IF(ISERROR(VLOOKUP(D116,Январь!$K$12:$Q$154,5,FALSE))," ",VLOOKUP(D116,Январь!$K$12:$Q$154,5,FALSE)) ->  | J116: =IF(ISERROR(VLOOKUP(D116,Январь!$K$12:$Q$154,3,FALSE))," ",VLOOKUP(D116,Январь!$K$12:$Q$154,3,FALSE)) ->  | K116: =IF(ISERROR(VLOOKUP(D116,Январь!$K$12:$Q$154,4,FALSE))," ",VLOOKUP(D116,Январь!$K$12:$Q$154,4,FALSE)) ->  | L116: =IF(ISERROR(VLOOKUP(A116,Январь!$A$10:$J$154,9,FALSE))," ",VLOOKUP(A116,Январь!$A$10:$J$154,9,FALSE)) ->  | M116: =IF(ISERROR(VLOOKUP(A116,Январь!$A$10:$J$154,10,FALSE))," ",VLOOKUP(A116,Январь!$A$10:$J$154,10,FALSE)) -> 
A117: К115 | B117: =IF(ISERROR(VLOOKUP(A117,Январь!$A$10:$Q$154,13,FALSE))," ",VLOOKUP(A117,Январь!$A$10:$Q$154,13,FALSE)) ->  | C117: =IF(ISERROR(VLOOKUP(A117,Январь!$A$10:$Q$154,14,FALSE))," ",VLOOKUP(A117,Январь!$A$10:$Q$154,14,FALSE)) ->  | D117: =IF(ISERROR(VLOOKUP(A117,Январь!$A$10:$J$154,3,FALSE))," ",VLOOKUP(A117,Январь!$A$10:$J$154,3,FALSE)) ->  | E117: =IF(ISERROR(VLOOKUP(A117,Январь!$A$10:$J$154,4,FALSE))," ",VLOOKUP(A117,Январь!$A$10:$J$154,4,FALSE)) ->  | F117: =IF(ISERROR(VLOOKUP(A117,Январь!$A$10:$J$154,5,FALSE))," ",VLOOKUP(A117,Январь!$A$10:$J$154,5,FALSE)) ->  | G117: =IF(ISERROR(VLOOKUP(A117,Январь!$A$10:$J$154,6,FALSE))," ",VLOOKUP(A117,Январь!$A$10:$J$154,6,FALSE)) ->  | H117: =IF(ISERROR(VLOOKUP(D117,Январь!$K$12:$Q$154,2,FALSE))," ",VLOOKUP(D117,Январь!$K$12:$Q$154,2,FALSE)) ->  | I117: =IF(ISERROR(VLOOKUP(D117,Январь!$K$12:$Q$154,5,FALSE))," ",VLOOKUP(D117,Январь!$K$12:$Q$154,5,FALSE)) ->  | J117: =IF(ISERROR(VLOOKUP(D117,Январь!$K$12:$Q$154,3,FALSE))," ",VLOOKUP(D117,Январь!$K$12:$Q$154,3,FALSE)) ->  | K117: =IF(ISERROR(VLOOKUP(D117,Январь!$K$12:$Q$154,4,FALSE))," ",VLOOKUP(D117,Январь!$K$12:$Q$154,4,FALSE)) ->  | L117: =IF(ISERROR(VLOOKUP(A117,Январь!$A$10:$J$154,9,FALSE))," ",VLOOKUP(A117,Январь!$A$10:$J$154,9,FALSE)) ->  | M117: =IF(ISERROR(VLOOKUP(A117,Январь!$A$10:$J$154,10,FALSE))," ",VLOOKUP(A117,Январь!$A$10:$J$154,10,FALSE)) -> 
A118: К116 | B118: =IF(ISERROR(VLOOKUP(A118,Январь!$A$10:$Q$154,13,FALSE))," ",VLOOKUP(A118,Январь!$A$10:$Q$154,13,FALSE)) ->  | C118: =IF(ISERROR(VLOOKUP(A118,Январь!$A$10:$Q$154,14,FALSE))," ",VLOOKUP(A118,Январь!$A$10:$Q$154,14,FALSE)) ->  | D118: =IF(ISERROR(VLOOKUP(A118,Январь!$A$10:$J$154,3,FALSE))," ",VLOOKUP(A118,Январь!$A$10:$J$154,3,FALSE)) ->  | E118: =IF(ISERROR(VLOOKUP(A118,Январь!$A$10:$J$154,4,FALSE))," ",VLOOKUP(A118,Январь!$A$10:$J$154,4,FALSE)) ->  | F118: =IF(ISERROR(VLOOKUP(A118,Январь!$A$10:$J$154,5,FALSE))," ",VLOOKUP(A118,Январь!$A$10:$J$154,5,FALSE)) ->  | G118: =IF(ISERROR(VLOOKUP(A118,Январь!$A$10:$J$154,6,FALSE))," ",VLOOKUP(A118,Январь!$A$10:$J$154,6,FALSE)) ->  | H118: =IF(ISERROR(VLOOKUP(D118,Январь!$K$12:$Q$154,2,FALSE))," ",VLOOKUP(D118,Январь!$K$12:$Q$154,2,FALSE)) ->  | I118: =IF(ISERROR(VLOOKUP(D118,Январь!$K$12:$Q$154,5,FALSE))," ",VLOOKUP(D118,Январь!$K$12:$Q$154,5,FALSE)) ->  | J118: =IF(ISERROR(VLOOKUP(D118,Январь!$K$12:$Q$154,3,FALSE))," ",VLOOKUP(D118,Январь!$K$12:$Q$154,3,FALSE)) ->  | K118: =IF(ISERROR(VLOOKUP(D118,Январь!$K$12:$Q$154,4,FALSE))," ",VLOOKUP(D118,Январь!$K$12:$Q$154,4,FALSE)) ->  | L118: =IF(ISERROR(VLOOKUP(A118,Январь!$A$10:$J$154,9,FALSE))," ",VLOOKUP(A118,Январь!$A$10:$J$154,9,FALSE)) ->  | M118: =IF(ISERROR(VLOOKUP(A118,Январь!$A$10:$J$154,10,FALSE))," ",VLOOKUP(A118,Январь!$A$10:$J$154,10,FALSE)) -> 
A119: К117 | B119: =IF(ISERROR(VLOOKUP(A119,Январь!$A$10:$Q$154,13,FALSE))," ",VLOOKUP(A119,Январь!$A$10:$Q$154,13,FALSE)) ->  | C119: =IF(ISERROR(VLOOKUP(A119,Январь!$A$10:$Q$154,14,FALSE))," ",VLOOKUP(A119,Январь!$A$10:$Q$154,14,FALSE)) ->  | D119: =IF(ISERROR(VLOOKUP(A119,Январь!$A$10:$J$154,3,FALSE))," ",VLOOKUP(A119,Январь!$A$10:$J$154,3,FALSE)) ->  | E119: =IF(ISERROR(VLOOKUP(A119,Январь!$A$10:$J$154,4,FALSE))," ",VLOOKUP(A119,Январь!$A$10:$J$154,4,FALSE)) ->  | F119: =IF(ISERROR(VLOOKUP(A119,Январь!$A$10:$J$154,5,FALSE))," ",VLOOKUP(A119,Январь!$A$10:$J$154,5,FALSE)) ->  | G119: =IF(ISERROR(VLOOKUP(A119,Январь!$A$10:$J$154,6,FALSE))," ",VLOOKUP(A119,Январь!$A$10:$J$154,6,FALSE)) ->  | H119: =IF(ISERROR(VLOOKUP(D119,Январь!$K$12:$Q$154,2,FALSE))," ",VLOOKUP(D119,Январь!$K$12:$Q$154,2,FALSE)) ->  | I119: =IF(ISERROR(VLOOKUP(D119,Январь!$K$12:$Q$154,5,FALSE))," ",VLOOKUP(D119,Январь!$K$12:$Q$154,5,FALSE)) ->  | J119: =IF(ISERROR(VLOOKUP(D119,Январь!$K$12:$Q$154,3,FALSE))," ",VLOOKUP(D119,Январь!$K$12:$Q$154,3,FALSE)) ->  | K119: =IF(ISERROR(VLOOKUP(D119,Январь!$K$12:$Q$154,4,FALSE))," ",VLOOKUP(D119,Январь!$K$12:$Q$154,4,FALSE)) ->  | L119: =IF(ISERROR(VLOOKUP(A119,Январь!$A$10:$J$154,9,FALSE))," ",VLOOKUP(A119,Январь!$A$10:$J$154,9,FALSE)) ->  | M119: =IF(ISERROR(VLOOKUP(A119,Январь!$A$10:$J$154,10,FALSE))," ",VLOOKUP(A119,Январь!$A$10:$J$154,10,FALSE)) -> 
A120: К118 | B120: =IF(ISERROR(VLOOKUP(A120,Январь!$A$10:$Q$154,13,FALSE))," ",VLOOKUP(A120,Январь!$A$10:$Q$154,13,FALSE)) ->  | C120: =IF(ISERROR(VLOOKUP(A120,Январь!$A$10:$Q$154,14,FALSE))," ",VLOOKUP(A120,Январь!$A$10:$Q$154,14,FALSE)) ->  | D120: =IF(ISERROR(VLOOKUP(A120,Январь!$A$10:$J$154,3,FALSE))," ",VLOOKUP(A120,Январь!$A$10:$J$154,3,FALSE)) ->  | E120: =IF(ISERROR(VLOOKUP(A120,Январь!$A$10:$J$154,4,FALSE))," ",VLOOKUP(A120,Январь!$A$10:$J$154,4,FALSE)) ->  | F120: =IF(ISERROR(VLOOKUP(A120,Январь!$A$10:$J$154,5,FALSE))," ",VLOOKUP(A120,Январь!$A$10:$J$154,5,FALSE)) ->  | G120: =IF(ISERROR(VLOOKUP(A120,Январь!$A$10:$J$154,6,FALSE))," ",VLOOKUP(A120,Январь!$A$10:$J$154,6,FALSE)) ->  | H120: =IF(ISERROR(VLOOKUP(D120,Январь!$K$12:$Q$154,2,FALSE))," ",VLOOKUP(D120,Январь!$K$12:$Q$154,2,FALSE)) ->  | I120: =IF(ISERROR(VLOOKUP(D120,Январь!$K$12:$Q$154,5,FALSE))," ",VLOOKUP(D120,Январь!$K$12:$Q$154,5,FALSE)) ->  | J120: =IF(ISERROR(VLOOKUP(D120,Январь!$K$12:$Q$154,3,FALSE))," ",VLOOKUP(D120,Январь!$K$12:$Q$154,3,FALSE)) ->  | K120: =IF(ISERROR(VLOOKUP(D120,Январь!$K$12:$Q$154,4,FALSE))," ",VLOOKUP(D120,Январь!$K$12:$Q$154,4,FALSE)) ->  | L120: =IF(ISERROR(VLOOKUP(A120,Январь!$A$10:$J$154,9,FALSE))," ",VLOOKUP(A120,Январь!$A$10:$J$154,9,FALSE)) ->  | M120: =IF(ISERROR(VLOOKUP(A120,Январь!$A$10:$J$154,10,FALSE))," ",VLOOKUP(A120,Январь!$A$10:$J$154,10,FALSE)) -> 
A121: К119 | B121: =IF(ISERROR(VLOOKUP(A121,Январь!$A$10:$Q$154,13,FALSE))," ",VLOOKUP(A121,Январь!$A$10:$Q$154,13,FALSE)) ->  | C121: =IF(ISERROR(VLOOKUP(A121,Январь!$A$10:$Q$154,14,FALSE))," ",VLOOKUP(A121,Январь!$A$10:$Q$154,14,FALSE)) ->  | D121: =IF(ISERROR(VLOOKUP(A121,Январь!$A$10:$J$154,3,FALSE))," ",VLOOKUP(A121,Январь!$A$10:$J$154,3,FALSE)) ->  | E121: =IF(ISERROR(VLOOKUP(A121,Январь!$A$10:$J$154,4,FALSE))," ",VLOOKUP(A121,Январь!$A$10:$J$154,4,FALSE)) ->  | F121: =IF(ISERROR(VLOOKUP(A121,Январь!$A$10:$J$154,5,FALSE))," ",VLOOKUP(A121,Январь!$A$10:$J$154,5,FALSE)) ->  | G121: =IF(ISERROR(VLOOKUP(A121,Январь!$A$10:$J$154,6,FALSE))," ",VLOOKUP(A121,Январь!$A$10:$J$154,6,FALSE)) ->  | H121: =IF(ISERROR(VLOOKUP(D121,Январь!$K$12:$Q$154,2,FALSE))," ",VLOOKUP(D121,Январь!$K$12:$Q$154,2,FALSE)) ->  | I121: =IF(ISERROR(VLOOKUP(D121,Январь!$K$12:$Q$154,5,FALSE))," ",VLOOKUP(D121,Январь!$K$12:$Q$154,5,FALSE)) ->  | J121: =IF(ISERROR(VLOOKUP(D121,Январь!$K$12:$Q$154,3,FALSE))," ",VLOOKUP(D121,Январь!$K$12:$Q$154,3,FALSE)) ->  | K121: =IF(ISERROR(VLOOKUP(D121,Январь!$K$12:$Q$154,4,FALSE))," ",VLOOKUP(D121,Январь!$K$12:$Q$154,4,FALSE)) ->  | L121: =IF(ISERROR(VLOOKUP(A121,Январь!$A$10:$J$154,9,FALSE))," ",VLOOKUP(A121,Январь!$A$10:$J$154,9,FALSE)) ->  | M121: =IF(ISERROR(VLOOKUP(A121,Январь!$A$10:$J$154,10,FALSE))," ",VLOOKUP(A121,Январь!$A$10:$J$154,10,FALSE)) -> 
A122: К120 | B122: =IF(ISERROR(VLOOKUP(A122,Январь!$A$10:$Q$154,13,FALSE))," ",VLOOKUP(A122,Январь!$A$10:$Q$154,13,FALSE)) ->  | C122: =IF(ISERROR(VLOOKUP(A122,Январь!$A$10:$Q$154,14,FALSE))," ",VLOOKUP(A122,Январь!$A$10:$Q$154,14,FALSE)) ->  | D122: =IF(ISERROR(VLOOKUP(A122,Январь!$A$10:$J$154,3,FALSE))," ",VLOOKUP(A122,Январь!$A$10:$J$154,3,FALSE)) ->  | E122: =IF(ISERROR(VLOOKUP(A122,Январь!$A$10:$J$154,4,FALSE))," ",VLOOKUP(A122,Январь!$A$10:$J$154,4,FALSE)) ->  | F122: =IF(ISERROR(VLOOKUP(A122,Январь!$A$10:$J$154,5,FALSE))," ",VLOOKUP(A122,Январь!$A$10:$J$154,5,FALSE)) ->  | G122: =IF(ISERROR(VLOOKUP(A122,Январь!$A$10:$J$154,6,FALSE))," ",VLOOKUP(A122,Январь!$A$10:$J$154,6,FALSE)) ->  | H122: =IF(ISERROR(VLOOKUP(D122,Январь!$K$12:$Q$154,2,FALSE))," ",VLOOKUP(D122,Январь!$K$12:$Q$154,2,FALSE)) ->  | I122: =IF(ISERROR(VLOOKUP(D122,Январь!$K$12:$Q$154,5,FALSE))," ",VLOOKUP(D122,Январь!$K$12:$Q$154,5,FALSE)) ->  | J122: =IF(ISERROR(VLOOKUP(D122,Январь!$K$12:$Q$154,3,FALSE))," ",VLOOKUP(D122,Январь!$K$12:$Q$154,3,FALSE)) ->  | K122: =IF(ISERROR(VLOOKUP(D122,Январь!$K$12:$Q$154,4,FALSE))," ",VLOOKUP(D122,Январь!$K$12:$Q$154,4,FALSE)) ->  | L122: =IF(ISERROR(VLOOKUP(A122,Январь!$A$10:$J$154,9,FALSE))," ",VLOOKUP(A122,Январь!$A$10:$J$154,9,FALSE)) ->  | M122: =IF(ISERROR(VLOOKUP(A122,Январь!$A$10:$J$154,10,FALSE))," ",VLOOKUP(A122,Январь!$A$10:$J$154,10,FALSE)) -> 
A123: К121 | B123: =IF(ISERROR(VLOOKUP(A123,Январь!$A$10:$Q$154,13,FALSE))," ",VLOOKUP(A123,Январь!$A$10:$Q$154,13,FALSE)) ->  | C123: =IF(ISERROR(VLOOKUP(A123,Январь!$A$10:$Q$154,14,FALSE))," ",VLOOKUP(A123,Январь!$A$10:$Q$154,14,FALSE)) ->  | D123: =IF(ISERROR(VLOOKUP(A123,Январь!$A$10:$J$154,3,FALSE))," ",VLOOKUP(A123,Январь!$A$10:$J$154,3,FALSE)) ->  | E123: =IF(ISERROR(VLOOKUP(A123,Январь!$A$10:$J$154,4,FALSE))," ",VLOOKUP(A123,Январь!$A$10:$J$154,4,FALSE)) ->  | F123: =IF(ISERROR(VLOOKUP(A123,Январь!$A$10:$J$154,5,FALSE))," ",VLOOKUP(A123,Январь!$A$10:$J$154,5,FALSE)) ->  | G123: =IF(ISERROR(VLOOKUP(A123,Январь!$A$10:$J$154,6,FALSE))," ",VLOOKUP(A123,Январь!$A$10:$J$154,6,FALSE)) ->  | H123: =IF(ISERROR(VLOOKUP(D123,Январь!$K$12:$Q$154,2,FALSE))," ",VLOOKUP(D123,Январь!$K$12:$Q$154,2,FALSE)) ->  | I123: =IF(ISERROR(VLOOKUP(D123,Январь!$K$12:$Q$154,5,FALSE))," ",VLOOKUP(D123,Январь!$K$12:$Q$154,5,FALSE)) ->  | J123: =IF(ISERROR(VLOOKUP(D123,Январь!$K$12:$Q$154,3,FALSE))," ",VLOOKUP(D123,Январь!$K$12:$Q$154,3,FALSE)) ->  | K123: =IF(ISERROR(VLOOKUP(D123,Январь!$K$12:$Q$154,4,FALSE))," ",VLOOKUP(D123,Январь!$K$12:$Q$154,4,FALSE)) ->  | L123: =IF(ISERROR(VLOOKUP(A123,Январь!$A$10:$J$154,9,FALSE))," ",VLOOKUP(A123,Январь!$A$10:$J$154,9,FALSE)) ->  | M123: =IF(ISERROR(VLOOKUP(A123,Январь!$A$10:$J$154,10,FALSE))," ",VLOOKUP(A123,Январь!$A$10:$J$154,10,FALSE)) -> 
A124: К122 | B124: =IF(ISERROR(VLOOKUP(A124,Январь!$A$10:$Q$154,13,FALSE))," ",VLOOKUP(A124,Январь!$A$10:$Q$154,13,FALSE)) ->  | C124: =IF(ISERROR(VLOOKUP(A124,Январь!$A$10:$Q$154,14,FALSE))," ",VLOOKUP(A124,Январь!$A$10:$Q$154,14,FALSE)) ->  | D124: =IF(ISERROR(VLOOKUP(A124,Январь!$A$10:$J$154,3,FALSE))," ",VLOOKUP(A124,Январь!$A$10:$J$154,3,FALSE)) ->  | E124: =IF(ISERROR(VLOOKUP(A124,Январь!$A$10:$J$154,4,FALSE))," ",VLOOKUP(A124,Январь!$A$10:$J$154,4,FALSE)) ->  | F124: =IF(ISERROR(VLOOKUP(A124,Январь!$A$10:$J$154,5,FALSE))," ",VLOOKUP(A124,Январь!$A$10:$J$154,5,FALSE)) ->  | G124: =IF(ISERROR(VLOOKUP(A124,Январь!$A$10:$J$154,6,FALSE))," ",VLOOKUP(A124,Январь!$A$10:$J$154,6,FALSE)) ->  | H124: =IF(ISERROR(VLOOKUP(D124,Январь!$K$12:$Q$154,2,FALSE))," ",VLOOKUP(D124,Январь!$K$12:$Q$154,2,FALSE)) ->  | I124: =IF(ISERROR(VLOOKUP(D124,Январь!$K$12:$Q$154,5,FALSE))," ",VLOOKUP(D124,Январь!$K$12:$Q$154,5,FALSE)) ->  | J124: =IF(ISERROR(VLOOKUP(D124,Январь!$K$12:$Q$154,3,FALSE))," ",VLOOKUP(D124,Январь!$K$12:$Q$154,3,FALSE)) ->  | K124: =IF(ISERROR(VLOOKUP(D124,Январь!$K$12:$Q$154,4,FALSE))," ",VLOOKUP(D124,Январь!$K$12:$Q$154,4,FALSE)) ->  | L124: =IF(ISERROR(VLOOKUP(A124,Январь!$A$10:$J$154,9,FALSE))," ",VLOOKUP(A124,Январь!$A$10:$J$154,9,FALSE)) ->  | M124: =IF(ISERROR(VLOOKUP(A124,Январь!$A$10:$J$154,10,FALSE))," ",VLOOKUP(A124,Январь!$A$10:$J$154,10,FALSE)) -> 
A125: К123 | B125: =IF(ISERROR(VLOOKUP(A125,Январь!$A$10:$Q$154,13,FALSE))," ",VLOOKUP(A125,Январь!$A$10:$Q$154,13,FALSE)) ->  | C125: =IF(ISERROR(VLOOKUP(A125,Январь!$A$10:$Q$154,14,FALSE))," ",VLOOKUP(A125,Январь!$A$10:$Q$154,14,FALSE)) ->  | D125: =IF(ISERROR(VLOOKUP(A125,Январь!$A$10:$J$154,3,FALSE))," ",VLOOKUP(A125,Январь!$A$10:$J$154,3,FALSE)) ->  | E125: =IF(ISERROR(VLOOKUP(A125,Январь!$A$10:$J$154,4,FALSE))," ",VLOOKUP(A125,Январь!$A$10:$J$154,4,FALSE)) ->  | F125: =IF(ISERROR(VLOOKUP(A125,Январь!$A$10:$J$154,5,FALSE))," ",VLOOKUP(A125,Январь!$A$10:$J$154,5,FALSE)) ->  | G125: =IF(ISERROR(VLOOKUP(A125,Январь!$A$10:$J$154,6,FALSE))," ",VLOOKUP(A125,Январь!$A$10:$J$154,6,FALSE)) ->  | H125: =IF(ISERROR(VLOOKUP(D125,Январь!$K$12:$Q$154,2,FALSE))," ",VLOOKUP(D125,Январь!$K$12:$Q$154,2,FALSE)) ->  | I125: =IF(ISERROR(VLOOKUP(D125,Январь!$K$12:$Q$154,5,FALSE))," ",VLOOKUP(D125,Январь!$K$12:$Q$154,5,FALSE)) ->  | J125: =IF(ISERROR(VLOOKUP(D125,Январь!$K$12:$Q$154,3,FALSE))," ",VLOOKUP(D125,Январь!$K$12:$Q$154,3,FALSE)) ->  | K125: =IF(ISERROR(VLOOKUP(D125,Январь!$K$12:$Q$154,4,FALSE))," ",VLOOKUP(D125,Январь!$K$12:$Q$154,4,FALSE)) ->  | L125: =IF(ISERROR(VLOOKUP(A125,Январь!$A$10:$J$154,9,FALSE))," ",VLOOKUP(A125,Январь!$A$10:$J$154,9,FALSE)) ->  | M125: =IF(ISERROR(VLOOKUP(A125,Январь!$A$10:$J$154,10,FALSE))," ",VLOOKUP(A125,Январь!$A$10:$J$154,10,FALSE)) -> 
A126: К124 | B126: =IF(ISERROR(VLOOKUP(A126,Январь!$A$10:$Q$154,13,FALSE))," ",VLOOKUP(A126,Январь!$A$10:$Q$154,13,FALSE)) ->  | C126: =IF(ISERROR(VLOOKUP(A126,Январь!$A$10:$Q$154,14,FALSE))," ",VLOOKUP(A126,Январь!$A$10:$Q$154,14,FALSE)) ->  | D126: =IF(ISERROR(VLOOKUP(A126,Январь!$A$10:$J$154,3,FALSE))," ",VLOOKUP(A126,Январь!$A$10:$J$154,3,FALSE)) ->  | E126: =IF(ISERROR(VLOOKUP(A126,Январь!$A$10:$J$154,4,FALSE))," ",VLOOKUP(A126,Январь!$A$10:$J$154,4,FALSE)) ->  | F126: =IF(ISERROR(VLOOKUP(A126,Январь!$A$10:$J$154,5,FALSE))," ",VLOOKUP(A126,Январь!$A$10:$J$154,5,FALSE)) ->  | G126: =IF(ISERROR(VLOOKUP(A126,Январь!$A$10:$J$154,6,FALSE))," ",VLOOKUP(A126,Январь!$A$10:$J$154,6,FALSE)) ->  | H126: =IF(ISERROR(VLOOKUP(D126,Январь!$K$12:$Q$154,2,FALSE))," ",VLOOKUP(D126,Январь!$K$12:$Q$154,2,FALSE)) ->  | I126: =IF(ISERROR(VLOOKUP(D126,Январь!$K$12:$Q$154,5,FALSE))," ",VLOOKUP(D126,Январь!$K$12:$Q$154,5,FALSE)) ->  | J126: =IF(ISERROR(VLOOKUP(D126,Январь!$K$12:$Q$154,3,FALSE))," ",VLOOKUP(D126,Январь!$K$12:$Q$154,3,FALSE)) ->  | K126: =IF(ISERROR(VLOOKUP(D126,Январь!$K$12:$Q$154,4,FALSE))," ",VLOOKUP(D126,Январь!$K$12:$Q$154,4,FALSE)) ->  | L126: =IF(ISERROR(VLOOKUP(A126,Январь!$A$10:$J$154,9,FALSE))," ",VLOOKUP(A126,Январь!$A$10:$J$154,9,FALSE)) ->  | M126: =IF(ISERROR(VLOOKUP(A126,Январь!$A$10:$J$154,10,FALSE))," ",VLOOKUP(A126,Январь!$A$10:$J$154,10,FALSE)) -> 
A127: К125 | B127: =IF(ISERROR(VLOOKUP(A127,Январь!$A$10:$Q$154,13,FALSE))," ",VLOOKUP(A127,Январь!$A$10:$Q$154,13,FALSE)) ->  | C127: =IF(ISERROR(VLOOKUP(A127,Январь!$A$10:$Q$154,14,FALSE))," ",VLOOKUP(A127,Январь!$A$10:$Q$154,14,FALSE)) ->  | D127: =IF(ISERROR(VLOOKUP(A127,Январь!$A$10:$J$154,3,FALSE))," ",VLOOKUP(A127,Январь!$A$10:$J$154,3,FALSE)) ->  | E127: =IF(ISERROR(VLOOKUP(A127,Январь!$A$10:$J$154,4,FALSE))," ",VLOOKUP(A127,Январь!$A$10:$J$154,4,FALSE)) ->  | F127: =IF(ISERROR(VLOOKUP(A127,Январь!$A$10:$J$154,5,FALSE))," ",VLOOKUP(A127,Январь!$A$10:$J$154,5,FALSE)) ->  | G127: =IF(ISERROR(VLOOKUP(A127,Январь!$A$10:$J$154,6,FALSE))," ",VLOOKUP(A127,Январь!$A$10:$J$154,6,FALSE)) ->  | H127: =IF(ISERROR(VLOOKUP(D127,Январь!$K$12:$Q$154,2,FALSE))," ",VLOOKUP(D127,Январь!$K$12:$Q$154,2,FALSE)) ->  | I127: =IF(ISERROR(VLOOKUP(D127,Январь!$K$12:$Q$154,5,FALSE))," ",VLOOKUP(D127,Январь!$K$12:$Q$154,5,FALSE)) ->  | J127: =IF(ISERROR(VLOOKUP(D127,Январь!$K$12:$Q$154,3,FALSE))," ",VLOOKUP(D127,Январь!$K$12:$Q$154,3,FALSE)) ->  | K127: =IF(ISERROR(VLOOKUP(D127,Январь!$K$12:$Q$154,4,FALSE))," ",VLOOKUP(D127,Январь!$K$12:$Q$154,4,FALSE)) ->  | L127: =IF(ISERROR(VLOOKUP(A127,Январь!$A$10:$J$154,9,FALSE))," ",VLOOKUP(A127,Январь!$A$10:$J$154,9,FALSE)) ->  | M127: =IF(ISERROR(VLOOKUP(A127,Январь!$A$10:$J$154,10,FALSE))," ",VLOOKUP(A127,Январь!$A$10:$J$154,10,FALSE)) -> 
A128: К126 | B128: =IF(ISERROR(VLOOKUP(A128,Январь!$A$10:$Q$154,13,FALSE))," ",VLOOKUP(A128,Январь!$A$10:$Q$154,13,FALSE)) ->  | C128: =IF(ISERROR(VLOOKUP(A128,Январь!$A$10:$Q$154,14,FALSE))," ",VLOOKUP(A128,Январь!$A$10:$Q$154,14,FALSE)) ->  | D128: =IF(ISERROR(VLOOKUP(A128,Январь!$A$10:$J$154,3,FALSE))," ",VLOOKUP(A128,Январь!$A$10:$J$154,3,FALSE)) ->  | E128: =IF(ISERROR(VLOOKUP(A128,Январь!$A$10:$J$154,4,FALSE))," ",VLOOKUP(A128,Январь!$A$10:$J$154,4,FALSE)) ->  | F128: =IF(ISERROR(VLOOKUP(A128,Январь!$A$10:$J$154,5,FALSE))," ",VLOOKUP(A128,Январь!$A$10:$J$154,5,FALSE)) ->  | G128: =IF(ISERROR(VLOOKUP(A128,Январь!$A$10:$J$154,6,FALSE))," ",VLOOKUP(A128,Январь!$A$10:$J$154,6,FALSE)) ->  | H128: =IF(ISERROR(VLOOKUP(D128,Январь!$K$12:$Q$154,2,FALSE))," ",VLOOKUP(D128,Январь!$K$12:$Q$154,2,FALSE)) ->  | I128: =IF(ISERROR(VLOOKUP(D128,Январь!$K$12:$Q$154,5,FALSE))," ",VLOOKUP(D128,Январь!$K$12:$Q$154,5,FALSE)) ->  | J128: =IF(ISERROR(VLOOKUP(D128,Январь!$K$12:$Q$154,3,FALSE))," ",VLOOKUP(D128,Январь!$K$12:$Q$154,3,FALSE)) ->  | K128: =IF(ISERROR(VLOOKUP(D128,Январь!$K$12:$Q$154,4,FALSE))," ",VLOOKUP(D128,Январь!$K$12:$Q$154,4,FALSE)) ->  | L128: =IF(ISERROR(VLOOKUP(A128,Январь!$A$10:$J$154,9,FALSE))," ",VLOOKUP(A128,Январь!$A$10:$J$154,9,FALSE)) ->  | M128: =IF(ISERROR(VLOOKUP(A128,Январь!$A$10:$J$154,10,FALSE))," ",VLOOKUP(A128,Январь!$A$10:$J$154,10,FALSE)) -> 
